,Directorate,Supplier Name,Supplier Invoice No,Payment Date,Gross Invoice Value,Vat Amount,Vendor Id,Purpose of Expenditure,Description,Redact flag,Year,Period
1,Community and Housing,SOUTHPARK RESIDENTIAL HOME,1034829,06-Oct-23,1457.14,0,19,Older People Placements - East,321017              Nursing & Residential Care Homes,A,2023,7
2,Community and Housing,SOUTHPARK RESIDENTIAL HOME,1045203,25-Oct-23,3400,0,19,Older People Placements - East,321017              Nursing & Residential Care Homes,A,2023,7
3,Community and Housing,SOUTHPARK RESIDENTIAL HOME,1045224,25-Oct-23,1942.86,0,19,Older People Placements - East,321017              Nursing & Residential Care Homes,A,2023,7
4,Community and Housing,SOUTHPARK RESIDENTIAL HOME,1045563,25-Oct-23,3400,0,19,Older People Placements - East,321017              Nursing & Residential Care Homes,A,2023,7
5,"Children, Schools and Family",MORE HOUSE SCHOOL,31177,09-Oct-23,6337,0,345,Non-Delegated Statements,170000              Education,A,2023,7
6,"Children, Schools and Family",MORE HOUSE SCHOOL,30937,05-Oct-23,7993.4,0,345,SEN Residential (DSG),170000              Education,A,2023,7
7,Community and Housing,ST TERESA`S HOME FOR THE ELDERLY,1045140,25-Oct-23,3764.24,0,362,Older People Placements - East,321017              Nursing & Residential Care Homes,A,2023,7
8,Community and Housing,THE WHITE HOUSE NURSING HOME,1045538,25-Oct-23,3396,0,611,Older People Placements - East,321000              Social Community Care Supplies & Services - Adult,A,2023,7
9,"Children, Schools and Family",BLOSSOM HOUSE SCHOOL,9935,23-Oct-23,6375,0,777,Non-Delegated Statements,170000              Education,A,2023,7
10,"Children, Schools and Family",BLOSSOM HOUSE SCHOOL,9939,23-Oct-23,13807.5,0,777,Non-Delegated Statements,170000              Education,A,2023,7
11,"Children, Schools and Family",BLOSSOM HOUSE SCHOOL,9942,23-Oct-23,18112.5,0,777,Non-Delegated Statements,170000              Education,A,2023,7
12,"Children, Schools and Family",BLOSSOM HOUSE SCHOOL,9937,23-Oct-23,30791.67,0,777,Non-Delegated Statements,170000              Education,A,2023,7
13,Corporate Services,Quadient,840499106,17-Oct-23,8105.41,16,793,Post services,300000              Mail Services,A,2023,7
14,Corporate Services,The Wimbledon Guild of Social Welfare,ASC GRANT OCT 23,20-Oct-23,52252.5,0,802,Cost of Living Fund,190000              Facilities & Management Services,A,2023,7
15,Unassigned,PERSEID SCHOOL,SCHOOLS 2324/7 A,06-Oct-23,404445.49,0,983,Schools,170000              Education,A,2023,7
16,Community and Housing,MOUNT CARMEL HOSTEL,1045368,25-Oct-23,3840,0,1053,ASC - Substance Misuse - Drugs,321017              Nursing & Residential Care Homes,A,2023,7
17,Community and Housing,SUTTON NURSING HOMES LTD,1045175,25-Oct-23,3381.16,0,1208,Older People Placements - East,321017              Nursing & Residential Care Homes,A,2023,7
18,Community and Housing,SUTTON NURSING HOMES LTD,1045520,25-Oct-23,3381.16,0,1208,Older People Placements - East,321017              Nursing & Residential Care Homes,A,2023,7
19,Environment and Regeneration,LONDON BOROUGH OF CROYDON,3022430,05-Oct-23,395206.36,65867.73,1258,Waste Disposal,OLA,A,2023,7
20,Corporate Services,L.B OF RICHMOND UPON THAMES,RC376792128M06E,12-Oct-23,9800,0,1353,SLLP Client Income,OLA,A,2023,7
21,Unassigned,L.B OF RICHMOND UPON THAMES,UU/DEN458/2,27-Oct-23,1408,0,1353,Corporate Services,OLA,A,2023,7
22,Unassigned,MELROSE SPECIAL SCHOOL,SCHOOLS 2324/7 A,06-Oct-23,464923.13,0,1393,Schools,170000              Education,A,2023,7
23,Unassigned,WILLIAM MORRIS PRIMARY SCHOOL,SCHOOLS 2324/7 A,06-Oct-23,197124.18,0,1416,Schools,170000              Education,A,2023,7
24,Unassigned,ST THOMAS OF CANTERBURY PRIMARY,SCHOOLS 2324/7 A,06-Oct-23,250250.42,0,1418,Schools,170000              Education,A,2023,7
25,Unassigned,PRIORY C OF E MIDDLE SCHOOL,SCHOOLS 2324/7 A,06-Oct-23,125439.59,0,1420,Schools,170000              Education,A,2023,7
26,Unassigned,LIBERTY PRIMARY SCHOOL,SCHOOLS 2324/7 A,06-Oct-23,251481.21,0,1424,Schools,170000              Education,A,2023,7
27,Unassigned,HILLCROSS PRIMARY SCHOOL,SCHOOLS 2324/7 A,06-Oct-23,191879.77,0,1425,Schools,170000              Education,A,2023,7
28,Unassigned,CRANMER PRIMARY SCHOOL,SCHOOLS 2324/7 A,06-Oct-23,394471.23,0,1426,Schools,170000              Education,A,2023,7
29,Unassigned,WIMBLEDON COLLEGE SCHOOL,SCHOOLS 2324/7 A,06-Oct-23,846642.02,0,1428,Schools,170000              Education,A,2023,7
30,Unassigned,URSULINE HIGH SCHOOL,SCHOOLS 2324/7 A,06-Oct-23,781564.97,0,1429,Schools,170000              Education,A,2023,7
31,Unassigned,RUTLISH SCHOOL,SCHOOLS 2324/7 A,06-Oct-23,881131.57,0,1431,Schools,170000              Education,A,2023,7
32,Unassigned,RICARDS LODGE SECONDARY SCHOOL,SCHOOLS 2324/7 A,06-Oct-23,762828.42,0,1433,Schools,170000              Education,A,2023,7
33,Unassigned,WIMBLEDON PARK PRIMARY SCHOOL,SCHOOLS 2324/7 A,06-Oct-23,254641.23,0,1436,Schools,170000              Education,A,2023,7
34,Unassigned,ST TERESA'S R C PRIMARY SCHOOL,SCHOOLS 2324/7 A,06-Oct-23,230299.78,0,1438,Schools,170000              Education,A,2023,7
35,Unassigned,ST MARYS CATHOLIC PRIMARY SCHOOL,SCHOOLS 2324/7 A,06-Oct-23,164889.25,0,1439,Schools,170000              Education,A,2023,7
36,Unassigned,ST MARKS PRIMARY SCHOOL,SCHOOLS 2324/7 A,06-Oct-23,146735.35,0,1440,Schools,170000              Education,A,2023,7
37,Unassigned,ST JOHN FISHER RC PRIMARY SCH.,SCHOOLS 2324/7 A,06-Oct-23,185987.59,0,1441,Schools,170000              Education,A,2023,7
38,Unassigned,SINGLEGATE PRIMARY SCHOOL,SCHOOLS 2324/7 A,06-Oct-23,279060.26,0,1442,Schools,170000              Education,A,2023,7
39,Unassigned,SHERWOOD PRIMARY SCHOOL,SCHOOLS 2324/7 A,06-Oct-23,177825.86,0,1443,Schools,170000              Education,A,2023,7
40,Unassigned,POPLAR PRIMARY SCHOOL,SCHOOLS 2324/7 A,06-Oct-23,332721.02,0,1444,Schools,170000              Education,A,2023,7
41,"Children, Schools and Family",POPLAR PRIMARY SCHOOL,PO181023,25-Oct-23,4306.08,0,1444,School Improvement GeneralFund,170000              Education,A,2023,7
42,Unassigned,PELHAM PRIMARY SCHOOL,SCHOOLS 2324/7 A,06-Oct-23,208351.97,0,1445,Schools,170000              Education,A,2023,7
43,Unassigned,MORDEN PRIMARY SCHOOL,SCHOOLS 2324/7 A,06-Oct-23,143223.53,0,1446,Schools,170000              Education,A,2023,7
44,Unassigned,MERTON PARK PRIMARY SCHOOL,SCHOOLS 2324/7 A,06-Oct-23,102029.28,0,1447,Schools,170000              Education,A,2023,7
45,Unassigned,MERTON ABBEY PRIMARY SCHOOL,SCHOOLS 2324/7 A,06-Oct-23,166751.9,0,1448,Schools,170000              Education,A,2023,7
46,Unassigned,LONESOME PRIMARY SCHOOL,SCHOOLS 2324/7 A,06-Oct-23,232864.77,0,1450,Schools,170000              Education,A,2023,7
47,Unassigned,LINKS PRIMARY SCHOOL,SCHOOLS 2324/7 A,06-Oct-23,188225.25,0,1451,Schools,170000              Education,A,2023,7
48,"Children, Schools and Family",LINKS PRIMARY SCHOOL,HAFAUT23-UPFRONT,11-Oct-23,1250,0,1451,Holiday Act Food Prog grntfnd,170000              Education,A,2023,7
49,Unassigned,JOSEPH HOOD PRIMARY SCHOOL,23LMPE000004,02-Oct-23,2222,0,1452,Corporate Services,170000              Education,A,2023,7
50,Unassigned,JOSEPH HOOD PRIMARY SCHOOL,SCHOOLS 2324/7 A,06-Oct-23,193804.03,0,1452,Schools,170000              Education,A,2023,7
51,"Children, Schools and Family",JOSEPH HOOD PRIMARY SCHOOL,JH-23/24-23,20-Oct-23,866,0,1452,MIASS Info Advice and Support,170000              Education,A,2023,7
52,Unassigned,HOLY TRINITY C OF E PRIMARY SCHOOL,SCHOOLS 2324/7 A,06-Oct-23,178285.6,0,1453,Schools,170000              Education,A,2023,7
53,Unassigned,HOLLYMOUNT PRIMARY SCHOOL,SCHOOLS 2324/7 A,06-Oct-23,180831.9,0,1454,Schools,170000              Education,A,2023,7
54,Unassigned,HATFEILD PRIMARY SCHOOL,SCHOOLS 2324/7 A,06-Oct-23,267661.06,0,1455,Schools,170000              Education,A,2023,7
55,Unassigned,HASLEMERE PRIMARY SCHOOL,SCHOOLS 2324/7 A,06-Oct-23,335279.52,0,1456,Schools,170000              Education,A,2023,7
56,Unassigned,GARFIELD PRIMARY SCHOOL,SCHOOLS 2324/7 A,06-Oct-23,174677.41,0,1460,Schools,170000              Education,A,2023,7
57,Unassigned,BOND PRIMARY SCHOOL,SCHOOLS 2324/7 A,06-Oct-23,236724.62,0,1462,Schools,170000              Education,A,2023,7
58,Unassigned,BISHOP GILPIN C OF E PRIMARY,SCHOOLS 2324/7 A,06-Oct-23,170360.56,0,1463,Schools,170000              Education,A,2023,7
59,Unassigned,ABBOTSBURY PRIMARY SCHOOL,SCHOOLS 2324/7 A,06-Oct-23,238752.19,0,1467,Schools,170000              Education,A,2023,7
60,Unassigned,WIMBLEDON CHASE PRIMARY SCHOOL,SCHOOLS 2324/7 A,06-Oct-23,308310.59,0,1469,Schools,170000              Education,A,2023,7
61,Unassigned,GORRINGE PARK PRIMARY SCHOOL,SCHOOLS 2324/7 A,06-Oct-23,222462.01,0,1470,Schools,170000              Education,A,2023,7
62,Unassigned,RAYNES PARK SECONDARY SCHOOL,SCHOOLS 2324/7 A,06-Oct-23,900622.69,0,1471,Schools,170000              Education,A,2023,7
63,Unassigned,SS PETER AND PAUL RC PRIMARY SCH,SCHOOLS 2324/7 A,06-Oct-23,165552.49,0,1472,Schools,170000              Education,A,2023,7
64,Unassigned,DUNDONALD PRIMARY SCHOOL,SCHOOLS 2324/7 A,06-Oct-23,187655.06,0,1473,Schools,170000              Education,A,2023,7
65,Community and Housing,MERTON MENCAP,ASC GRANT OCT 23,09-Oct-23,29999.8,0,1519,Grants to Voluntary Orgs,200000              Financial Services,A,2023,7
66,Unassigned,ALL SAINTS C OF E PRIMARY SCH,SCHOOLS 2324/7 A,06-Oct-23,211987.18,0,1680,Schools,170000              Education,A,2023,7
67,"Children, Schools and Family",REDACTED PERSONAL DATA,1034758,06-Oct-23,548.09,0,1801,Placements Under 18,321100              Social Community Care Supplies & Services - Children,R,2023,7
68,"Children, Schools and Family",REDACTED PERSONAL DATA,1039104,13-Oct-23,548.09,0,1801,Placements Under 18,321100              Social Community Care Supplies & Services - Children,R,2023,7
69,"Children, Schools and Family",REDACTED PERSONAL DATA,1039109,13-Oct-23,548.09,0,1801,Placements Under 18,321100              Social Community Care Supplies & Services - Children,R,2023,7
70,"Children, Schools and Family",REDACTED PERSONAL DATA,1043168,20-Oct-23,548.09,0,1801,Placements Under 18,321100              Social Community Care Supplies & Services - Children,R,2023,7
71,"Children, Schools and Family",REDACTED PERSONAL DATA,1043173,20-Oct-23,548.09,0,1801,Placements Under 18,321100              Social Community Care Supplies & Services - Children,R,2023,7
72,"Children, Schools and Family",REDACTED PERSONAL DATA,1048207,27-Oct-23,548.09,0,1801,Placements Under 18,321100              Social Community Care Supplies & Services - Children,R,2023,7
73,"Children, Schools and Family",REDACTED PERSONAL DATA,1048212,27-Oct-23,548.09,0,1801,Placements Under 18,321100              Social Community Care Supplies & Services - Children,R,2023,7
74,Corporate Services,CIVICA UK LIMITED,M/MG120484,12-Oct-23,14756.88,2459.48,1873,Democracy Services,270000              Information Communication Technology,A,2023,7
75,Corporate Services,CIVICA UK LIMITED,C/BN287493,27-Oct-23,2373.9,395.65,1873,Benefits Administration,270000              Information Communication Technology,A,2023,7
76,Corporate Services,CIVICA UK LIMITED,C/BN287492,30-Oct-23,1445.34,240.89,1873,Benefits Administration,270000              Information Communication Technology,A,2023,7
77,Corporate Services,CIVICA UK LIMITED,C/BN287530,31-Oct-23,510.77,85.13,1873,Local Taxation Services,270000              Information Communication Technology,A,2023,7
78,Community and Housing,CIVICA UK LIMITED,C/BN285385,16-Oct-23,5266.8,877.8,1873,Financial Assessment Team (FA),270000              Information Communication Technology,A,2023,7
79,"Children, Schools and Family",THE CHILDRENS TRUST,6986,31-Oct-23,9570.32,0,1980,Non-Delegated Statements,170000              Education,A,2023,7
80,Community and Housing,THE FRANCES TAYLOR FOUNDATION,1045231,25-Oct-23,3812.04,0,2011,Learning Disabilities Placemnt,321017              Nursing & Residential Care Homes,A,2023,7
81,Community and Housing,THE FRANCES TAYLOR FOUNDATION,1045541,25-Oct-23,8113.92,0,2011,Learning Disabilities Placemnt,321017              Nursing & Residential Care Homes,A,2023,7
82,Unassigned,SACRED HEART R C PRIMARY SCH.,SCHOOLS 2324/7 A,06-Oct-23,173576.14,0,2076,Schools,170000              Education,A,2023,7
83,Community and Housing,GENEVA ROAD LIMITED,300923JW,13-Oct-23,781.09,130.18,2198,Older People Placements - East,321000              Social Community Care Supplies & Services - Adult,A,2023,7
84,Corporate Services,LONDON BOROUGH OF SUTTON,"""SLLPINCOMEM0623",10-Oct-23,1500,0,2313,SLLP Client Income,OLA,A,2023,7
85,"Children, Schools and Family",PJ HARVEY AND CO LTD,SI-70762,24-Oct-23,2820.92,470.15,2439, Children's Centres Support,190000              Facilities & Management Services,A,2023,7
86,Community and Housing,FREEWAYS TRUST LTD,1045135,25-Oct-23,3186.04,0,2474,Learning Disabilities Placemnt,321017              Nursing & Residential Care Homes,A,2023,7
87,Community and Housing,THAMES WATER UTILITIES LTD,900045059847SEP2,09-Oct-23,1068.09,0,10691,Riverside Res Home,370000              Utilities,A,2023,7
88,Community and Housing,CLOYDA LTD,1045415,25-Oct-23,4000,0,10762,Older People Placements - East,321017              Nursing & Residential Care Homes,A,2023,7
89,Community and Housing,CHEGWORTH N.H. (BAYSWIFT LTD),1045373,25-Oct-23,3056.4,0,11057,Learning Disabilities Placemnt,321000              Social Community Care Supplies & Services - Adult,A,2023,7
90,"Children, Schools and Family",REDACTED PERSONAL DATA,1034727,06-Oct-23,692.46,0,11130,Placements Under 18,321100              Social Community Care Supplies & Services - Children,R,2023,7
91,"Children, Schools and Family",REDACTED PERSONAL DATA,1039072,13-Oct-23,692.46,0,11130,Placements Under 18,321100              Social Community Care Supplies & Services - Children,R,2023,7
92,"Children, Schools and Family",REDACTED PERSONAL DATA,1043134,20-Oct-23,692.46,0,11130,Placements Under 18,321100              Social Community Care Supplies & Services - Children,R,2023,7
93,"Children, Schools and Family",REDACTED PERSONAL DATA,1048174,27-Oct-23,692.46,0,11130,Placements Under 18,321100              Social Community Care Supplies & Services - Children,R,2023,7
94,Community and Housing,Queens Court,1045407,25-Oct-23,3220.32,0,12747,Older People Placements - East,321017              Nursing & Residential Care Homes,A,2023,7
95,Community and Housing,ASHCROFT CARE SERVICES,1045372,25-Oct-23,6116.88,0,13287,Learning Disabilities Placemnt,321017              Nursing & Residential Care Homes,A,2023,7
96,Community and Housing,SHARE COMMUNITY LTD,241143,25-Oct-23,624,0,13487,Learning Disabilities Placemnt,321017              Nursing & Residential Care Homes,A,2023,7
97,Community and Housing,SHARE COMMUNITY LTD,241134,25-Oct-23,900,0,13487,Learning Disabilities Placemnt,321017              Nursing & Residential Care Homes,A,2023,7
98,Community and Housing,FITZROY SUPPORT,1045480,25-Oct-23,9010.16,0,13535,Learning Disabilities Placemnt,321017              Nursing & Residential Care Homes,A,2023,7
99,Community and Housing,CANTERBURY OAST TRUST LTD,1045146,25-Oct-23,2496.88,0,13566,Learning Disabilities Placemnt,321017              Nursing & Residential Care Homes,A,2023,7
100,Community and Housing,KENT AUTISTIC TRUST,1038175,12-Oct-23,7372.96,0,13670,Learning Disabilities Placemnt,321017              Nursing & Residential Care Homes,A,2023,7
101,Community and Housing,KENT AUTISTIC TRUST,1045455,25-Oct-23,8548,0,13670,Learning Disabilities Placemnt,321017              Nursing & Residential Care Homes,A,2023,7
102,Community and Housing,UNITED RESPONSE,VSMR861807-RH,24-Oct-23,4486.08,747.68,14616,Learning Disabilities Placemnt,321000              Social Community Care Supplies & Services - Adult,A,2023,7
103,Community and Housing,UNITED RESPONSE,VSMR861807-DHH,24-Oct-23,4169.52,694.92,14616,Learning Disabilities Placemnt,321000              Social Community Care Supplies & Services - Adult,A,2023,7
104,Community and Housing,UNITED RESPONSE,VSMR861807-HM,24-Oct-23,4960.9,826.82,14616,Learning Disabilities Placemnt,321000              Social Community Care Supplies & Services - Adult,A,2023,7
105,Community and Housing,UNITED RESPONSE,VSMR861807-BS,24-Oct-23,4433.38,738.9,14616,Learning Disabilities Placemnt,321000              Social Community Care Supplies & Services - Adult,A,2023,7
106,Community and Housing,UNITED RESPONSE,VSMR861807-CFW,24-Oct-23,5171.9,861.98,14616,Learning Disabilities Placemnt,321000              Social Community Care Supplies & Services - Adult,A,2023,7
107,Community and Housing,UNITED RESPONSE,VSMR863065BA,24-Oct-23,5248.99,874.83,14616,Learning Disabilities Placemnt,321000              Social Community Care Supplies & Services - Adult,A,2023,7
108,Community and Housing,UNITED RESPONSE,VSMR863065BO,24-Oct-23,5248.99,874.83,14616,Learning Disabilities Placemnt,321000              Social Community Care Supplies & Services - Adult,A,2023,7
109,Community and Housing,UNITED RESPONSE,VSMR863065ST,24-Oct-23,5248.99,874.83,14616,Learning Disabilities Placemnt,321000              Social Community Care Supplies & Services - Adult,A,2023,7
110,Community and Housing,UNITED RESPONSE,VSMR863065SV,24-Oct-23,5248.99,874.83,14616,Learning Disabilities Placemnt,321000              Social Community Care Supplies & Services - Adult,A,2023,7
111,Community and Housing,UNITED RESPONSE,VSMR863065RW,24-Oct-23,5248.99,874.83,14616,Learning Disabilities Placemnt,321000              Social Community Care Supplies & Services - Adult,A,2023,7
112,Community and Housing,UNITED RESPONSE,1045343,25-Oct-23,10348.8,1724.8,14616,Learning Disabilities Placemnt,321000              Social Community Care Supplies & Services - Adult,A,2023,7
113,Environment and Regeneration,THE WANDLE INDUSTRIAL MUSEUM,GRANT OCT 2023,10-Oct-23,2260,0,14885,Grants Programme,200000              Financial Services,A,2023,7
114,"Children, Schools and Family",CONNEVANS LTD,IN538124,25-Oct-23,1707.89,284.65,18972,Family Supp SafeGuard - Team,270000              Information Communication Technology,A,2023,7
115,Corporate Services,KINGSTON CORPORATION,M06LEGAL23/24',10-Oct-23,11375,0,21573,SLLP Client Income,180000              Environmental Services,A,2023,7
116,Environment and Regeneration,KINGSTON CORPORATION,37616015,17-Oct-23,32551.53,0,21573,Garden Waste Service,180000              Environmental Services,A,2023,7
117,Environment and Regeneration,KINGSTON CORPORATION,37616007,17-Oct-23,7665.92,0,21573,Food Waste Service,180000              Environmental Services,A,2023,7
118,Environment and Regeneration,KINGSTON CORPORATION,37610602,20-Oct-23,12800.51,0,21573,Recycling Activities,180000              Environmental Services,A,2023,7
119,Environment and Regeneration,KINGSTON CORPORATION,37610645,20-Oct-23,12251.75,0,21573,Recycling Activities,180000              Environmental Services,A,2023,7
120,Environment and Regeneration,KINGSTON CORPORATION,37625510,20-Oct-23,26349.7,0,21573,Garden Waste Service,180000              Environmental Services,A,2023,7
121,Environment and Regeneration,KINGSTON CORPORATION,37625480,24-Oct-23,11653.14,0,21573,Recycling Activities,180000              Environmental Services,A,2023,7
122,Corporate Services,KINGSTON CORPORATION,37616155,25-Oct-23,3903.12,264.02,21573,HR TRANSACTIONS,180000              Environmental Services,A,2023,7
123,Unassigned,KINGSTON CORPORATION,SURREYCOUNTYHALL,27-Oct-23,5000,0,21573,Corporate Services,180000              Environmental Services,A,2023,7
124,Community and Housing,NORTH EAST MITCHAM COMM ASSOC,ASC GRANT OCT 23,09-Oct-23,5707.59,0,27999,Grants to Voluntary Orgs,321100              Social Community Care Supplies & Services - Children,A,2023,7
125,Environment and Regeneration,MITCHAM COMMON CONSERVATORS,MP8,13-Oct-23,1968,0,28571,Parks & Recreation Grounds,190000              Facilities & Management Services,A,2023,7
126,Environment and Regeneration,MITCHAM COMMON CONSERVATORS,MERTON8,13-Oct-23,6355,0,28571,Parks & Recreation Grounds,190000              Facilities & Management Services,A,2023,7
127,Community and Housing,MERTON AND MORDEN GUILD,ASC GRANT OCT 23,03-Oct-23,20350.41,0,29632,Public Health Main,290000              Arts & Leisure Services,A,2023,7
128,Community and Housing,TRINITY COURT NURSING HOME,1045198,25-Oct-23,2861.6,0,30306,Older People Placements - East,321017              Nursing & Residential Care Homes,A,2023,7
129,Community and Housing,TRINITY COURT NURSING HOME,1045342,25-Oct-23,2985.6,0,30306,Older People Placements - East,321017              Nursing & Residential Care Homes,A,2023,7
130,Community and Housing,TRINITY COURT NURSING HOME,1045378,25-Oct-23,3063.24,0,30306,Older People Placements - East,321017              Nursing & Residential Care Homes,A,2023,7
131,Community and Housing,TRINITY COURT NURSING HOME,1045394,25-Oct-23,3355.92,0,30306,Phys/Sens Placements - East,321017              Nursing & Residential Care Homes,A,2023,7
132,Community and Housing,TRINITY COURT NURSING HOME,1045454,25-Oct-23,2985.6,0,30306,Older People Placements - East,321017              Nursing & Residential Care Homes,A,2023,7
133,Community and Housing,TRINITY COURT NURSING HOME,1045462,25-Oct-23,2861.6,0,30306,Older People Placements - East,321017              Nursing & Residential Care Homes,A,2023,7
134,Community and Housing,TRINITY COURT NURSING HOME,1045471,25-Oct-23,3063.24,0,30306,Older People Placements - East,321017              Nursing & Residential Care Homes,A,2023,7
135,Community and Housing,TRINITY COURT NURSING HOME,1045532,25-Oct-23,2985.6,0,30306,Older People Placements - East,321017              Nursing & Residential Care Homes,A,2023,7
136,Community and Housing,TRINITY COURT NURSING HOME,1045568,25-Oct-23,2876.32,0,30306,Older People Placements - East,321017              Nursing & Residential Care Homes,A,2023,7
137,Community and Housing,TRINITY COURT NURSING HOME,1045570,25-Oct-23,3149.6,0,30306,Older People Placements - East,321017              Nursing & Residential Care Homes,A,2023,7
138,Community and Housing,TRINITY COURT NURSING HOME,1045572,25-Oct-23,2521.12,0,30306,Older People Placements - East,321017              Nursing & Residential Care Homes,A,2023,7
139,Community and Housing,HAYDON PARK LODGE,1045290,25-Oct-23,3485,0,31434,Learning Disabilities Placemnt,321017              Nursing & Residential Care Homes,A,2023,7
140,Community and Housing,HAYDON PARK LODGE,1045316,25-Oct-23,4591.44,0,31434,Learning Disabilities Placemnt,321017              Nursing & Residential Care Homes,A,2023,7
141,Community and Housing,HAYDON PARK LODGE,1045401,25-Oct-23,5070.76,0,31434,Learning Disabilities Placemnt,321017              Nursing & Residential Care Homes,A,2023,7
142,Community and Housing,HAYDON PARK LODGE,1045442,25-Oct-23,4420.08,0,31434,Learning Disabilities Placemnt,321017              Nursing & Residential Care Homes,A,2023,7
143,Community and Housing,HAYDON PARK LODGE,1045484,25-Oct-23,7000,0,31434,Learning Disabilities Placemnt,321017              Nursing & Residential Care Homes,A,2023,7
144,Community and Housing,Barchester Healthcare Wimbledon Beaumont,1045237,25-Oct-23,4056,0,33384,Older People Placements - East,321017              Nursing & Residential Care Homes,A,2023,7
145,Environment and Regeneration,GILLETT AND JOHNSTON (CROYDON) LTD,29684,09-Oct-23,852,142,33547,TRAF & HWYS CAPITAL PROJECTS,"390000              Works - Construction, Repair & Maintenance",A,2023,7
146,Environment and Regeneration,SOUTH MITCHAM COMMUNITY ASS,GRANT OCT 23,10-Oct-23,22114,0,33871,Grants Programme,190000              Facilities & Management Services,A,2023,7
147,Community and Housing,COMFORT CARE SERVICES (UK) LTD,SU1102/1697,09-Oct-23,2380,0,34932,Mental Health Placements,321000              Social Community Care Supplies & Services - Adult,A,2023,7
148,Community and Housing,COMFORT CARE SERVICES (UK) LTD,SU0291/1187,09-Oct-23,2380,0,34932,Mental Health Placements,321000              Social Community Care Supplies & Services - Adult,A,2023,7
149,Community and Housing,COMFORT CARE SERVICES (UK) LTD,SU0210/1186,09-Oct-23,2380,0,34932,Mental Health Placements,321000              Social Community Care Supplies & Services - Adult,A,2023,7
150,Community and Housing,COMFORT CARE SERVICES (UK) LTD,SU0298/1133,16-Oct-23,2380,0,34932,Mental Health Placements,321000              Social Community Care Supplies & Services - Adult,A,2023,7
151,Community and Housing,COMFORT CARE SERVICES (UK) LTD,SU0201/1553,16-Oct-23,2380,0,34932,Mental Health Placements,321000              Social Community Care Supplies & Services - Adult,A,2023,7
152,Community and Housing,COMFORT CARE SERVICES (UK) LTD,SU0208/1698,16-Oct-23,2380,0,34932,Mental Health Placements,321000              Social Community Care Supplies & Services - Adult,A,2023,7
153,Community and Housing,COMFORT CARE SERVICES (UK) LTD,SU0294/1674,16-Oct-23,2380,0,34932,Mental Health Placements,321000              Social Community Care Supplies & Services - Adult,A,2023,7
154,Community and Housing,COMFORT CARE SERVICES (UK) LTD,SU0266/1645,09-Oct-23,2380,0,34932,Mental Health Placements,321000              Social Community Care Supplies & Services - Adult,A,2023,7
155,Community and Housing,COMFORT CARE SERVICES (UK) LTD,SU0146/1552,16-Oct-23,2380,0,34932,Mental Health Placements,321000              Social Community Care Supplies & Services - Adult,A,2023,7
156,Community and Housing,COMFORT CARE SERVICES (UK) LTD,SU0133/1185,16-Oct-23,2380,0,34932,Mental Health Placements,321000              Social Community Care Supplies & Services - Adult,A,2023,7
157,Community and Housing,COMFORT CARE SERVICES (UK) LTD,SU1051/1446-1447,23-Oct-23,3295,0,34932,Mental Health Placements,321000              Social Community Care Supplies & Services - Adult,A,2023,7
158,Community and Housing,COMFORT CARE SERVICES (UK) LTD,SU1041/915,25-Oct-23,1632.15,0,34932,Mental Health Placements,321000              Social Community Care Supplies & Services - Adult,A,2023,7
159,"Children, Schools and Family",URSULINE PREPARATORY SCHOOL,28174,20-Oct-23,9630,0,35109,Non-Delegated Statements,170000              Education,A,2023,7
160,Unassigned,ST MATTHEW'S C OF E PRIMARY,SCHOOLS 2324/7 A,06-Oct-23,87706.53,0,36050,Schools,170000              Education,A,2023,7
161,Community and Housing,AGE UK MERTON,ASC GRANT OCT 23,06-Oct-23,192241.2,0,37401,Grants to Voluntary Orgs,190000              Facilities & Management Services,A,2023,7
162,Community and Housing,JESMUND CARE LTD,1045521,25-Oct-23,3600,0,46751,Older People Placements - East,321017              Nursing & Residential Care Homes,A,2023,7
163,Environment and Regeneration,CAPITA BUSINESS SERVICES LTD,6004155466,16-Oct-23,2568,428,47966,Operational Running Costs,270000              Information Communication Technology,A,2023,7
164,Environment and Regeneration,CAPITA BUSINESS SERVICES LTD,6004155467,16-Oct-23,2568,428,47966,Operational Running Costs,270000              Information Communication Technology,A,2023,7
165,Environment and Regeneration,COLLIERS WOOD COMMUNITY ASSOC,OCT GRANT 2023,10-Oct-23,7060,0,48016,Grants Programme,200000              Financial Services,A,2023,7
166,Community and Housing,REDACTED PERSONAL DATA,1035323,10-Oct-23,6021.4,0,50448,Older People Placements - East,DIRECT PAYMENTS,R,2023,7
167,Community and Housing,LINKAGE COMMUNITY TR.LONG-STAY,1045433,25-Oct-23,3340.08,0,52552,Learning Disabilities Placemnt,321017              Nursing & Residential Care Homes,A,2023,7
168,Community and Housing,RUTLAND HOUSE CARE HOME,1045309,25-Oct-23,3156,0,53424,Older People Placements - East,321017              Nursing & Residential Care Homes,A,2023,7
169,Community and Housing,RUTLAND HOUSE CARE HOME,1045425,25-Oct-23,3200,0,53424,Older People Placements - East,321017              Nursing & Residential Care Homes,A,2023,7
170,Community and Housing,PARK LODGE,1045279,25-Oct-23,2895.68,0,56878,Learning Disabilities Placemnt,321017              Nursing & Residential Care Homes,A,2023,7
171,Community and Housing,PARK LODGE,1045376,25-Oct-23,3026.8,0,56878,Learning Disabilities Placemnt,321017              Nursing & Residential Care Homes,A,2023,7
172,Unassigned,CRICKET GREEN SCHOOL,SCHOOLS 2324/7 A,06-Oct-23,492154,0,57057,Schools,170000              Education,A,2023,7
173,Community and Housing,MERTON VOLUNTARY SERV COUNCIL,ASC GRANT OCT 23,24-Oct-23,54775,0,57560,Covid-19 Clinical E Vulnerable,190000              Facilities & Management Services,A,2023,7
174,Corporate Services,JADE SECURITY SERVICE LTD,6390,23-Oct-23,2737.15,456.19,57563,Cash Collections,200000              Financial Services,A,2023,7
175,Community and Housing,WALSINGHAM,1045098,25-Oct-23,4642.48,0,58466,Learning Disabilities Placemnt,321017              Nursing & Residential Care Homes,A,2023,7
176,Community and Housing,WALSINGHAM,1045248,25-Oct-23,5943.28,0,58466,Learning Disabilities Placemnt,321017              Nursing & Residential Care Homes,A,2023,7
177,Community and Housing,WALSINGHAM,1045305,25-Oct-23,7221.64,0,58466,Learning Disabilities Placemnt,321017              Nursing & Residential Care Homes,A,2023,7
178,Community and Housing,WALSINGHAM,1045382,25-Oct-23,7292.52,0,58466,Learning Disabilities Placemnt,321017              Nursing & Residential Care Homes,A,2023,7
179,Community and Housing,WALSINGHAM,1045431,25-Oct-23,5942.76,0,58466,Learning Disabilities Placemnt,321017              Nursing & Residential Care Homes,A,2023,7
180,Community and Housing,WALSINGHAM,1045488,25-Oct-23,7991.72,0,58466,Learning Disabilities Placemnt,321017              Nursing & Residential Care Homes,A,2023,7
181,Community and Housing,HATS GROUP LTD,225474,20-Oct-23,1993.82,332.3,58532,Learning Disabilities Placemnt,360000              Passenger Transport,A,2023,7
182,Community and Housing,CARE UK,1041159,18-Oct-23,35699.17,0,58851,Older People Placements - East,321017              Nursing & Residential Care Homes,A,2023,7
183,Community and Housing,CARE UK,1045130,25-Oct-23,3504.04,0,58851,Older People Placements - East,321017              Nursing & Residential Care Homes,A,2023,7
184,Community and Housing,CARE UK,1045134,25-Oct-23,4321.16,0,58851,Older People Placements - East,321017              Nursing & Residential Care Homes,A,2023,7
185,Community and Housing,CARE UK,1045180,25-Oct-23,4321.16,0,58851,Older People Placements - East,321017              Nursing & Residential Care Homes,A,2023,7
186,Community and Housing,CARE UK,1045202,25-Oct-23,4039.72,0,58851,Older People Placements - East,321017              Nursing & Residential Care Homes,A,2023,7
187,Community and Housing,CARE UK,1045223,25-Oct-23,4123,0,58851,Older People Placements - East,321017              Nursing & Residential Care Homes,A,2023,7
188,Community and Housing,CARE UK,1045227,25-Oct-23,4039.72,0,58851,Older People Placements - East,321017              Nursing & Residential Care Homes,A,2023,7
189,Community and Housing,CARE UK,1045285,25-Oct-23,4321.16,0,58851,Older People Placements - East,321017              Nursing & Residential Care Homes,A,2023,7
190,Community and Housing,CARE UK,1045381,25-Oct-23,4560,0,58851,Older People Placements - East,321017              Nursing & Residential Care Homes,A,2023,7
191,Community and Housing,CARE UK,1045429,25-Oct-23,4321.16,0,58851,Older People Placements - East,321017              Nursing & Residential Care Homes,A,2023,7
192,Community and Housing,CARE UK,1045464,25-Oct-23,4300.12,0,58851,Older People Placements - East,321017              Nursing & Residential Care Homes,A,2023,7
193,Community and Housing,CARE UK,1045478,25-Oct-23,4039.72,0,58851,Older People Placements - East,321017              Nursing & Residential Care Homes,A,2023,7
194,Community and Housing,CARE UK,1045514,25-Oct-23,4340,0,58851,Older People Placements - East,321017              Nursing & Residential Care Homes,A,2023,7
195,Community and Housing,CARE UK,1045518,25-Oct-23,3504.04,0,58851,Older People Placements - East,321017              Nursing & Residential Care Homes,A,2023,7
196,"Children, Schools and Family",ST MICHAEL'S FELLOWSHIP,C3092B/2100,04-Oct-23,7770,0,59560,Placements Under 18,280000              Legal Services,A,2023,7
197,"Children, Schools and Family",ST MICHAEL'S FELLOWSHIP,C3114/2100,20-Oct-23,8613,0,59560,Placements Under 18,280000              Legal Services,A,2023,7
198,Community and Housing,FRIENDS IN ST HELIER,ASC GRANT OCT 23,03-Oct-23,25068.33,0,61126,Public Health Main,200000              Financial Services,A,2023,7
199,Community and Housing,BARONS LODGE NURSING HOME,1045194,25-Oct-23,1716,0,62371,Mental Health Placements,321017              Nursing & Residential Care Homes,A,2023,7
200,Community and Housing,BARONS LODGE NURSING HOME,1045288,25-Oct-23,4360,0,62371,Older People Placements - East,321017              Nursing & Residential Care Homes,A,2023,7
201,Community and Housing,BARONS LODGE NURSING HOME,1045300,25-Oct-23,3321.16,0,62371,Older People Placements - East,321017              Nursing & Residential Care Homes,A,2023,7
202,Community and Housing,BARONS LODGE NURSING HOME,1045396,25-Oct-23,3502,0,62371,Mental Health Placements,321017              Nursing & Residential Care Homes,A,2023,7
203,Community and Housing,BARONS LODGE NURSING HOME,1045403,25-Oct-23,4200,0,62371,Mental Health Placements,321017              Nursing & Residential Care Homes,A,2023,7
204,Community and Housing,BARONS LODGE NURSING HOME,1045466,25-Oct-23,4360,0,62371,Mental Health Placements,321017              Nursing & Residential Care Homes,A,2023,7
205,Community and Housing,BARONS LODGE NURSING HOME,1045472,25-Oct-23,4360,0,62371,Older People Placements - East,321017              Nursing & Residential Care Homes,A,2023,7
206,Community and Housing,BARONS LODGE NURSING HOME,1045473,25-Oct-23,3807.2,0,62371,Learning Disabilities Placemnt,321017              Nursing & Residential Care Homes,A,2023,7
207,Community and Housing,BARONS LODGE NURSING HOME,1045489,25-Oct-23,4800,0,62371,Older People Placements - East,321017              Nursing & Residential Care Homes,A,2023,7
208,Community and Housing,BARONS LODGE NURSING HOME,1045509,25-Oct-23,3502,0,62371,Older People Placements - East,321017              Nursing & Residential Care Homes,A,2023,7
209,Community and Housing,ATTIC THEATRE COMPANY,ASC GRANT OCT 23,24-Oct-23,6419,0,62620,Public Health Main,190000              Facilities & Management Services,A,2023,7
210,Community and Housing,SANCTUARY CARE LTD,1045156,25-Oct-23,3117.52,0,63458,Learning Disabilities Placemnt,321017              Nursing & Residential Care Homes,A,2023,7
211,Community and Housing,THE REGARD PARTNERSHIP LTD,1038156,12-Oct-23,3880.8,0,63796,Learning Disabilities Placemnt,321017              Nursing & Residential Care Homes,A,2023,7
212,Community and Housing,THE REGARD PARTNERSHIP LTD,1038160,12-Oct-23,5760.72,0,63796,Learning Disabilities Placemnt,321017              Nursing & Residential Care Homes,A,2023,7
213,Community and Housing,THE REGARD PARTNERSHIP LTD,1038161,12-Oct-23,3430.28,0,63796,Learning Disabilities Placemnt,321017              Nursing & Residential Care Homes,A,2023,7
214,Community and Housing,THE REGARD PARTNERSHIP LTD,1038169,12-Oct-23,3645.32,0,63796,Learning Disabilities Placemnt,321017              Nursing & Residential Care Homes,A,2023,7
215,Community and Housing,THE REGARD PARTNERSHIP LTD,1038178,12-Oct-23,2916.2,0,63796,Learning Disabilities Placemnt,321017              Nursing & Residential Care Homes,A,2023,7
216,Community and Housing,THE REGARD PARTNERSHIP LTD,1045145,25-Oct-23,6220.72,0,63796,Learning Disabilities Placemnt,321017              Nursing & Residential Care Homes,A,2023,7
217,Community and Housing,THE REGARD PARTNERSHIP LTD,1045246,25-Oct-23,6595.72,0,63796,Learning Disabilities Placemnt,321017              Nursing & Residential Care Homes,A,2023,7
218,Community and Housing,THE REGARD PARTNERSHIP LTD,1045261,25-Oct-23,10504.92,0,63796,Learning Disabilities Placemnt,321017              Nursing & Residential Care Homes,A,2023,7
219,Community and Housing,THE REGARD PARTNERSHIP LTD,1045276,25-Oct-23,6255.04,0,63796,Learning Disabilities Placemnt,321017              Nursing & Residential Care Homes,A,2023,7
220,Community and Housing,THE REGARD PARTNERSHIP LTD,1045385,25-Oct-23,6647.28,0,63796,Learning Disabilities Placemnt,321017              Nursing & Residential Care Homes,A,2023,7
221,Community and Housing,THE REGARD PARTNERSHIP LTD,1045490,25-Oct-23,5317.84,0,63796,Learning Disabilities Placemnt,321017              Nursing & Residential Care Homes,A,2023,7
222,Corporate Services,SW LONDON AND ST GEORGES MH NHS,P0071419,30-Oct-23,1129.62,0,64811,SLLP - Disbursements,310000              Healthcare,A,2023,7
223,Community and Housing,NEEDHAM AND SAUNDERS,2612,12-Oct-23,995,0,68089,Occupational Therapy,"390000              Works - Construction, Repair & Maintenance",A,2023,7
224,Community and Housing,NAS SERVICES LIMITED,ASU4399710,11-Oct-23,4546.8,757.8,68929,Mental Health Placements,321100              Social Community Care Supplies & Services - Children,A,2023,7
225,Community and Housing,NAS SERVICES LIMITED,ACR4400548,11-Oct-23,1893.6,315.6,68929,Mental Health Placements,321100              Social Community Care Supplies & Services - Children,A,2023,7
226,Community and Housing,NAS SERVICES LIMITED,ASU4400913,31-Oct-23,4546.8,757.8,68929,Mental Health Placements,321100              Social Community Care Supplies & Services - Children,A,2023,7
227,Community and Housing,BRANDON TRUST,1045152,25-Oct-23,4398.6,0,76126,Learning Disabilities Placemnt,321017              Nursing & Residential Care Homes,A,2023,7
228,Unassigned,LONDON BOROUGH OF SUTTON,BAILIFF SEP 2023,05-Oct-23,111916.93,0,76615,Corporate Services,OLA,A,2023,7
229,Unassigned,POST OFFICE LTD,MERTON23/24PO15,02-Oct-23,19514.3,0,77066,Adults Social Care,200000              Financial Services,A,2023,7
230,Unassigned,POST OFFICE LTD,MERTON23/24PO16,13-Oct-23,16140.84,0,77066,Adults Social Care,200000              Financial Services,A,2023,7
231,Unassigned,POST OFFICE LTD, MERTON23/24PO17,26-Oct-23,16933.6,0,77066,Adults Social Care,200000              Financial Services,A,2023,7
232,Community and Housing,ABBEY HOUSE RESIDENTIAL HOMES,1038151,12-Oct-23,2932.5,0,78937,Mental Health Placements,321017              Nursing & Residential Care Homes,A,2023,7
233,Community and Housing,ABBEY HOUSE RESIDENTIAL HOMES,1045153,25-Oct-23,4774,0,78937,Older People Placements - East,321017              Nursing & Residential Care Homes,A,2023,7
234,Community and Housing,ABBEY HOUSE RESIDENTIAL HOMES,1045177,25-Oct-23,4774,0,78937,Older People Placements - East,321017              Nursing & Residential Care Homes,A,2023,7
235,Community and Housing,ABBEY HOUSE RESIDENTIAL HOMES,1045179,25-Oct-23,5989.2,0,78937,Mental Health Placements,321017              Nursing & Residential Care Homes,A,2023,7
236,Unassigned,TRANSPORT FOR LONDON,MERTONQ2-2023,24-Oct-23,287408.17,0,79197,Capital,PRECEPT,A,2023,7
237,"Children, Schools and Family",GLS EDUCATIONAL SUPPLIES LTD,98587308,06-Oct-23,869.33,144.89,79201,Brightwell,170000              Education,A,2023,7
238,Community and Housing,REDACTED PERSONAL DATA,1035118,10-Oct-23,6316.16,0,81639,Older People Placements - East,DIRECT PAYMENTS,R,2023,7
239,Corporate Services,REDACTED PERSONAL DATA,INVJD209,11-Oct-23,1050,175,83383,SLLP - Disbursements,280000              Legal Services,R,2023,7
240,Unassigned,MALMESBURY PRIMARY SCHOOL,SCHOOLS 2324/7 A,06-Oct-23,253301.44,0,83593,Schools,170000              Education,A,2023,7
241,Environment and Regeneration,NEWSQUEST MEDIA GROUP LTD,43648750,18-Oct-23,693.22,115.54,85566,Development Control,190000              Facilities & Management Services,A,2023,7
242,Capital,NEWSQUEST MEDIA GROUP LTD,43663909,23-Oct-23,2527.85,421.31,85566,Highways & Footways,190000              Facilities & Management Services,A,2023,7
243,Environment and Regeneration,NEWSQUEST MEDIA GROUP LTD,43711269,30-Oct-23,3442.18,573.7,85566,CPZ Implementation & Consult,190000              Facilities & Management Services,A,2023,7
244,Environment and Regeneration,NEWSQUEST MEDIA GROUP LTD,43246472,25-Oct-23,549.79,91.63,85566,Development Control,190000              Facilities & Management Services,A,2023,7
245,Community and Housing,NEWSQUEST MEDIA GROUP LTD,43467066,25-Oct-23,1147.39,191.23,85566,Hsg. Env. Health (Enforcement),190000              Facilities & Management Services,A,2023,7
246,Community and Housing,NEWSQUEST MEDIA GROUP LTD,43470014,25-Oct-23,1147.39,191.23,85566,Hsg. Env. Health (Enforcement),190000              Facilities & Management Services,A,2023,7
247,"Children, Schools and Family",LONDON GRID FOR LEARNING TRUST,2020017058,19-Oct-23,1170,195,90449, Schools IT Support,270000              Information Communication Technology,A,2023,7
248,"Children, Schools and Family",LONDON GRID FOR LEARNING TRUST,2020017484,24-Oct-23,1080,180,90449, Schools IT Support,270000              Information Communication Technology,A,2023,7
249,"Children, Schools and Family",LONDON GRID FOR LEARNING TRUST,2020017483,24-Oct-23,558,93,90449, Schools IT Support,270000              Information Communication Technology,A,2023,7
250,"Children, Schools and Family",LONDON GRID FOR LEARNING TRUST,2020017485,24-Oct-23,1438.8,239.8,90449, Schools IT Support,270000              Information Communication Technology,A,2023,7
251,Community and Housing,SUPREME CARE SERVICES LIMITED,40084,20-Oct-23,3244.64,0,91840,Older People Placements - East,321000              Social Community Care Supplies & Services - Adult,A,2023,7
252,Community and Housing,SUPREME CARE SERVICES LIMITED,40086,23-Oct-23,3014.93,0,91840,Older People Placements - East,321000              Social Community Care Supplies & Services - Adult,A,2023,7
253,Community and Housing,SUPREME CARE SERVICES LIMITED,40085,23-Oct-23,2320.64,0,91840,Older People Placements - East,321000              Social Community Care Supplies & Services - Adult,A,2023,7
254,Community and Housing,SUPREME CARE SERVICES LIMITED,40090,23-Oct-23,1160.32,0,91840,Older People Placements - East,321000              Social Community Care Supplies & Services - Adult,A,2023,7
255,Community and Housing,SUPREME CARE SERVICES LIMITED,40088,23-Oct-23,2288.63,0,91840,Older People Placements - East,321000              Social Community Care Supplies & Services - Adult,A,2023,7
256,Community and Housing,THE GARWOOD FOUNDATION,MWDFOCT23,20-Oct-23,1180,0,92268,Older People Placements - East,321000              Social Community Care Supplies & Services - Adult,A,2023,7
257,Community and Housing,Allied Healthcare,2641069862A/25,05-Oct-23,1133.34,0,92896,Phys/Sens Placements - East,321000              Social Community Care Supplies & Services - Adult,A,2023,7
258,Community and Housing,Allied Healthcare,2641069862A/37,05-Oct-23,990.82,0,92896,Older People Placements - East,321000              Social Community Care Supplies & Services - Adult,A,2023,7
259,Community and Housing,Allied Healthcare,2641069862A/38,05-Oct-23,2329.4,0,92896,Older People Placements - East,321000              Social Community Care Supplies & Services - Adult,A,2023,7
260,Community and Housing,Allied Healthcare,2641069862A/15,05-Oct-23,820.35,0,92896,Older People Placements - East,321000              Social Community Care Supplies & Services - Adult,A,2023,7
261,Community and Housing,Allied Healthcare,2641069862A/21,05-Oct-23,626.56,0,92896,Learning Disabilities Placemnt,321000              Social Community Care Supplies & Services - Adult,A,2023,7
262,Community and Housing,Allied Healthcare,2641069862A/5,05-Oct-23,1170.58,0,92896,Older People Placements - East,321000              Social Community Care Supplies & Services - Adult,A,2023,7
263,Community and Housing,Allied Healthcare,2641069862A/50,05-Oct-23,815.05,0,92896,Older People Placements - East,321000              Social Community Care Supplies & Services - Adult,A,2023,7
264,Community and Housing,Allied Healthcare,2641069862A/14,05-Oct-23,697.66,0,92896,Older People Placements - East,321000              Social Community Care Supplies & Services - Adult,A,2023,7
265,Community and Housing,Allied Healthcare,2641069862A/1,05-Oct-23,537.96,0,92896,Older People Placements - East,321000              Social Community Care Supplies & Services - Adult,A,2023,7
266,Community and Housing,Allied Healthcare,2641069862A/28,05-Oct-23,3087.08,0,92896,Older People Placements - East,321000              Social Community Care Supplies & Services - Adult,A,2023,7
267,Community and Housing,Allied Healthcare,2641069862A/17,05-Oct-23,1843.61,0,92896,Learning Disabilities Placemnt,321000              Social Community Care Supplies & Services - Adult,A,2023,7
268,Community and Housing,Allied Healthcare,2641069862A/31,05-Oct-23,896.66,0,92896,Older People Placements - East,321000              Social Community Care Supplies & Services - Adult,A,2023,7
269,Community and Housing,Allied Healthcare,2641069862A/19,05-Oct-23,2161.31,0,92896,Older People Placements - East,321000              Social Community Care Supplies & Services - Adult,A,2023,7
270,Community and Housing,Allied Healthcare,2641069862A/44,05-Oct-23,3155.08,0,92896,Older People Placements - East,321000              Social Community Care Supplies & Services - Adult,A,2023,7
271,Community and Housing,Allied Healthcare,2641069862A/32,05-Oct-23,777.09,0,92896,Older People Placements - East,321000              Social Community Care Supplies & Services - Adult,A,2023,7
272,Community and Housing,Allied Healthcare,2641069862A/9,05-Oct-23,1514.08,0,92896,Older People Placements - East,321000              Social Community Care Supplies & Services - Adult,A,2023,7
273,Community and Housing,Allied Healthcare,2641069862A/40,05-Oct-23,2747.09,0,92896,Older People Placements - East,321000              Social Community Care Supplies & Services - Adult,A,2023,7
274,Community and Housing,Allied Healthcare,2641069862A/24,05-Oct-23,2520.76,0,92896,Phys/Sens Placements - East,321000              Social Community Care Supplies & Services - Adult,A,2023,7
275,Community and Housing,Allied Healthcare,2641069862A/49,05-Oct-23,548.34,0,92896,Older People Placements - East,321000              Social Community Care Supplies & Services - Adult,A,2023,7
276,Community and Housing,Allied Healthcare,2641069862A/10,05-Oct-23,579.32,0,92896,Older People Placements - East,321000              Social Community Care Supplies & Services - Adult,A,2023,7
277,Community and Housing,Allied Healthcare,2641069862A/35,05-Oct-23,800.84,0,92896,Older People Placements - East,321000              Social Community Care Supplies & Services - Adult,A,2023,7
278,Community and Housing,Allied Healthcare,2641069862A/12,05-Oct-23,821.5,0,92896,Older People Placements - East,321000              Social Community Care Supplies & Services - Adult,A,2023,7
279,Community and Housing,Allied Healthcare,2641069862A/6,05-Oct-23,3436.63,0,92896,Older People Placements - East,321000              Social Community Care Supplies & Services - Adult,A,2023,7
280,Community and Housing,Allied Healthcare,2641069862A/43,05-Oct-23,3110.37,0,92896,Older People Placements - East,321000              Social Community Care Supplies & Services - Adult,A,2023,7
281,Community and Housing,Allied Healthcare,2641069862A/48,05-Oct-23,896.55,0,92896,Older People Placements - East,321000              Social Community Care Supplies & Services - Adult,A,2023,7
282,Community and Housing,Allied Healthcare,2641069862A/39,05-Oct-23,717.03,0,92896,Older People Placements - East,321000              Social Community Care Supplies & Services - Adult,A,2023,7
283,Community and Housing,Allied Healthcare,2641069862A/7,05-Oct-23,2351.54,0,92896,Older People Placements - East,321000              Social Community Care Supplies & Services - Adult,A,2023,7
284,Community and Housing,Allied Healthcare,2641069862A/4,05-Oct-23,941.49,0,92896,Older People Placements - East,321000              Social Community Care Supplies & Services - Adult,A,2023,7
285,Community and Housing,Allied Healthcare,RF/264/1070569,05-Oct-23,719.13,0,92896,Older People Placements - East,321000              Social Community Care Supplies & Services - Adult,A,2023,7
286,Community and Housing,Allied Healthcare,RF/264/1070570,05-Oct-23,583.29,0,92896,Older People Placements - East,321000              Social Community Care Supplies & Services - Adult,A,2023,7
287,Community and Housing,Allied Healthcare,RF/264/1069863,13-Oct-23,566.52,0,92896,Learning Disabilities Placemnt,321000              Social Community Care Supplies & Services - Adult,A,2023,7
288,Community and Housing,Allied Healthcare,2641070747A/29,25-Oct-23,1135.25,0,92896,Phys/Sens Placements - East,321000              Social Community Care Supplies & Services - Adult,A,2023,7
289,Community and Housing,Allied Healthcare,2641070747A/42,25-Oct-23,2238.86,0,92896,Older People Placements - East,321000              Social Community Care Supplies & Services - Adult,A,2023,7
290,Community and Housing,Allied Healthcare,2641070747A/19,25-Oct-23,803.74,0,92896,Older People Placements - East,321000              Social Community Care Supplies & Services - Adult,A,2023,7
291,Community and Housing,Allied Healthcare,2641070747A/25,25-Oct-23,631.91,0,92896,Learning Disabilities Placemnt,321000              Social Community Care Supplies & Services - Adult,A,2023,7
292,Community and Housing,Allied Healthcare,2641070747A/49,25-Oct-23,1462.27,0,92896,Older People Placements - East,321000              Social Community Care Supplies & Services - Adult,A,2023,7
293,Community and Housing,Allied Healthcare,2641070747A/9,25-Oct-23,1144.48,0,92896,Older People Placements - East,321000              Social Community Care Supplies & Services - Adult,A,2023,7
294,Community and Housing,Allied Healthcare,2641070747A/53,25-Oct-23,850.16,0,92896,Older People Placements - East,321000              Social Community Care Supplies & Services - Adult,A,2023,7
295,Community and Housing,Allied Healthcare,2641070747A/18,25-Oct-23,852.49,0,92896,Older People Placements - East,321000              Social Community Care Supplies & Services - Adult,A,2023,7
296,Community and Housing,Allied Healthcare,2641070747A/2,25-Oct-23,841.19,0,92896,Older People Placements - East,321000              Social Community Care Supplies & Services - Adult,A,2023,7
297,Community and Housing,Allied Healthcare,2641070747A/38,25-Oct-23,808.18,0,92896,Older People Placements - East,321000              Social Community Care Supplies & Services - Adult,A,2023,7
298,Community and Housing,Allied Healthcare,2641070747A/6,25-Oct-23,1030.54,0,92896,Older People Placements - East,321000              Social Community Care Supplies & Services - Adult,A,2023,7
299,Community and Housing,Allied Healthcare,2641070747A/40,25-Oct-23,1471.02,0,92896,Older People Placements - East,321000              Social Community Care Supplies & Services - Adult,A,2023,7
300,Community and Housing,Allied Healthcare,2641070747A/33,25-Oct-23,3140.54,0,92896,Older People Placements - East,321000              Social Community Care Supplies & Services - Adult,A,2023,7
301,Community and Housing,Allied Healthcare,2641070747A/21,25-Oct-23,1847.72,0,92896,Learning Disabilities Placemnt,321000              Social Community Care Supplies & Services - Adult,A,2023,7
302,Community and Housing,Allied Healthcare,2641070747A/35,25-Oct-23,906.17,0,92896,Older People Placements - East,321000              Social Community Care Supplies & Services - Adult,A,2023,7
303,Community and Housing,Allied Healthcare,2641070747A/23,25-Oct-23,2900.28,0,92896,Older People Placements - East,321000              Social Community Care Supplies & Services - Adult,A,2023,7
304,Community and Housing,Allied Healthcare,2641070747A/48,25-Oct-23,3105.21,0,92896,Older People Placements - East,321000              Social Community Care Supplies & Services - Adult,A,2023,7
305,Community and Housing,Allied Healthcare,2641070747A/36,25-Oct-23,801.69,0,92896,Older People Placements - East,321000              Social Community Care Supplies & Services - Adult,A,2023,7
306,Community and Housing,Allied Healthcare,2641070747A/13,25-Oct-23,1530.51,0,92896,Older People Placements - East,321000              Social Community Care Supplies & Services - Adult,A,2023,7
307,Community and Housing,Allied Healthcare,2641070747A/44,25-Oct-23,2742.3,0,92896,Older People Placements - East,321000              Social Community Care Supplies & Services - Adult,A,2023,7
308,Community and Housing,Allied Healthcare,2641070747A/28,25-Oct-23,2518.9,0,92896,Phys/Sens Placements - East,321000              Social Community Care Supplies & Services - Adult,A,2023,7
309,Community and Housing,Allied Healthcare,2641070747A/32,25-Oct-23,601.01,0,92896,Older People Placements - East,321000              Social Community Care Supplies & Services - Adult,A,2023,7
310,Community and Housing,Allied Healthcare,2641070747A/14,25-Oct-23,582.38,0,92896,Older People Placements - East,321000              Social Community Care Supplies & Services - Adult,A,2023,7
311,Community and Housing,Allied Healthcare,2641070747A/39,25-Oct-23,810.44,0,92896,Older People Placements - East,321000              Social Community Care Supplies & Services - Adult,A,2023,7
312,Community and Housing,Allied Healthcare,2641070747A/16,25-Oct-23,834.18,0,92896,Older People Placements - East,321000              Social Community Care Supplies & Services - Adult,A,2023,7
313,Community and Housing,Allied Healthcare,2641070747A/10,25-Oct-23,3294.56,0,92896,Older People Placements - East,321000              Social Community Care Supplies & Services - Adult,A,2023,7
314,Community and Housing,Allied Healthcare,2641070747A/47,25-Oct-23,3131.41,0,92896,Older People Placements - East,321000              Social Community Care Supplies & Services - Adult,A,2023,7
315,Community and Housing,Allied Healthcare,2641070747A/52,25-Oct-23,913.83,0,92896,Older People Placements - East,321000              Social Community Care Supplies & Services - Adult,A,2023,7
316,Community and Housing,Allied Healthcare,2641070747A/11,25-Oct-23,2376.8,0,92896,Older People Placements - East,321000              Social Community Care Supplies & Services - Adult,A,2023,7
317,Community and Housing,Allied Healthcare,2641070747A/8,25-Oct-23,997.62,0,92896,Older People Placements - East,321000              Social Community Care Supplies & Services - Adult,A,2023,7
318,Community and Housing,CARE MANAGEMENT GROUP,613000687,04-Oct-23,6353.48,0,93533,Learning Disabilities Placemnt,321017              Nursing & Residential Care Homes,A,2023,7
319,Community and Housing,CARE MANAGEMENT GROUP,397000778,04-Oct-23,4961.72,0,93533,Learning Disabilities Placemnt,321017              Nursing & Residential Care Homes,A,2023,7
320,Community and Housing,CARE MANAGEMENT GROUP,1038154,12-Oct-23,3736.04,0,93533,Learning Disabilities Placemnt,321017              Nursing & Residential Care Homes,A,2023,7
321,Community and Housing,CARE MANAGEMENT GROUP,1038162,12-Oct-23,3532.2,0,93533,Learning Disabilities Placemnt,321017              Nursing & Residential Care Homes,A,2023,7
322,Community and Housing,CARE MANAGEMENT GROUP,1038171,12-Oct-23,4588.64,0,93533,Learning Disabilities Placemnt,321017              Nursing & Residential Care Homes,A,2023,7
323,Community and Housing,CARE MANAGEMENT GROUP,255001518,13-Oct-23,8725.64,0,93533,Learning Disabilities Placemnt,321017              Nursing & Residential Care Homes,A,2023,7
324,Community and Housing,CARE MANAGEMENT GROUP,255001519,17-Oct-23,5191.76,0,93533,Learning Disabilities Placemnt,321017              Nursing & Residential Care Homes,A,2023,7
325,Community and Housing,CARE MANAGEMENT GROUP,397000780,20-Oct-23,2952.32,0,93533,Learning Disabilities Placemnt,321017              Nursing & Residential Care Homes,A,2023,7
326,Community and Housing,CARE MANAGEMENT GROUP,1045113,25-Oct-23,21193.71,0,93533,Learning Disabilities Placemnt,321017              Nursing & Residential Care Homes,A,2023,7
327,Community and Housing,CARE MANAGEMENT GROUP,1045138,25-Oct-23,4593.88,0,93533,Mental Health Placements,321017              Nursing & Residential Care Homes,A,2023,7
328,Community and Housing,CARE MANAGEMENT GROUP,1045206,25-Oct-23,6812.92,0,93533,Learning Disabilities Placemnt,321017              Nursing & Residential Care Homes,A,2023,7
329,Community and Housing,CARE MANAGEMENT GROUP,1045314,25-Oct-23,6441.2,0,93533,Learning Disabilities Placemnt,321017              Nursing & Residential Care Homes,A,2023,7
330,Community and Housing,CARE MANAGEMENT GROUP,1045363,25-Oct-23,8733.64,0,93533,Phys/Sens Placements - East,321017              Nursing & Residential Care Homes,A,2023,7
331,Community and Housing,CARE MANAGEMENT GROUP,1045398,25-Oct-23,8367.64,0,93533,Learning Disabilities Placemnt,321017              Nursing & Residential Care Homes,A,2023,7
332,Community and Housing,CARE MANAGEMENT GROUP,1045527,25-Oct-23,11774.29,0,93533,Learning Disabilities Placemnt,321017              Nursing & Residential Care Homes,A,2023,7
333,Community and Housing,CARE MANAGEMENT GROUP,613000693,30-Oct-23,6353.48,0,93533,Learning Disabilities Placemnt,321017              Nursing & Residential Care Homes,A,2023,7
334,Community and Housing,CARE MANAGEMENT GROUP,397000781,30-Oct-23,5383.48,0,93533,Learning Disabilities Placemnt,321017              Nursing & Residential Care Homes,A,2023,7
335,Community and Housing,A AND R CARE LTD,1038157,12-Oct-23,4481.32,0,94357,Older People Placements - East,321017              Nursing & Residential Care Homes,A,2023,7
336,Community and Housing,A AND R CARE LTD,1045137,25-Oct-23,4121.16,0,94357,Older People Placements - East,321017              Nursing & Residential Care Homes,A,2023,7
337,Community and Housing,A AND R CARE LTD,1045197,25-Oct-23,3300,0,94357,Older People Placements - East,321017              Nursing & Residential Care Homes,A,2023,7
338,Community and Housing,A AND R CARE LTD,1045247,25-Oct-23,3921.16,0,94357,Older People Placements - East,321017              Nursing & Residential Care Homes,A,2023,7
339,Community and Housing,A AND R CARE LTD,1045264,25-Oct-23,4521.16,0,94357,Mental Health Placements,321017              Nursing & Residential Care Homes,A,2023,7
340,Community and Housing,A AND R CARE LTD,1045323,25-Oct-23,3763.24,0,94357,Older People Placements - East,321017              Nursing & Residential Care Homes,A,2023,7
341,Community and Housing,A AND R CARE LTD,1045456,25-Oct-23,3400,0,94357,Older People Placements - East,321017              Nursing & Residential Care Homes,A,2023,7
342,Community and Housing,A AND R CARE LTD,1045494,25-Oct-23,4800,0,94357,Older People Placements - East,321017              Nursing & Residential Care Homes,A,2023,7
343,Community and Housing,A AND R CARE LTD,1045559,25-Oct-23,3824.32,0,94357,Phys/Sens Placements - East,321017              Nursing & Residential Care Homes,A,2023,7
344,Community and Housing,A AND R CARE LTD,1045562,25-Oct-23,4200,0,94357,Older People Placements - East,321017              Nursing & Residential Care Homes,A,2023,7
345,Corporate Services,JCDECAUX UNITED KINGDOM,SF/I236623,02-Oct-23,558,93,94678,Marketing & Communication,190000              Facilities & Management Services,A,2023,7
346,Community and Housing,CARERS SUPPORT MERTON,ASC GRANT OCT 23,04-Oct-23,160478.75,0,95795,Covid-19 Clinical E Vulnerable,290000              Arts & Leisure Services,A,2023,7
347,"Children, Schools and Family",CARERS SUPPORT MERTON,465,10-Oct-23,18750,0,95795, Centralised Commiss Services,290000              Arts & Leisure Services,A,2023,7
348,Community and Housing,COMMONSIDE COMMUNITY DEV TRUST,ASC GRANT OCT 23,03-Oct-23,23762.34,0,95839,Public Health Main,321000              Social Community Care Supplies & Services - Adult,A,2023,7
349,Community and Housing,COMMONSIDE COMMUNITY DEV TRUST,10126,30-Oct-23,3500,0,95839,"PH - Ready, Steady Cook",321000              Social Community Care Supplies & Services - Adult,A,2023,7
350,Community and Housing,Aspens Charities Ltd,39871,13-Oct-23,18309.2,0,96019,Learning Disabilities Placemnt,321017              Nursing & Residential Care Homes,A,2023,7
351,Community and Housing,Aspens Charities Ltd,39860,13-Oct-23,18309.2,0,96019,Learning Disabilities Placemnt,321017              Nursing & Residential Care Homes,A,2023,7
352,Community and Housing,Aspens Charities Ltd,38536,19-Oct-23,18309.2,0,96019,Learning Disabilities Placemnt,321017              Nursing & Residential Care Homes,A,2023,7
353,Community and Housing,Aspens Charities Ltd,1045340,25-Oct-23,8909.92,0,96019,Learning Disabilities Placemnt,321017              Nursing & Residential Care Homes,A,2023,7
354,Community and Housing,REDACTED PERSONAL DATA,1034982,10-Oct-23,5192,0,96859,Learning Disabilities Placemnt,DIRECT PAYMENTS,R,2023,7
355,Community and Housing,THE ABBEYFIELD SOCIETY,1045474,25-Oct-23,4000,0,97539,Older People Placements - East,321000              Social Community Care Supplies & Services - Adult,A,2023,7
356,Community and Housing,EL-SHADDAI,1039563,16-Oct-23,1141.52,0,97709,MH Housing Support Placements,321000              Social Community Care Supplies & Services - Adult,A,2023,7
357,Community and Housing,EL-SHADDAI,1039581,16-Oct-23,847.04,0,97709,Phys/Sens Placements - East,321000              Social Community Care Supplies & Services - Adult,A,2023,7
358,Community and Housing,EL-SHADDAI,1039586,16-Oct-23,1426.8,0,97709,Learning Disabilities Placemnt,321000              Social Community Care Supplies & Services - Adult,A,2023,7
359,Community and Housing,EL-SHADDAI,1039591,16-Oct-23,1141.52,0,97709,Learning Disabilities Placemnt,321000              Social Community Care Supplies & Services - Adult,A,2023,7
360,Community and Housing,Rosenmanor Ltd,1045334,25-Oct-23,2924.24,0,97808,Mental Health Placements,321017              Nursing & Residential Care Homes,A,2023,7
361,Community and Housing,MERTON COMMUNITY TRANSPORT,ASC GRANT OCT 23,06-Oct-23,24827.71,0,98164,Com Care Placement Contingency,360000              Passenger Transport,A,2023,7
362,Community and Housing,MERTON COMMUNITY TRANSPORT,17343,13-Oct-23,1716,286,98164,Learning Disabilities Placemnt,360000              Passenger Transport,A,2023,7
363,Community and Housing,MERTON COMMUNITY TRANSPORT,17351,13-Oct-23,1209.6,201.6,98164,Learning Disabilities Placemnt,360000              Passenger Transport,A,2023,7
364,Unassigned,BEECHOLME PRIMARY ACADEMY,SCHOOLS 2324/7 A,06-Oct-23,27730.1,0,98168,Schools,170000              Education,A,2023,7
365,"Children, Schools and Family",Evolve Housing + Support,3410,13-Oct-23,1603.65,0,98536,UASC Care Leavers Over 18,321000              Social Community Care Supplies & Services - Adult,A,2023,7
366,Community and Housing,ROYAL MENCAP SOCIETY,3779206,24-Oct-23,2290.96,0,98713,Learning Disabilities Placemnt,321000              Social Community Care Supplies & Services - Adult,A,2023,7
367,Community and Housing,ROYAL MENCAP SOCIETY,3766406,24-Oct-23,2613.96,0,98713,Learning Disabilities Placemnt,321000              Social Community Care Supplies & Services - Adult,A,2023,7
368,Community and Housing,ROYAL MENCAP SOCIETY,3766405,30-Oct-23,2290.96,0,98713,Learning Disabilities Placemnt,321000              Social Community Care Supplies & Services - Adult,A,2023,7
369,Community and Housing,ROYAL MENCAP SOCIETY,3784601,30-Oct-23,2290.96,0,98713,Learning Disabilities Placemnt,321000              Social Community Care Supplies & Services - Adult,A,2023,7
370,Community and Housing,ABILITY HOUSING ASSOCIATION,12653,16-Oct-23,92447.15,0,99199,Supporting People (HRS),321000              Social Community Care Supplies & Services - Adult,A,2023,7
371,Capital,AQUANEED LIMITED,SI23159,19-Oct-23,8881.93,0,100408,Disabled Facilities Grant,200000              Financial Services,A,2023,7
372,Unassigned,WEST WIMBLEDON PRIMARY SCHOOL,SCHOOLS 2324/7 A,06-Oct-23,252705,0,101674,Schools,170000              Education,A,2023,7
373,Community and Housing,HILLDALE AND NORTHVIEW,1045293,25-Oct-23,2072.52,0,103592,Older People Placements - East,321000              Social Community Care Supplies & Services - Adult,A,2023,7
374,Community and Housing,BUPA CARE HOMES,1045157,25-Oct-23,3154.12,0,105027,Older People Placements - East,321017              Nursing & Residential Care Homes,A,2023,7
375,Community and Housing,BUPA CARE HOMES,1045167,25-Oct-23,3289.24,0,105027,Older People Placements - East,321017              Nursing & Residential Care Homes,A,2023,7
376,Community and Housing,BUPA CARE HOMES,1045181,25-Oct-23,3289.24,0,105027,Older People Placements - East,321017              Nursing & Residential Care Homes,A,2023,7
377,Community and Housing,BUPA CARE HOMES,1045195,25-Oct-23,3154.12,0,105027,Older People Placements - East,321017              Nursing & Residential Care Homes,A,2023,7
378,Community and Housing,BUPA CARE HOMES,1045252,25-Oct-23,3289.24,0,105027,Older People Placements - East,321017              Nursing & Residential Care Homes,A,2023,7
379,Community and Housing,BUPA CARE HOMES,1045265,25-Oct-23,3154.12,0,105027,Older People Placements - East,321017              Nursing & Residential Care Homes,A,2023,7
380,Community and Housing,BUPA CARE HOMES,1045296,25-Oct-23,3289.24,0,105027,Older People Placements - East,321017              Nursing & Residential Care Homes,A,2023,7
381,Community and Housing,BUPA CARE HOMES,1045358,25-Oct-23,3289.24,0,105027,Older People Placements - East,321017              Nursing & Residential Care Homes,A,2023,7
382,Community and Housing,BUPA CARE HOMES,1045386,25-Oct-23,3289.24,0,105027,Older People Placements - East,321017              Nursing & Residential Care Homes,A,2023,7
383,Community and Housing,BUPA CARE HOMES,1045389,25-Oct-23,3154.12,0,105027,Older People Placements - East,321017              Nursing & Residential Care Homes,A,2023,7
384,Community and Housing,BUPA CARE HOMES,1045397,25-Oct-23,3289.24,0,105027,Older People Placements - East,321017              Nursing & Residential Care Homes,A,2023,7
385,Community and Housing,BUPA CARE HOMES,1045428,25-Oct-23,3289.24,0,105027,Older People Placements - East,321017              Nursing & Residential Care Homes,A,2023,7
386,Community and Housing,BUPA CARE HOMES,1045437,25-Oct-23,4363.16,0,105027,Phys/Sens Placements - East,321017              Nursing & Residential Care Homes,A,2023,7
387,Community and Housing,BUPA CARE HOMES,1045445,25-Oct-23,3289.24,0,105027,Older People Placements - East,321017              Nursing & Residential Care Homes,A,2023,7
388,Community and Housing,BUPA CARE HOMES,1045451,25-Oct-23,3569.4,0,105027,Older People Placements - East,321017              Nursing & Residential Care Homes,A,2023,7
389,Community and Housing,BUPA CARE HOMES,1045467,25-Oct-23,3289.24,0,105027,Mental Health Placements,321017              Nursing & Residential Care Homes,A,2023,7
390,Community and Housing,BUPA CARE HOMES,1045485,25-Oct-23,3154.12,0,105027,Older People Placements - East,321017              Nursing & Residential Care Homes,A,2023,7
391,Community and Housing,BUPA CARE HOMES,1045508,25-Oct-23,3289.24,0,105027,Older People Placements - East,321017              Nursing & Residential Care Homes,A,2023,7
392,Community and Housing,BUPA CARE HOMES,1045515,25-Oct-23,3289.24,0,105027,Older People Placements - East,321017              Nursing & Residential Care Homes,A,2023,7
393,Community and Housing,BUPA CARE HOMES,1045519,25-Oct-23,3289.24,0,105027,Older People Placements - East,321017              Nursing & Residential Care Homes,A,2023,7
394,Community and Housing,BUPA CARE HOMES,1045542,25-Oct-23,3289.24,0,105027,Older People Placements - East,321017              Nursing & Residential Care Homes,A,2023,7
395,Community and Housing,BUPA CARE HOMES,1045558,25-Oct-23,3289.24,0,105027,Older People Placements - East,321017              Nursing & Residential Care Homes,A,2023,7
396,Community and Housing,BUPA CARE HOMES,1045579,25-Oct-23,3154.12,0,105027,Older People Placements - East,321017              Nursing & Residential Care Homes,A,2023,7
397,Environment and Regeneration,APSE,2324/597,20-Oct-23,1666.8,277.8,105284,Energy Projects,260000              Human Resources,A,2023,7
398,Environment and Regeneration,APSE,2324/1826,24-Oct-23,1540.8,256.8,105284,Energy Projects,260000              Human Resources,A,2023,7
399,Community and Housing,REDACTED PERSONAL DATA,1035309,10-Oct-23,3286.2,0,105300,Learning Disabilities Placemnt,DIRECT PAYMENTS,R,2023,7
400,"Children, Schools and Family",NEWSCHOOLS (MERTON) LIMITED,NSM01076,05-Oct-23,3679.07,613.18,106428, PFI Unitary Charges,200000              Financial Services,A,2023,7
401,"Children, Schools and Family",NEWSCHOOLS (MERTON) LIMITED,NSM01080,05-Oct-23,7370.47,1228.41,106428, PFI Unitary Charges,200000              Financial Services,A,2023,7
402,"Children, Schools and Family",NEWSCHOOLS (MERTON) LIMITED,NSM01077,05-Oct-23,663.95,110.66,106428, PFI Unitary Charges,200000              Financial Services,A,2023,7
403,"Children, Schools and Family",NEWSCHOOLS (MERTON) LIMITED,NSM01083,25-Oct-23,6056.04,1009.34,106428, PFI Unitary Charges,200000              Financial Services,A,2023,7
404,"Children, Schools and Family",NEWSCHOOLS (MERTON) LIMITED,NSM01068,27-Oct-23,31749.42,5291.57,106428, PFI Unitary Charges,200000              Financial Services,A,2023,7
405,Capital,ASCENDIT LIFTS LTD,40990,19-Oct-23,3651,0,107196,Disabled Facilities Grant,"390000              Works - Construction, Repair & Maintenance",A,2023,7
406,Capital,ASCENDIT LIFTS LTD,40890,25-Oct-23,2361,0,107196,Disabled Facilities Grant,"390000              Works - Construction, Repair & Maintenance",A,2023,7
407,Community and Housing,REDACTED PERSONAL DATA,1039551,16-Oct-23,856.12,0,110403,MH Housing Support Placements,321000              Social Community Care Supplies & Services - Adult,R,2023,7
408,Community and Housing,REDACTED PERSONAL DATA,1039556,16-Oct-23,1141.48,0,110403,Learning Disabilities Placemnt,321000              Social Community Care Supplies & Services - Adult,R,2023,7
409,Community and Housing,REDACTED PERSONAL DATA,1039557,16-Oct-23,847.04,0,110403,MH Housing Support Placements,321000              Social Community Care Supplies & Services - Adult,R,2023,7
410,Community and Housing,REDACTED PERSONAL DATA,1039560,16-Oct-23,1141.52,0,110403,Mental Health Placements,321000              Social Community Care Supplies & Services - Adult,R,2023,7
411,Community and Housing,REDACTED PERSONAL DATA,1039565,16-Oct-23,847.04,0,110403,MH Housing Support Placements,321000              Social Community Care Supplies & Services - Adult,R,2023,7
412,Community and Housing,REDACTED PERSONAL DATA,1039566,16-Oct-23,1423.36,0,110403,Mental Health Placements,321000              Social Community Care Supplies & Services - Adult,R,2023,7
413,Community and Housing,REDACTED PERSONAL DATA,1039571,16-Oct-23,1141.52,0,110403,Phys/Sens Placements - East,321000              Social Community Care Supplies & Services - Adult,R,2023,7
414,Community and Housing,REDACTED PERSONAL DATA,1039574,16-Oct-23,1652.52,0,110403,Mental Health Placements,321000              Social Community Care Supplies & Services - Adult,R,2023,7
415,Community and Housing,REDACTED PERSONAL DATA,1039577,16-Oct-23,847.04,0,110403,MH Housing Support Placements,321000              Social Community Care Supplies & Services - Adult,R,2023,7
416,Community and Housing,REDACTED PERSONAL DATA,1039579,16-Oct-23,1129.4,0,110403,Mental Health Placements,321000              Social Community Care Supplies & Services - Adult,R,2023,7
417,Community and Housing,REDACTED PERSONAL DATA,1039588,16-Oct-23,847.04,0,110403,MH Housing Support Placements,321000              Social Community Care Supplies & Services - Adult,R,2023,7
418,Community and Housing,REDACTED PERSONAL DATA,1039590,16-Oct-23,564.72,0,110403,MH Housing Support Placements,321000              Social Community Care Supplies & Services - Adult,R,2023,7
419,Community and Housing,REDACTED PERSONAL DATA,1039599,16-Oct-23,847.04,0,110403,Mental Health Placements,321000              Social Community Care Supplies & Services - Adult,R,2023,7
420,Community and Housing,REDACTED PERSONAL DATA,1039589,16-Oct-23,847.04,0,110406,Learning Disabilities Placemnt,321000              Social Community Care Supplies & Services - Adult,R,2023,7
421,"Children, Schools and Family",REDACTED PERSONAL DATA,1034707,06-Oct-23,514.26,0,111277,Placements Under 18,321100              Social Community Care Supplies & Services - Children,R,2023,7
422,"Children, Schools and Family",REDACTED PERSONAL DATA,1039053,13-Oct-23,514.26,0,111277,Placements Under 18,321100              Social Community Care Supplies & Services - Children,R,2023,7
423,"Children, Schools and Family",REDACTED PERSONAL DATA,1043114,20-Oct-23,614.26,0,111277,Placements Under 18,321100              Social Community Care Supplies & Services - Children,R,2023,7
424,"Children, Schools and Family",REDACTED PERSONAL DATA,1048153,27-Oct-23,514.26,0,111277,Placements Under 18,321100              Social Community Care Supplies & Services - Children,R,2023,7
425,Environment and Regeneration,CHARTERED INST.OF ENVIR.HEALTH,PS023790,03-Oct-23,960,160,112693,NOISE - RSP,200000              Financial Services,A,2023,7
426,Environment and Regeneration,CHARTERED INST.OF ENVIR.HEALTH,PS024073,30-Oct-23,960,160,112693,Private Sector Housing,200000              Financial Services,A,2023,7
427,Community and Housing,MEADBANK NURSING CENTRE,1045555,25-Oct-23,2995.28,0,113139,Older People Placements - East,321017              Nursing & Residential Care Homes,A,2023,7
428,Community and Housing,REDACTED PERSONAL DATA,1036797,10-Oct-23,8836.6,0,113331,Learning Disabilities Placemnt,DIRECT PAYMENTS,R,2023,7
429,Community and Housing,MIHOMECARE LIMITED,LIVE42-270467,31-Oct-23,5474,0,114370,Older People Placements - East,321000              Social Community Care Supplies & Services - Adult,A,2023,7
430,Community and Housing,MIHOMECARE LIMITED,LIVE42-270468,31-Oct-23,5474,0,114370,Learning Disabilities Placemnt,321000              Social Community Care Supplies & Services - Adult,A,2023,7
431,Community and Housing,REDACTED PERSONAL DATA,1039552,16-Oct-23,1141.52,0,114970,MH Housing Support Placements,321000              Social Community Care Supplies & Services - Adult,R,2023,7
432,Community and Housing,REDACTED PERSONAL DATA,1039561,16-Oct-23,847.04,0,114970,MH Housing Support Placements,321000              Social Community Care Supplies & Services - Adult,R,2023,7
433,Community and Housing,REDACTED PERSONAL DATA,1039562,16-Oct-23,837.48,0,114970,Mental Health Placements,321000              Social Community Care Supplies & Services - Adult,R,2023,7
434,Community and Housing,REDACTED PERSONAL DATA,1039583,16-Oct-23,1141.52,0,114970,MH Housing Support Placements,321000              Social Community Care Supplies & Services - Adult,R,2023,7
435,Community and Housing,REDACTED PERSONAL DATA,1039594,16-Oct-23,856.08,0,114970,Mental Health Placements,321000              Social Community Care Supplies & Services - Adult,R,2023,7
436,Community and Housing,REDACTED PERSONAL DATA,1039598,16-Oct-23,805.48,0,114970,MH Housing Support Placements,321000              Social Community Care Supplies & Services - Adult,R,2023,7
437,Community and Housing,GRANGE COTTAGE LIMITED,1045205,25-Oct-23,2680,0,117931,Older People Placements - East,321017              Nursing & Residential Care Homes,A,2023,7
438,Community and Housing,GRANGE COTTAGE LIMITED,1045267,25-Oct-23,3200,0,117931,Older People Placements - East,321017              Nursing & Residential Care Homes,A,2023,7
439,Community and Housing,GRANGE COTTAGE LIMITED,1045380,25-Oct-23,3600,0,117931,Older People Placements - East,321017              Nursing & Residential Care Homes,A,2023,7
440,Community and Housing,GRANGE COTTAGE LIMITED,1045470,25-Oct-23,2680,0,117931,Older People Placements - East,321017              Nursing & Residential Care Homes,A,2023,7
441,Community and Housing,REDACTED PERSONAL DATA,1039559,16-Oct-23,856.12,0,117970,MH Housing Support Placements,321000              Social Community Care Supplies & Services - Adult,R,2023,7
442,Community and Housing,REDACTED PERSONAL DATA,1039567,16-Oct-23,1141.52,0,117970,Mental Health Placements,321000              Social Community Care Supplies & Services - Adult,R,2023,7
443,Community and Housing,REDACTED PERSONAL DATA,1039580,16-Oct-23,1141.52,0,117970,Mental Health Placements,321000              Social Community Care Supplies & Services - Adult,R,2023,7
444,Community and Housing,L'ARCHE,1045499,25-Oct-23,3050.24,0,118483,Learning Disabilities Placemnt,321017              Nursing & Residential Care Homes,A,2023,7
445,Community and Housing,Alexander House c/o Keychange Charity,1045225,25-Oct-23,3100,0,119109,Older People Placements - East,321017              Nursing & Residential Care Homes,A,2023,7
446,Community and Housing,Alexander House c/o Keychange Charity,1045281,25-Oct-23,6600,0,119109,Older People Placements - East,321017              Nursing & Residential Care Homes,A,2023,7
447,Community and Housing,Alexander House c/o Keychange Charity,1045297,25-Oct-23,3220.32,0,119109,Older People Placements - East,321017              Nursing & Residential Care Homes,A,2023,7
448,Community and Housing,Alexander House c/o Keychange Charity,1045320,25-Oct-23,5600,0,119109,Older People Placements - East,321017              Nursing & Residential Care Homes,A,2023,7
449,Community and Housing,Alexander House c/o Keychange Charity,1045512,25-Oct-23,4000,0,119109,Older People Placements - East,321017              Nursing & Residential Care Homes,A,2023,7
450,Community and Housing,Alexander House c/o Keychange Charity,1045569,25-Oct-23,3840,0,119109,Older People Placements - East,321017              Nursing & Residential Care Homes,A,2023,7
451,Community and Housing,REDACTED PERSONAL DATA,1035047,10-Oct-23,1662.44,0,124097,Older People Placements - East,DIRECT PAYMENTS,R,2023,7
452,Community and Housing,UNITED RESPONSE,1041210,18-Oct-23,8840.83,1473.47,125227,Learning Disabilities Placemnt,321000              Social Community Care Supplies & Services - Adult,A,2023,7
453,Community and Housing,UNITED RESPONSE,1041710,18-Oct-23,2795.9,465.98,125227,Learning Disabilities Placemnt,321000              Social Community Care Supplies & Services - Adult,A,2023,7
454,Community and Housing,UNITED RESPONSE,1045174,25-Oct-23,8251.44,1375.24,125227,Learning Disabilities Placemnt,321000              Social Community Care Supplies & Services - Adult,A,2023,7
455,Community and Housing,UNITED RESPONSE,1045235,25-Oct-23,8251.44,1375.24,125227,Learning Disabilities Placemnt,321000              Social Community Care Supplies & Services - Adult,A,2023,7
456,Community and Housing,UNITED RESPONSE,1045278,25-Oct-23,8251.44,1375.24,125227,Learning Disabilities Placemnt,321000              Social Community Care Supplies & Services - Adult,A,2023,7
457,Community and Housing,UNITED RESPONSE,1045329,25-Oct-23,8251.44,1375.24,125227,Learning Disabilities Placemnt,321000              Social Community Care Supplies & Services - Adult,A,2023,7
458,Community and Housing,UNITED RESPONSE,1045447,25-Oct-23,8251.44,1375.24,125227,Learning Disabilities Placemnt,321000              Social Community Care Supplies & Services - Adult,A,2023,7
459,Community and Housing,REDACTED PERSONAL DATA,1035032,10-Oct-23,4448.04,0,125642,Phys/Sens Placements - East,DIRECT PAYMENTS,R,2023,7
460,Community and Housing,REDACTED PERSONAL DATA,1035215,10-Oct-23,1039.36,0,126189,Older People Placements - East,DIRECT PAYMENTS,R,2023,7
461,Capital,TRAFFICWATCH (UK) LTD.,3139,19-Oct-23,648,108,127163,Highways & Footways,"390000              Works - Construction, Repair & Maintenance",A,2023,7
462,Community and Housing,REDACTED PERSONAL DATA,1034986,10-Oct-23,821.12,0,127266,Phys/Sens Placements - East,DIRECT PAYMENTS,R,2023,7
463,Corporate Services,THE LAW SOCIETY,INV200856843,23-Oct-23,19286,0,127689,Legal Shared Service,200000              Financial Services,A,2023,7
464,Environment and Regeneration,TRL LIMITED,11618961,30-Oct-23,630.28,105.05,128700,Environmental Health-Pollution,180000              Environmental Services,A,2023,7
465,Environment and Regeneration,TRL LIMITED,11618962,30-Oct-23,1285.2,214.2,128700,LBR - Pollution,180000              Environmental Services,A,2023,7
466,Environment and Regeneration,TRL LIMITED,11618963,30-Oct-23,4345.04,724.17,128700,Wandsworth Air Quality,180000              Environmental Services,A,2023,7
467,Community and Housing,BUPA CARE HOMES,1045173,25-Oct-23,6096.36,0,130491,Phys/Sens Placements - East,321017              Nursing & Residential Care Homes,A,2023,7
468,Community and Housing,BUPA CARE HOMES,1045289,25-Oct-23,6050.76,0,130491,Phys/Sens Placements - East,321017              Nursing & Residential Care Homes,A,2023,7
469,Environment and Regeneration,DOMINO 4 LIMITED,D.44291,05-Oct-23,1092,182,132991,Borough of Sport,190000              Facilities & Management Services                                                          Confirmed,A,2023,7
470,Corporate Services,DOMINO 4 LIMITED,D.44309,13-Oct-23,2448,408,132991,Marketing & Communication,190000              Facilities & Management Services                                                          Confirmed,A,2023,7
471,Community and Housing,LORENSBERGS LIMITED,LOR7658,30-Oct-23,8054.99,1342.5,133029,Libraries Service-Civic Centre,270000              Information Communication Technology,A,2023,7
472,Unassigned,Evans Cycles Limited,HO-PSI4488838,10-Oct-23,611,101.83,133082,Corporate Accountancy,260000              Human Resources,A,2023,7
473,Unassigned,Evans Cycles Limited,HO-PSI4489164,10-Oct-23,915.98,152.66,133082,Corporate Accountancy,260000              Human Resources,A,2023,7
474,Community and Housing,VOYAGE CARE LTD,1045095,25-Oct-23,5347.72,0,133700,Learning Disabilities Placemnt,321017              Nursing & Residential Care Homes,A,2023,7
475,Community and Housing,VOYAGE CARE LTD,1045104,25-Oct-23,16284.8,0,133700,Learning Disabilities Placemnt,321017              Nursing & Residential Care Homes,A,2023,7
476,Community and Housing,VOYAGE CARE LTD,1045108,25-Oct-23,4640.72,0,133700,Learning Disabilities Placemnt,321017              Nursing & Residential Care Homes,A,2023,7
477,Community and Housing,VOYAGE CARE LTD,1045255,25-Oct-23,7224.88,0,133700,Learning Disabilities Placemnt,321017              Nursing & Residential Care Homes,A,2023,7
478,Community and Housing,VOYAGE CARE LTD,1045367,25-Oct-23,10048,0,133700,Learning Disabilities Placemnt,321017              Nursing & Residential Care Homes,A,2023,7
479,Community and Housing,VOYAGE CARE LTD,1045444,25-Oct-23,8462.36,0,133700,Learning Disabilities Placemnt,321017              Nursing & Residential Care Homes,A,2023,7
480,Unassigned,RED KITE CONSERVATION SERVICES,NO.RK1230,13-Oct-23,8640,1440,134026,Mitcham Common Conservators,"390000              Works - Construction, Repair & Maintenance",A,2023,7
481,Unassigned,RED KITE CONSERVATION SERVICES,RK1238,19-Oct-23,4128,688,134026,Mitcham Common Conservators,"390000              Works - Construction, Repair & Maintenance",A,2023,7
482,Corporate Services,ASDA STORES LTD,9Z651557C97B4CF,02-Oct-23,600,0,134239,Cost of Living Fund,200000              Financial Services,A,2023,7
483,Community and Housing,Sunrise Rehabilitation Centre,1045162,25-Oct-23,5213.88,0,135093,Learning Disabilities Placemnt,321017              Nursing & Residential Care Homes,A,2023,7
484,Community and Housing,Sunrise Rehabilitation Centre,1045193,25-Oct-23,5213.88,0,135093,Learning Disabilities Placemnt,321017              Nursing & Residential Care Homes,A,2023,7
485,Community and Housing,Sunrise Rehabilitation Centre,1045364,25-Oct-23,5161.52,0,135093,Learning Disabilities Placemnt,321017              Nursing & Residential Care Homes,A,2023,7
486,Community and Housing,Sunrise Rehabilitation Centre,1045486,25-Oct-23,5043.72,0,135093,Learning Disabilities Placemnt,321017              Nursing & Residential Care Homes,A,2023,7
487,Community and Housing,Sunrise Rehabilitation Centre,1045487,25-Oct-23,5174.6,0,135093,Learning Disabilities Placemnt,321017              Nursing & Residential Care Homes,A,2023,7
488,Community and Housing,Sunrise Rehabilitation Centre,1045507,25-Oct-23,5213.88,0,135093,Learning Disabilities Placemnt,321017              Nursing & Residential Care Homes,A,2023,7
489,Community and Housing,Sunrise Rehabilitation Centre,1045567,25-Oct-23,6102,0,135093,Learning Disabilities Placemnt,321017              Nursing & Residential Care Homes,A,2023,7
490,Community and Housing,Sunrise Rehabilitation Centre,1045584,25-Oct-23,4363.08,0,135093,Learning Disabilities Placemnt,321017              Nursing & Residential Care Homes,A,2023,7
491,Community and Housing,SW LONDON ST GEORGES NHS TRUST,P0071375,20-Oct-23,58219.57,0,135195,Mental Health Team,310000              Healthcare,A,2023,7
492,Community and Housing,SW LONDON ST GEORGES NHS TRUST,P0071303,20-Oct-23,268648.48,0,135195,Mental Health Team,310000              Healthcare,A,2023,7
493,Community and Housing,MERTON VISION,ASC GRANT OCT 23,09-Oct-23,40733.61,0,135428,Public Health Main,260000              Human Resources,A,2023,7
494,Community and Housing,MERTON VISION,INV1975,16-Oct-23,17594.43,0,135428,Physical/Sensory Contracts,260000              Human Resources,A,2023,7
495,Corporate Services,Lbox Communications (Beta Dist.South),339660,23-Oct-23,856.63,142.77,135590,Printing,190000              Facilities & Management Services,A,2023,7
496,Corporate Services,Lbox Communications (Beta Dist.South),339659,23-Oct-23,7643.8,1273.96,135590,Printing,190000              Facilities & Management Services,A,2023,7
497,Corporate Services,Lbox Communications (Beta Dist.South),339658,23-Oct-23,13156.68,2192.78,135590,Printing,190000              Facilities & Management Services,A,2023,7
498,Community and Housing,REDACTED PERSONAL DATA,1035171,10-Oct-23,1612.64,0,135784,Phys/Sens Placements - East,DIRECT PAYMENTS,R,2023,7
499,Unassigned,ZURICH INSURANCE GROUP,01E223/SEP2023,04-Oct-23,50000,0,137315,Corporate Services,200000              Financial Services,A,2023,7
500,Unassigned,ZURICH INSURANCE GROUP,IMPRESTTOPUPOCT2,27-Oct-23,50000,0,137315,Corporate Services,200000              Financial Services,A,2023,7
501,Community and Housing,REDACTED PERSONAL DATA,1035005,10-Oct-23,1320.76,0,139365,Phys/Sens Placements - East,DIRECT PAYMENTS,R,2023,7
502,Community and Housing,REDACTED PERSONAL DATA,1035348,10-Oct-23,625.6,0,140662,Phys/Sens Placements - East,DIRECT PAYMENTS,R,2023,7
503,Community and Housing,REDACTED PERSONAL DATA,1035025,10-Oct-23,6224.36,0,140759,Phys/Sens Placements - East,DIRECT PAYMENTS,R,2023,7
504,Community and Housing,SURREY AND BORDERS PARTNERSHIP,1045319,25-Oct-23,11448.72,0,140911,Learning Disabilities Placemnt,321017              Nursing & Residential Care Homes,A,2023,7
505,Environment and Regeneration,KELTIC CLOTHING LTD,176641,10-Oct-23,8377.2,1396.2,141131,Civil Enforcement Officers,140000              Clothing,A,2023,7
506,Community and Housing,GARWOOD FOUNDATION,1034828,06-Oct-23,4511.64,0,142358,Phys/Sens Placements - East,321017              Nursing & Residential Care Homes,A,2023,7
507,Community and Housing,GARWOOD FOUNDATION,1034831,06-Oct-23,2933.07,0,142358,Older People Placements - East,321017              Nursing & Residential Care Homes,A,2023,7
508,Community and Housing,GARWOOD FOUNDATION,1045200,25-Oct-23,3400,0,142358,Phys/Sens Placements - East,321017              Nursing & Residential Care Homes,A,2023,7
509,Community and Housing,EVERGREEN PARTNERSHIP,1045251,25-Oct-23,9675,0,142455,Learning Disabilities Placemnt,321017              Nursing & Residential Care Homes,A,2023,7
510,Community and Housing,EVERGREEN PARTNERSHIP,1045268,25-Oct-23,6579.2,0,142455,Learning Disabilities Placemnt,321017              Nursing & Residential Care Homes,A,2023,7
511,Community and Housing,REDACTED PERSONAL DATA,1039568,16-Oct-23,1141.52,0,143597,MH Housing Support Placements,321000              Social Community Care Supplies & Services - Adult,R,2023,7
512,Community and Housing,REDACTED PERSONAL DATA,1039570,16-Oct-23,1426.8,0,143597,LD Housing Support Placements,321000              Social Community Care Supplies & Services - Adult,R,2023,7
513,Community and Housing,REDACTED PERSONAL DATA,1039596,16-Oct-23,1586.6,0,143597,Learning Disabilities Placemnt,321000              Social Community Care Supplies & Services - Adult,R,2023,7
514,Community and Housing,REDACTED PERSONAL DATA,1035292,10-Oct-23,4047.6,0,144689,Learning Disabilities Placemnt,DIRECT PAYMENTS,R,2023,7
515,"Children, Schools and Family",DF20 LTD,4512-600,30-Oct-23,12234,2039,144747,School Meals,110000              Catering,A,2023,7
516,Community and Housing,CRAEGMOOR FACILITIES - WINDSOR,1045301,25-Oct-23,7415.84,0,145152,Learning Disabilities Placemnt,321017              Nursing & Residential Care Homes,A,2023,7
517,Community and Housing,REDACTED PERSONAL DATA,1035104,10-Oct-23,5474,0,145882,Learning Disabilities Placemnt,DIRECT PAYMENTS,R,2023,7
518,"Children, Schools and Family",WELFARE CALL (LAC) LTD,23LAC-141,17-Oct-23,23549.76,3924.96,146772,PupilPremium- Virtual School,321100              Social Community Care Supplies & Services - Children                                      Confimed,A,2023,7
519,Community and Housing,GENERATE,11360,23-Oct-23,727.2,0,148332,Learning Disabilities Placemnt,321000              Social Community Care Supplies & Services - Adult,A,2023,7
520,Community and Housing,GENERATE,11362,23-Oct-23,659.2,0,148332,Learning Disabilities Placemnt,321000              Social Community Care Supplies & Services - Adult,A,2023,7
521,Community and Housing,GENERATE,INV-2019,24-Oct-23,2884,0,148332,Learning Disabilities Placemnt,321000              Social Community Care Supplies & Services - Adult,A,2023,7
522,Community and Housing,CHICHESTER HALL CARE HOME LTD,1045523,25-Oct-23,2637.2,0,148358,Older People Placements - East,321017              Nursing & Residential Care Homes,A,2023,7
523,Community and Housing,YMCA St Pauls' Group,1627,03-Oct-23,90223,0,149961,Supporting People (HRS),321000              Social Community Care Supplies & Services - Adult,A,2023,7
524,Unassigned,Canterbury Campus,SCHOOLS 2324/7 A,06-Oct-23,219844.47,0,150054,Schools,170000              Education,A,2023,7
525,Community and Housing,REDACTED PERSONAL DATA,1035048,10-Oct-23,3125.04,0,151002,Older People Placements - East,DIRECT PAYMENTS,R,2023,7
526,Community and Housing,AIMS CARE PARTNERSHIP,1045254,25-Oct-23,10560,0,151592,Learning Disabilities Placemnt,321017              Nursing & Residential Care Homes,A,2023,7
527,Community and Housing,AIMS CARE PARTNERSHIP,1045291,25-Oct-23,3114.72,0,151592,Learning Disabilities Placemnt,321017              Nursing & Residential Care Homes,A,2023,7
528,Community and Housing,HOLISTIC COMMUNITY CARE - FC,3944,06-Oct-23,5474,0,151996,Older People Placements - East,321000              Social Community Care Supplies & Services - Adult,A,2023,7
529,Community and Housing,HOLISTIC COMMUNITY CARE - FC,3945,06-Oct-23,5474,0,151996,Learning Disabilities Placemnt,321000              Social Community Care Supplies & Services - Adult,A,2023,7
530,Community and Housing,HOLISTIC COMMUNITY CARE - FC,MERTON P07/11,12-Oct-23,709.51,0,151996,Older People Placements - East,321000              Social Community Care Supplies & Services - Adult,A,2023,7
531,Community and Housing,HOLISTIC COMMUNITY CARE - FC,MERTON P07/4,12-Oct-23,1037.89,0,151996,Older People Placements - East,321000              Social Community Care Supplies & Services - Adult,A,2023,7
532,Community and Housing,HOLISTIC COMMUNITY CARE - FC,MERTON P07/7,12-Oct-23,821.97,0,151996,Phys/Sens Placements - East,321000              Social Community Care Supplies & Services - Adult,A,2023,7
533,Community and Housing,HOLISTIC COMMUNITY CARE - FC,MERTON P07/2,12-Oct-23,652.99,0,151996,Older People Placements - East,321000              Social Community Care Supplies & Services - Adult,A,2023,7
534,Community and Housing,HOLISTIC COMMUNITY CARE - FC,MERTON P07/12,12-Oct-23,1419.41,0,151996,Older People Placements - East,321000              Social Community Care Supplies & Services - Adult,A,2023,7
535,Community and Housing,HOLISTIC COMMUNITY CARE - FC,MERTON P07/21,12-Oct-23,13935.69,0,151996,Older People Placements - East,321000              Social Community Care Supplies & Services - Adult,A,2023,7
536,Community and Housing,HOLISTIC COMMUNITY CARE - FC,MERTON P07/22,12-Oct-23,982.11,0,151996,Older People Placements - East,321000              Social Community Care Supplies & Services - Adult,A,2023,7
537,Community and Housing,HOLISTIC COMMUNITY CARE - FC,MERTON P07/24,12-Oct-23,992.97,0,151996,Older People Placements - East,321000              Social Community Care Supplies & Services - Adult,A,2023,7
538,Community and Housing,HOLISTIC COMMUNITY CARE - FC,MERTON P07/23,12-Oct-23,1010.63,0,151996,Older People Placements - East,321000              Social Community Care Supplies & Services - Adult,A,2023,7
539,Community and Housing,HOLISTIC COMMUNITY CARE - FC,MERTON P07/1,12-Oct-23,3195.39,0,151996,Older People Placements - East,321000              Social Community Care Supplies & Services - Adult,A,2023,7
540,Community and Housing,HOLISTIC COMMUNITY CARE - FC,MERTON P07/16,12-Oct-23,1087.5,0,151996,Older People Placements - East,321000              Social Community Care Supplies & Services - Adult,A,2023,7
541,Community and Housing,HOLISTIC COMMUNITY CARE - FC,MERTON P07/3,12-Oct-23,2104.57,0,151996,Older People Placements - East,321000              Social Community Care Supplies & Services - Adult,A,2023,7
542,Community and Housing,HOLISTIC COMMUNITY CARE - FC,MERTON P07/13,12-Oct-23,897.71,0,151996,Older People Placements - East,321000              Social Community Care Supplies & Services - Adult,A,2023,7
543,Community and Housing,HOLISTIC COMMUNITY CARE - FC,MERTON P07/14,12-Oct-23,1493.48,0,151996,Older People Placements - East,321000              Social Community Care Supplies & Services - Adult,A,2023,7
544,Community and Housing,HOLISTIC COMMUNITY CARE - FC,MERTON P07/6,12-Oct-23,1852.96,0,151996,Older People Placements - East,321000              Social Community Care Supplies & Services - Adult,A,2023,7
545,Community and Housing,HOLISTIC COMMUNITY CARE - FC,MERTON P07/9,12-Oct-23,1104.32,0,151996,Older People Placements - East,321000              Social Community Care Supplies & Services - Adult,A,2023,7
546,Community and Housing,HOLISTIC COMMUNITY CARE - FC,LAMBETH P06/11,16-Oct-23,701.57,0,151996,Older People Placements - East,321000              Social Community Care Supplies & Services - Adult,A,2023,7
547,Community and Housing,HOLISTIC COMMUNITY CARE - FC,LAMBETH P06/4,16-Oct-23,1006.76,0,151996,Older People Placements - East,321000              Social Community Care Supplies & Services - Adult,A,2023,7
548,Community and Housing,HOLISTIC COMMUNITY CARE - FC,LAMBETH P06/7,16-Oct-23,816.29,0,151996,Phys/Sens Placements - East,321000              Social Community Care Supplies & Services - Adult,A,2023,7
549,Community and Housing,HOLISTIC COMMUNITY CARE - FC,LAMBETH P06/8,16-Oct-23,595.79,0,151996,Older People Placements - East,321000              Social Community Care Supplies & Services - Adult,A,2023,7
550,Community and Housing,HOLISTIC COMMUNITY CARE - FC,LAMBETH P06/2,16-Oct-23,648.82,0,151996,Older People Placements - East,321000              Social Community Care Supplies & Services - Adult,A,2023,7
551,Community and Housing,HOLISTIC COMMUNITY CARE - FC,LAMBETH P06/12,16-Oct-23,1448.71,0,151996,Older People Placements - East,321000              Social Community Care Supplies & Services - Adult,A,2023,7
552,Community and Housing,HOLISTIC COMMUNITY CARE - FC,LAMBETH P06/21,16-Oct-23,14034.64,0,151996,Older People Placements - East,321000              Social Community Care Supplies & Services - Adult,A,2023,7
553,Community and Housing,HOLISTIC COMMUNITY CARE - FC,LAMBETH P06/22,16-Oct-23,1148.16,0,151996,Older People Placements - East,321000              Social Community Care Supplies & Services - Adult,A,2023,7
554,Community and Housing,HOLISTIC COMMUNITY CARE - FC,LAMBETH P06/24,16-Oct-23,1093.65,0,151996,Older People Placements - East,321000              Social Community Care Supplies & Services - Adult,A,2023,7
555,Community and Housing,HOLISTIC COMMUNITY CARE - FC,LAMBETH P06/1,16-Oct-23,3358.72,0,151996,Older People Placements - East,321000              Social Community Care Supplies & Services - Adult,A,2023,7
556,Community and Housing,HOLISTIC COMMUNITY CARE - FC,LAMBETH P06/16,16-Oct-23,958.1,0,151996,Older People Placements - East,321000              Social Community Care Supplies & Services - Adult,A,2023,7
557,Community and Housing,HOLISTIC COMMUNITY CARE - FC,LAMBETH P06/3,16-Oct-23,2390.39,0,151996,Older People Placements - East,321000              Social Community Care Supplies & Services - Adult,A,2023,7
558,Community and Housing,HOLISTIC COMMUNITY CARE - FC,LAMBETH P06/13,16-Oct-23,905.49,0,151996,Older People Placements - East,321000              Social Community Care Supplies & Services - Adult,A,2023,7
559,Community and Housing,HOLISTIC COMMUNITY CARE - FC,LAMBETH P06/14,16-Oct-23,1565.87,0,151996,Older People Placements - East,321000              Social Community Care Supplies & Services - Adult,A,2023,7
560,Community and Housing,HOLISTIC COMMUNITY CARE - FC,LAMBETH P06/18,16-Oct-23,799.41,0,151996,Older People Placements - East,321000              Social Community Care Supplies & Services - Adult,A,2023,7
561,Community and Housing,HOLISTIC COMMUNITY CARE - FC,LAMBETH P06/6,16-Oct-23,1903.44,0,151996,Older People Placements - East,321000              Social Community Care Supplies & Services - Adult,A,2023,7
562,Community and Housing,HOLISTIC COMMUNITY CARE - FC,LAMBETH P06/9,16-Oct-23,1090.59,0,151996,Older People Placements - East,321000              Social Community Care Supplies & Services - Adult,A,2023,7
563,Community and Housing,HOLISTIC COMMUNITY CARE - FC,LAMBETH P06/25,16-Oct-23,1390.52,0,151996,Older People Placements - East,321000              Social Community Care Supplies & Services - Adult,A,2023,7
564,Community and Housing,HOLISTIC COMMUNITY CARE - FC,3964,16-Oct-23,5474,0,151996,Older People Placements - East,321000              Social Community Care Supplies & Services - Adult,A,2023,7
565,Community and Housing,HOLISTIC COMMUNITY CARE - FC,3965,16-Oct-23,5474,0,151996,Learning Disabilities Placemnt,321000              Social Community Care Supplies & Services - Adult,A,2023,7
566,Community and Housing,REDACTED PERSONAL DATA,1035335,10-Oct-23,9153.2,0,152015,Older People Placements - East,321000              Social Community Care Supplies & Services - Adult,R,2023,7
567,Corporate Services,WANDSWORTH CORPORATION,WC376792128M06E,12-Oct-23,2097.38,0,152180,SLLP Client Income,OLA,A,2023,7
568,Community and Housing,REDACTED PERSONAL DATA,1035239,10-Oct-23,1173,0,152709,Older People Placements - East,DIRECT PAYMENTS,R,2023,7
569,Community and Housing,REDACTED PERSONAL DATA,1035109,10-Oct-23,1678.34,0,152990,Learning Disabilities Placemnt,DIRECT PAYMENTS,R,2023,7
570,Community and Housing,LYNTON HALL NURSING HOME,1045144,30-Oct-23,3102.04,0,153795,Older People Placements - East,321017              Nursing & Residential Care Homes,A,2023,7
571,Community and Housing,LYNTON HALL NURSING HOME,1045149,30-Oct-23,2988.48,0,153795,Older People Placements - East,321017              Nursing & Residential Care Homes,A,2023,7
572,Community and Housing,LYNTON HALL NURSING HOME,1045327,30-Oct-23,3249.6,0,153795,Older People Placements - East,321017              Nursing & Residential Care Homes,A,2023,7
573,Unassigned,HARRIS ACADEMY MERTON,SCHOOLS 2324/7 A,06-Oct-23,67297.61,0,155274,Schools,170000              Education,A,2023,7
574,Unassigned,CFBT SCHOOLS TRUST,SCHOOLS 2324/7 A,06-Oct-23,29616.74,0,155275,Schools,170000              Education,A,2023,7
575,Community and Housing,REDACTED PERSONAL DATA,1035235,10-Oct-23,586.52,0,156180,Mental Health Placements,DIRECT PAYMENTS,R,2023,7
576,Community and Housing,REDACTED PERSONAL DATA,1035168,10-Oct-23,1104.44,0,159542,Older People Placements - East,DIRECT PAYMENTS,R,2023,7
577,Corporate Services,RECOGNITION EXPRESS,6044,23-Oct-23,1290,215,159730,Printing,190000              Facilities & Management Services,A,2023,7
578,Corporate Services,RECOGNITION EXPRESS,6039,19-Oct-23,1440,240,159730,Printing,190000              Facilities & Management Services,A,2023,7
579,Corporate Services,RECOGNITION EXPRESS,5988,09-Oct-23,7601.1,1266.85,159730,Printing,190000              Facilities & Management Services,A,2023,7
580,Community and Housing,REDACTED PERSONAL DATA,1035299,10-Oct-23,3950.24,0,160044,Phys/Sens Placements - East,DIRECT PAYMENTS,R,2023,7
581,Corporate Services,TROWERS AND HAMLINS,11-219595,26-Oct-23,3492,582,160116,SLLP - Disbursements,280000              Legal Services                                                                            Confirmed,A,2023,7
582,"Children, Schools and Family",REDACTED PERSONAL DATA,1035684,09-Oct-23,1344.68,0,160147,Child Disabilities - Placement,CSF-DIRECT PAYMENTS,R,2023,7
583,Community and Housing,REDACTED PERSONAL DATA,1035128,10-Oct-23,1422.48,0,160244,Phys/Sens Placements - East,DIRECT PAYMENTS,R,2023,7
584,Community and Housing,REDACTED PERSONAL DATA,1035078,10-Oct-23,742.92,0,160273,Learning Disabilities Placemnt,DIRECT PAYMENTS,R,2023,7
585,Community and Housing,REDACTED PERSONAL DATA,1035185,10-Oct-23,1087.44,0,160279,Phys/Sens Placements - East,DIRECT PAYMENTS,R,2023,7
586,"Children, Schools and Family",Fleet Educ.Services Ltd T/A Fleet Tutors,27140,16-Oct-23,3024,504,160300,Non-Delegated Statements,260000              Human Resources,A,2023,7
587,"Children, Schools and Family",THE NATIONAL FOSTERING AGENCY,469868,23-Oct-23,5815.8,0,160464,Placements Under 18,321100              Social Community Care Supplies & Services - Children,A,2023,7
588,"Children, Schools and Family",THE NATIONAL FOSTERING AGENCY,469866,23-Oct-23,5519.4,0,160464,Placements Under 18,321100              Social Community Care Supplies & Services - Children,A,2023,7
589,"Children, Schools and Family",THE NATIONAL FOSTERING AGENCY,469867,23-Oct-23,5519.4,0,160464,Placements Under 18,321100              Social Community Care Supplies & Services - Children,A,2023,7
590,Environment and Regeneration,BRITISH GAS BUSINESS,988627330,19-Oct-23,584.66,27.84,160497,Durnsford industrial estate,370000              Utilities,A,2023,7
591,Community and Housing,THE AVENUES TRUST GROUP,1004089,31-Oct-23,10268.2,0,160730,Learning Disabilities Placemnt,321017              Nursing & Residential Care Homes,A,2023,7
592,Environment and Regeneration,CITY OF LONDON CORPORATION,4349368,12-Oct-23,16298.86,2716.48,160895,Waste Disposal,180000              Environmental Services,A,2023,7
593,"Children, Schools and Family",REDACTED PERSONAL DATA,1034664,06-Oct-23,548.09,0,161094,UASC LAC Under 18,321100              Social Community Care Supplies & Services - Children,R,2023,7
594,"Children, Schools and Family",REDACTED PERSONAL DATA,1039013,13-Oct-23,548.09,0,161094,UASC LAC Under 18,321100              Social Community Care Supplies & Services - Children,R,2023,7
595,"Children, Schools and Family",REDACTED PERSONAL DATA,1043073,20-Oct-23,548.09,0,161094,UASC LAC Under 18,321100              Social Community Care Supplies & Services - Children,R,2023,7
596,"Children, Schools and Family",REDACTED PERSONAL DATA,1048113,27-Oct-23,548.09,0,161094,UASC LAC Under 18,321100              Social Community Care Supplies & Services - Children,R,2023,7
597,Community and Housing,CENTRAL AND NW LONDON NHS FT,53509897,20-Oct-23,1344.93,0,162075,PH - Sexual Health,310000              Healthcare,A,2023,7
598,Community and Housing,CENTRAL AND NW LONDON NHS FT,53509993,20-Oct-23,2860.48,0,162075,PH - Sexual Health,310000              Healthcare,A,2023,7
599,Community and Housing,CENTRAL AND NW LONDON NHS FT,53510338,20-Oct-23,1705.31,0,162075,PH - Sexual Health,310000              Healthcare,A,2023,7
600,Community and Housing,CENTRAL AND NW LONDON NHS FT,53510524,20-Oct-23,707,0,162075,PH - Sexual Health,310000              Healthcare,A,2023,7
601,Environment and Regeneration,QUARTIX  LTD,752229,12-Oct-23,1053,175.5,162608,Civil Enforcement Officers,270000              Information Communication Technology,A,2023,7
602,Community and Housing,REDACTED PERSONAL DATA,1035043,10-Oct-23,1737.28,0,163392,Learning Disabilities Placemnt,DIRECT PAYMENTS,R,2023,7
603,Corporate Services,D N H PROPERTY MAINTENANCE,2371DNH,23-Oct-23,780,130,163395,Leisure Buildings,"390000              Works - Construction, Repair & Maintenance",C,2023,7
604,Capital,D N H PROPERTY MAINTENANCE,2373DNH,27-Oct-23,13572.61,2262.1,163395,Mitcham Area Regeneration,"390000              Works - Construction, Repair & Maintenance",C,2023,7
605,Environment and Regeneration,D N H PROPERTY MAINTENANCE,2374DNH,27-Oct-23,3360,560,163395,Vestry Hall,"390000              Works - Construction, Repair & Maintenance",C,2023,7
606,Environment and Regeneration,D N H PROPERTY MAINTENANCE,2321DNH,09-Oct-23,1092.24,182.04,163395,EDS2,"390000              Works - Construction, Repair & Maintenance",C,2023,7
607,Environment and Regeneration,D N H PROPERTY MAINTENANCE,2379DNH,27-Oct-23,756,126,163395,EDS2,"390000              Works - Construction, Repair & Maintenance",C,2023,7
608,Capital,D N H PROPERTY MAINTENANCE,2376DNH,31-Oct-23,727.2,121.2,163395,Mitcham Area Regeneration,"390000              Works - Construction, Repair & Maintenance",C,2023,7
609,Capital,D N H PROPERTY MAINTENANCE,2375DNH,27-Oct-23,1170,195,163395,Mitcham Area Regeneration,"390000              Works - Construction, Repair & Maintenance",C,2023,7
610,Environment and Regeneration,D N H PROPERTY MAINTENANCE,2385DNH,27-Oct-23,2224.56,370.76,163395,EDS2,"390000              Works - Construction, Repair & Maintenance",C,2023,7
611,Environment and Regeneration,D N H PROPERTY MAINTENANCE,2384DNH,31-Oct-23,1200,200,163395,EDS2,"390000              Works - Construction, Repair & Maintenance",C,2023,7
612,Environment and Regeneration,D N H PROPERTY MAINTENANCE,2383DNH,27-Oct-23,1788,298,163395,EDS2,"390000              Works - Construction, Repair & Maintenance",C,2023,7
613,Environment and Regeneration,D N H PROPERTY MAINTENANCE,2392DNH,27-Oct-23,5868,978,163395,EDS2,"390000              Works - Construction, Repair & Maintenance",C,2023,7
614,Environment and Regeneration,D N H PROPERTY MAINTENANCE,2391DNH,27-Oct-23,6000,1000,163395,EDS2,"390000              Works - Construction, Repair & Maintenance",C,2023,7
615,Environment and Regeneration,D N H PROPERTY MAINTENANCE,2390DNH,27-Oct-23,5988,998,163395,EDS2,"390000              Works - Construction, Repair & Maintenance",C,2023,7
616,Environment and Regeneration,D N H PROPERTY MAINTENANCE,2388DNH,27-Oct-23,2520,420,163395,EDS2,"390000              Works - Construction, Repair & Maintenance",C,2023,7
617,Environment and Regeneration,D N H PROPERTY MAINTENANCE,2387DNH,27-Oct-23,8002.8,1333.8,163395,EDS2,"390000              Works - Construction, Repair & Maintenance",C,2023,7
618,Environment and Regeneration,D N H PROPERTY MAINTENANCE,2386DNH,27-Oct-23,1077.12,179.52,163395,EDS2,"390000              Works - Construction, Repair & Maintenance",C,2023,7
619,Environment and Regeneration,D N H PROPERTY MAINTENANCE,2393DNH,27-Oct-23,1794.9,299.15,163395,Vestry Hall,"390000              Works - Construction, Repair & Maintenance",C,2023,7
620,Environment and Regeneration,D N H PROPERTY MAINTENANCE,2372DNH,27-Oct-23,27686.45,4614.41,163395,EDS2,"390000              Works - Construction, Repair & Maintenance",C,2023,7
621,Environment and Regeneration,D N H PROPERTY MAINTENANCE,2382DNH,27-Oct-23,9596.32,1599.39,163395,EDS2,"390000              Works - Construction, Repair & Maintenance",C,2023,7
622,Environment and Regeneration,D N H PROPERTY MAINTENANCE,2381DNH,27-Oct-23,2592,432,163395,EDS2,"390000              Works - Construction, Repair & Maintenance",C,2023,7
623,Environment and Regeneration,D N H PROPERTY MAINTENANCE,2380DNH,27-Oct-23,2592,432,163395,EDS2,"390000              Works - Construction, Repair & Maintenance",C,2023,7
624,Community and Housing,Tunstall Healthcare (UK) Limited,CD970029158,11-Oct-23,643.2,107.2,163420,Mascot,190000              Facilities & Management Services,A,2023,7
625,"Children, Schools and Family",REDACTED PERSONAL DATA,1034642,06-Oct-23,548.09,0,163471,UASC LAC Under 18,200000              Financial Services,R,2023,7
626,"Children, Schools and Family",REDACTED PERSONAL DATA,1034728,06-Oct-23,785.52,0,163471,Placements Under 18,200000              Financial Services,R,2023,7
627,"Children, Schools and Family",REDACTED PERSONAL DATA,1034736,06-Oct-23,692.46,0,163471,Placements Under 18,200000              Financial Services,R,2023,7
628,"Children, Schools and Family",REDACTED PERSONAL DATA,1038990,13-Oct-23,548.09,0,163471,UASC LAC Under 18,200000              Financial Services,R,2023,7
629,"Children, Schools and Family",REDACTED PERSONAL DATA,1039073,13-Oct-23,785.52,0,163471,Placements Under 18,200000              Financial Services,R,2023,7
630,"Children, Schools and Family",REDACTED PERSONAL DATA,1039082,13-Oct-23,692.46,0,163471,Placements Under 18,200000              Financial Services,R,2023,7
631,"Children, Schools and Family",REDACTED PERSONAL DATA,1043050,20-Oct-23,548.09,0,163471,UASC LAC Under 18,200000              Financial Services,R,2023,7
632,"Children, Schools and Family",REDACTED PERSONAL DATA,1043135,20-Oct-23,785.52,0,163471,Placements Under 18,200000              Financial Services,R,2023,7
633,"Children, Schools and Family",REDACTED PERSONAL DATA,1043144,20-Oct-23,692.46,0,163471,Placements Under 18,200000              Financial Services,R,2023,7
634,"Children, Schools and Family",REDACTED PERSONAL DATA,1048090,27-Oct-23,548.09,0,163471,UASC LAC Under 18,200000              Financial Services,R,2023,7
635,"Children, Schools and Family",REDACTED PERSONAL DATA,1048175,27-Oct-23,785.52,0,163471,Placements Under 18,200000              Financial Services,R,2023,7
636,"Children, Schools and Family",REDACTED PERSONAL DATA,1048184,27-Oct-23,692.46,0,163471,Placements Under 18,200000              Financial Services,R,2023,7
637,Environment and Regeneration,NET-CTRL,11884,30-Oct-23,1914,319,163621,CCTV,270000              Information Communication Technology,A,2023,7
638,Corporate Services,AEA (BOOKINGS),35157,19-Oct-23,1620,270,163833,Electoral Registration,260000              Human Resources,A,2023,7
639,Community and Housing,Active Prospects,1045176,25-Oct-23,6103.76,0,163859,Learning Disabilities Placemnt,321017              Nursing & Residential Care Homes,A,2023,7
640,Community and Housing,REDACTED PERSONAL DATA,1035074,10-Oct-23,1281.72,0,163971,Older People Placements - East,DIRECT PAYMENTS,R,2023,7
641,Corporate Services,LONDON COUNCILS,4348793,24-Oct-23,38230,0,164343,VOLUNTARY SECTOR COORDINATION,OLA,A,2023,7
642,Community and Housing,ENTERPRISE CARE SUPPORT LTD - FC,ECS P06/2,12-Oct-23,952.97,0,164431,Older People Placements - East,321000              Social Community Care Supplies & Services - Adult,A,2023,7
643,Community and Housing,ENTERPRISE CARE SUPPORT LTD - FC,ECS P06/20,12-Oct-23,694.58,0,164431,Older People Placements - East,321000              Social Community Care Supplies & Services - Adult,A,2023,7
644,Community and Housing,ENTERPRISE CARE SUPPORT LTD - FC,ECS P06/15,12-Oct-23,1008.49,0,164431,Older People Placements - East,321000              Social Community Care Supplies & Services - Adult,A,2023,7
645,Community and Housing,ENTERPRISE CARE SUPPORT LTD - FC,ECS P06/12,12-Oct-23,1159.83,0,164431,Older People Placements - East,321000              Social Community Care Supplies & Services - Adult,A,2023,7
646,Community and Housing,ENTERPRISE CARE SUPPORT LTD - FC,ECS P06/27,12-Oct-23,1874.5,0,164431,Older People Placements - East,321000              Social Community Care Supplies & Services - Adult,A,2023,7
647,Community and Housing,ENTERPRISE CARE SUPPORT LTD - FC,ECS P06/1,12-Oct-23,1827.2,0,164431,Phys/Sens Placements - East,321000              Social Community Care Supplies & Services - Adult,A,2023,7
648,Community and Housing,ENTERPRISE CARE SUPPORT LTD - FC,ECS P06/17,12-Oct-23,583.18,0,164431,Older People Placements - East,321000              Social Community Care Supplies & Services - Adult,A,2023,7
649,Community and Housing,ENTERPRISE CARE SUPPORT LTD - FC,ECS P06/21,12-Oct-23,1260.94,0,164431,Older People Placements - East,321000              Social Community Care Supplies & Services - Adult,A,2023,7
650,Community and Housing,ENTERPRISE CARE SUPPORT LTD - FC,ECS P06/19,12-Oct-23,964.5,0,164431,Older People Placements - East,321000              Social Community Care Supplies & Services - Adult,A,2023,7
651,Community and Housing,ENTERPRISE CARE SUPPORT LTD - FC,ECS P06/5,12-Oct-23,745.23,0,164431,Older People Placements - East,321000              Social Community Care Supplies & Services - Adult,A,2023,7
652,Community and Housing,ENTERPRISE CARE SUPPORT LTD - FC,ECS P06/4,12-Oct-23,3498.64,0,164431,Older People Placements - East,321000              Social Community Care Supplies & Services - Adult,A,2023,7
653,Community and Housing,ENTERPRISE CARE SUPPORT LTD - FC,ECS P06/18,12-Oct-23,750.97,0,164431,Older People Placements - East,321000              Social Community Care Supplies & Services - Adult,A,2023,7
654,Community and Housing,ENTERPRISE CARE SUPPORT LTD - FC,ECS P06/8,12-Oct-23,751.06,0,164431,Learning Disabilities Placemnt,321000              Social Community Care Supplies & Services - Adult,A,2023,7
655,Community and Housing,ENTERPRISE CARE SUPPORT LTD - FC,ECS P06/26,12-Oct-23,1080.68,0,164431,Older People Placements - East,321000              Social Community Care Supplies & Services - Adult,A,2023,7
656,Community and Housing,ENTERPRISE CARE SUPPORT LTD - FC,ECS P06/13,12-Oct-23,2833.15,0,164431,Older People Placements - East,321000              Social Community Care Supplies & Services - Adult,A,2023,7
657,Community and Housing,ENTERPRISE CARE SUPPORT LTD - FC,ECS P06/11,12-Oct-23,2648.9,0,164431,Older People Placements - East,321000              Social Community Care Supplies & Services - Adult,A,2023,7
658,Community and Housing,ENTERPRISE CARE SUPPORT LTD - FC,ECS P06/10,12-Oct-23,1492.11,0,164431,Older People Placements - East,321000              Social Community Care Supplies & Services - Adult,A,2023,7
659,Community and Housing,ENTERPRISE CARE SUPPORT LTD - FC,ECS P06/28,12-Oct-23,1744.25,0,164431,Older People Placements - East,321000              Social Community Care Supplies & Services - Adult,A,2023,7
660,Community and Housing,ENTERPRISE CARE SUPPORT LTD - FC,ECS P06/3,12-Oct-23,946.72,0,164431,Older People Placements - East,321000              Social Community Care Supplies & Services - Adult,A,2023,7
661,Community and Housing,ENTERPRISE CARE SUPPORT LTD - FC,ECS P07/2,17-Oct-23,1004.05,0,164431,Older People Placements - East,321000              Social Community Care Supplies & Services - Adult,A,2023,7
662,Community and Housing,ENTERPRISE CARE SUPPORT LTD - FC,ECS P07/24,17-Oct-23,691.23,0,164431,Older People Placements - East,321000              Social Community Care Supplies & Services - Adult,A,2023,7
663,Community and Housing,ENTERPRISE CARE SUPPORT LTD - FC,ECS P07/18,17-Oct-23,1241.95,0,164431,Older People Placements - East,321000              Social Community Care Supplies & Services - Adult,A,2023,7
664,Community and Housing,ENTERPRISE CARE SUPPORT LTD - FC,ECS P07/14,17-Oct-23,1251.16,0,164431,Older People Placements - East,321000              Social Community Care Supplies & Services - Adult,A,2023,7
665,Community and Housing,ENTERPRISE CARE SUPPORT LTD - FC,ECS P07/31,17-Oct-23,1899.21,0,164431,Older People Placements - East,321000              Social Community Care Supplies & Services - Adult,A,2023,7
666,Community and Housing,ENTERPRISE CARE SUPPORT LTD - FC,ECS P07/1,17-Oct-23,3066.33,0,164431,Phys/Sens Placements - East,321000              Social Community Care Supplies & Services - Adult,A,2023,7
667,Community and Housing,ENTERPRISE CARE SUPPORT LTD - FC,ECS P07/20,17-Oct-23,537.41,0,164431,Older People Placements - East,321000              Social Community Care Supplies & Services - Adult,A,2023,7
668,Community and Housing,ENTERPRISE CARE SUPPORT LTD - FC,ECS P07/3,17-Oct-23,688.95,0,164431,Older People Placements - East,321000              Social Community Care Supplies & Services - Adult,A,2023,7
669,Community and Housing,ENTERPRISE CARE SUPPORT LTD - FC,ECS P07/25,17-Oct-23,1403.75,0,164431,Older People Placements - East,321000              Social Community Care Supplies & Services - Adult,A,2023,7
670,Community and Housing,ENTERPRISE CARE SUPPORT LTD - FC,ECS P07/12,17-Oct-23,1420.75,0,164431,Older People Placements - East,321000              Social Community Care Supplies & Services - Adult,A,2023,7
671,Community and Housing,ENTERPRISE CARE SUPPORT LTD - FC,ECS P07/7,17-Oct-23,724.05,0,164431,Older People Placements - East,321000              Social Community Care Supplies & Services - Adult,A,2023,7
672,Community and Housing,ENTERPRISE CARE SUPPORT LTD - FC,ECS P07/23,17-Oct-23,970.83,0,164431,Older People Placements - East,321000              Social Community Care Supplies & Services - Adult,A,2023,7
673,Community and Housing,ENTERPRISE CARE SUPPORT LTD - FC,ECS P07/6,17-Oct-23,741.53,0,164431,Older People Placements - East,321000              Social Community Care Supplies & Services - Adult,A,2023,7
674,Community and Housing,ENTERPRISE CARE SUPPORT LTD - FC,ECS P07/5,17-Oct-23,3596.55,0,164431,Older People Placements - East,321000              Social Community Care Supplies & Services - Adult,A,2023,7
675,Community and Housing,ENTERPRISE CARE SUPPORT LTD - FC,ECS P07/21,17-Oct-23,819.59,0,164431,Older People Placements - East,321000              Social Community Care Supplies & Services - Adult,A,2023,7
676,Community and Housing,ENTERPRISE CARE SUPPORT LTD - FC,ECS P07/30,17-Oct-23,1073.97,0,164431,Older People Placements - East,321000              Social Community Care Supplies & Services - Adult,A,2023,7
677,Community and Housing,ENTERPRISE CARE SUPPORT LTD - FC,ECS P07/33,17-Oct-23,690.14,0,164431,Older People Placements - East,321000              Social Community Care Supplies & Services - Adult,A,2023,7
678,Community and Housing,ENTERPRISE CARE SUPPORT LTD - FC,ECS P07/15,17-Oct-23,3088.09,0,164431,Older People Placements - East,321000              Social Community Care Supplies & Services - Adult,A,2023,7
679,Community and Housing,ENTERPRISE CARE SUPPORT LTD - FC,ECS P07/13,17-Oct-23,2880.19,0,164431,Older People Placements - East,321000              Social Community Care Supplies & Services - Adult,A,2023,7
680,Community and Housing,ENTERPRISE CARE SUPPORT LTD - FC,ECS P07/27,17-Oct-23,881.41,0,164431,Phys/Sens Placements - East,321000              Social Community Care Supplies & Services - Adult,A,2023,7
681,Community and Housing,BUPA CARE SERVICES BACS RECEIP,1045377,25-Oct-23,8580.84,0,164629,Older People Placements - East,321017              Nursing & Residential Care Homes,A,2023,7
682,Community and Housing,REDACTED PERSONAL DATA,1035266,10-Oct-23,2405.52,0,164694,Older People Placements - East,DIRECT PAYMENTS,R,2023,7
683,Environment and Regeneration,777 DEMOLITION AND HAULAGE CO,71145,10-Oct-23,1962,327,165107,Waste Disposal,180000              Environmental Services,A,2023,7
684,Unassigned,MARSTON GROUP,62907,23-Oct-23,1511.46,0,165202,Corporate Accountancy,200000              Financial Services,A,2023,7
685,"Children, Schools and Family",CHILDREN OF COLOUR,8354,04-Oct-23,5164.71,0,165365,Placements Under 18,321100              Social Community Care Supplies & Services - Children,A,2023,7
686,Community and Housing,REDACTED PERSONAL DATA,1035288,10-Oct-23,1634.32,0,165602,Learning Disabilities Placemnt,DIRECT PAYMENTS,R,2023,7
687,Community and Housing,REDACTED PERSONAL DATA,1035246,10-Oct-23,7111.44,0,165619,Phys/Sens Placements - East,DIRECT PAYMENTS,R,2023,7
688,Community and Housing,BUPA CARE HOMES (ANS) LTD,1045544,25-Oct-23,4791.48,0,165704,Older People Placements - East,321017              Nursing & Residential Care Homes,A,2023,7
689,Corporate Services,Crown Lane Productions Ltd,INV-3672,17-Oct-23,1000,0,165739,Chief Executive,290000              Arts & Leisure Services,A,2023,7
690,Community and Housing,REDACTED PERSONAL DATA,1035327,10-Oct-23,1262.96,0,165786,Older People Placements - East,DIRECT PAYMENTS,R,2023,7
691,Community and Housing,REDACTED PERSONAL DATA,1035339,10-Oct-23,700.8,0,166085,Learning Disabilities Placemnt,DIRECT PAYMENTS,R,2023,7
692,Community and Housing,REDACTED PERSONAL DATA,1042240,20-Oct-23,7119.67,0,166158,Phys/Sens Placements - East,DIRECT PAYMENTS,R,2023,7
693,Environment and Regeneration,COMPLETE ECOLOGY LTD,18/2324,20-Oct-23,540,90,166208,Greenspaces Team (General),240000              Horticultural                                                                             Confirmed,A,2023,7
694,Community and Housing,REDACTED PERSONAL DATA,1035061,10-Oct-23,1485.8,0,166547,Learning Disabilities Placemnt,DIRECT PAYMENTS,R,2023,7
695,Community and Housing,BEXLEY COUNCIL - [DA8 1TL],7001877578,20-Oct-23,3000,0,166625,Safeguarding Adults Board,OLA,A,2023,7
696,"Children, Schools and Family",REDACTED PERSONAL DATA,1034648,06-Oct-23,1354.2,0,166742,Placements Under 18,321100              Social Community Care Supplies & Services - Children,R,2023,7
697,"Children, Schools and Family",REDACTED PERSONAL DATA,1038996,13-Oct-23,1354.2,0,166742,Placements Under 18,321100              Social Community Care Supplies & Services - Children,R,2023,7
698,"Children, Schools and Family",REDACTED PERSONAL DATA,1043056,20-Oct-23,1354.2,0,166742,Placements Under 18,321100              Social Community Care Supplies & Services - Children,R,2023,7
699,"Children, Schools and Family",REDACTED PERSONAL DATA,1048096,27-Oct-23,1354.2,0,166742,Placements Under 18,321100              Social Community Care Supplies & Services - Children,R,2023,7
700,Corporate Services,REDACTED PERSONAL DATA,5.64195E+11,04-Oct-23,1435,0,166885,Client Finance Affairs,120000              Cemetery & Crematorium,R,2023,7
701,Community and Housing,UNIQUE OFFICE SOLUTIONS LTD,113030,09-Oct-23,2600.4,433.4,166889,Assessment & Initial Support T,210000              Furniture & Soft Furnishings,A,2023,7
702,Community and Housing,UNIQUE OFFICE SOLUTIONS LTD,112976,09-Oct-23,1146,191,166889,Long-term Support Team,210000              Furniture & Soft Furnishings,A,2023,7
703,Environment and Regeneration,UNIQUE OFFICE SOLUTIONS LTD,113029,26-Oct-23,2667.6,444.6,166889,EDS2,210000              Furniture & Soft Furnishings,A,2023,7
704,Community and Housing,REDACTED PERSONAL DATA,1035155,10-Oct-23,3639.05,0,166972,Learning Disabilities Placemnt,CSF-DIRECT PAYMENTS,R,2023,7
705,Environment and Regeneration,IMPERIAL CIVIL ENFORC.SOLUT.,INV0000008477,23-Oct-23,1020,170,167737,Operational Running Costs,270000              Information Communication Technology,A,2023,7
706,Environment and Regeneration,IMPERIAL CIVIL ENFORC.SOLUT.,INV0000008536,23-Oct-23,2010.89,335.15,167737,Operational Running Costs,270000              Information Communication Technology,A,2023,7
707,"Children, Schools and Family",RAINBOW FOSTERING SERVICES LTD,RF3547,20-Oct-23,3621.42,0,167793,Placements Under 18,321100              Social Community Care Supplies & Services - Children,A,2023,7
708,"Children, Schools and Family",RAINBOW FOSTERING SERVICES LTD,RF3753,20-Oct-23,703.57,0,167793,Placements Under 18,321100              Social Community Care Supplies & Services - Children,A,2023,7
709,Corporate Services,REDACTED PERSONAL DATA,10243895,10-Oct-23,47112,7852,168092,SLLP - Disbursements,280000              Legal Services,R,2023,7
710,Corporate Services,REDACTED PERSONAL DATA,10245610,17-Oct-23,1485,247.5,168092,SLLP - Disbursements,280000              Legal Services,R,2023,7
711,Corporate Services,REDACTED PERSONAL DATA,10248476,23-Oct-23,55647,9274.5,168092,SLLP - Disbursements,280000              Legal Services,R,2023,7
712,Capital,CBS Adaptation Design,1799,09-Oct-23,1195.7,169.95,168147,Disabled Facilities Grant,200000              Financial Services,A,2023,7
713,Capital,CBS Adaptation Design,1817,03-Oct-23,1303.97,217.33,168147,Disabled Facilities Grant,200000              Financial Services,A,2023,7
714,Capital,CBS Adaptation Design,1808,09-Oct-23,1196.37,170.06,168147,Disabled Facilities Grant,200000              Financial Services,A,2023,7
715,Capital,CBS Adaptation Design,1814,17-Oct-23,1966.13,240.19,168147,Disabled Facilities Grant,200000              Financial Services,A,2023,7
716,Capital,CBS Adaptation Design,1803,17-Oct-23,2374.13,307.69,168147,Disabled Facilities Grant,200000              Financial Services,A,2023,7
717,Capital,CBS Adaptation Design,1813,17-Oct-23,1881.76,226.13,168147,Disabled Facilities Grant,200000              Financial Services,A,2023,7
718,Capital,CBS Adaptation Design,1818,19-Oct-23,517.46,56.74,168147,Disabled Facilities Grant,200000              Financial Services,A,2023,7
719,Capital,CBS Adaptation Design,1812,20-Oct-23,1169.11,165.52,168147,Disabled Facilities Grant,200000              Financial Services,A,2023,7
720,Capital,CBS Adaptation Design,1798,20-Oct-23,2701.36,362.73,168147,Disabled Facilities Grant,200000              Financial Services,A,2023,7
721,Capital,CBS Adaptation Design,1819,24-Oct-23,974.15,133.19,168147,Disabled Facilities Grant,200000              Financial Services,A,2023,7
722,Capital,CBS Adaptation Design,1820,25-Oct-23,804.54,104.92,168147,Disabled Facilities Grant,200000              Financial Services,A,2023,7
723,Capital,CBS Adaptation Design,1815,25-Oct-23,821.15,107.69,168147,Disabled Facilities Grant,200000              Financial Services,A,2023,7
724,Corporate Services,LANGUAGE BANK,MTS-140923,04-Oct-23,924,154,168229,Translation Service,TRANSLATIONS,A,2023,7
725,Corporate Services,LANGUAGE BANK,MTS-190923,16-Oct-23,819,136.5,168229,Translation Service,TRANSLATIONS,A,2023,7
726,Corporate Services,LANGUAGE BANK,MTS-220923,16-Oct-23,645,107.5,168229,Translation Service,TRANSLATIONS,A,2023,7
727,Corporate Services,LANGUAGE BANK,MTS-210623,27-Oct-23,834,139,168229,Translation Service,TRANSLATIONS,A,2023,7
728,Community and Housing,REDACTED PERSONAL DATA,1035066,10-Oct-23,917.8,0,168403,Learning Disabilities Placemnt,DIRECT PAYMENTS,R,2023,7
729,Community and Housing,HOUSING21,INV718897-976135,20-Oct-23,698.1,0,169230,Older People Placements - East,321000              Social Community Care Supplies & Services - Adult,A,2023,7
730,Community and Housing,HOUSING21,INV718897-83310,20-Oct-23,876.96,0,169230,Older People Placements - East,321000              Social Community Care Supplies & Services - Adult,A,2023,7
731,Community and Housing,HOUSING21,INV718897-82473,20-Oct-23,2777.56,0,169230,Older People Placements - East,321000              Social Community Care Supplies & Services - Adult,A,2023,7
732,Community and Housing,HOUSING21,INV718897-583114,20-Oct-23,4508.28,0,169230,Older People Placements - East,321000              Social Community Care Supplies & Services - Adult,A,2023,7
733,Community and Housing,HOUSING21,INV718897-534037,20-Oct-23,1239.31,0,169230,Older People Placements - East,321000              Social Community Care Supplies & Services - Adult,A,2023,7
734,Community and Housing,HOUSING21,INV718897-532662,20-Oct-23,1503.04,0,169230,Older People Placements - East,321000              Social Community Care Supplies & Services - Adult,A,2023,7
735,Community and Housing,HOUSING21,INV718897-934625,20-Oct-23,868.01,0,169230,Older People Placements - East,321000              Social Community Care Supplies & Services - Adult,A,2023,7
736,Community and Housing,HOUSING21,INV718897-507687,20-Oct-23,1502.76,0,169230,Phys/Sens Placements - East,321000              Social Community Care Supplies & Services - Adult,A,2023,7
737,Community and Housing,HOUSING21,INV718897-974418,20-Oct-23,894.92,0,169230,Older People Placements - East,321000              Social Community Care Supplies & Services - Adult,A,2023,7
738,Community and Housing,HOUSING21,INV718897-945725,20-Oct-23,966.48,0,169230,Older People Placements - East,321000              Social Community Care Supplies & Services - Adult,A,2023,7
739,"Children, Schools and Family",KC Services Group,44015,26-Oct-23,15120,2520,169420,Family Hubs,"390000              Works - Construction, Repair & Maintenance",A,2023,7
740,"Children, Schools and Family",JULIUS RUTHERFOORD AND CO LTD,INVS151341,23-Oct-23,861.97,143.66,170092,Lower Morden CC Building Mgt,130000              Cleaning & Janitorial,A,2023,7
741,"Children, Schools and Family",JULIUS RUTHERFOORD AND CO LTD,INVS151369,23-Oct-23,1229.42,204.9,170092,Bond Road Building,130000              Cleaning & Janitorial,A,2023,7
742,"Children, Schools and Family",JULIUS RUTHERFOORD AND CO LTD,INVS151608,23-Oct-23,1950.53,325.09,170092, PFI Unitary Charges,130000              Cleaning & Janitorial,A,2023,7
743,"Children, Schools and Family",JULIUS RUTHERFOORD AND CO LTD,INVS151601,23-Oct-23,1673.66,278.94,170092, PFI Unitary Charges,130000              Cleaning & Janitorial,A,2023,7
744,"Children, Schools and Family",JULIUS RUTHERFOORD AND CO LTD,INVS151603,23-Oct-23,25304.67,4217.45,170092, PFI Unitary Charges,130000              Cleaning & Janitorial,A,2023,7
745,"Children, Schools and Family",JULIUS RUTHERFOORD AND CO LTD,INVS151606,23-Oct-23,29555.45,4925.92,170092, PFI Unitary Charges,130000              Cleaning & Janitorial,A,2023,7
746,"Children, Schools and Family",JULIUS RUTHERFOORD AND CO LTD,INVS151605,23-Oct-23,1867.67,311.28,170092, PFI Unitary Charges,130000              Cleaning & Janitorial,A,2023,7
747,"Children, Schools and Family",JULIUS RUTHERFOORD AND CO LTD,INVS151599,23-Oct-23,26940.04,4490.02,170092, PFI Unitary Charges,130000              Cleaning & Janitorial,A,2023,7
748,"Children, Schools and Family",JULIUS RUTHERFOORD AND CO LTD,INVS151659,23-Oct-23,861.97,143.66,170092,Avenue CC Building Management,130000              Cleaning & Janitorial,A,2023,7
749,"Children, Schools and Family",JULIUS RUTHERFOORD AND CO LTD,INVS151505,23-Oct-23,862.03,143.67,170092,Ivy Garden CC Building,130000              Cleaning & Janitorial,A,2023,7
750,"Children, Schools and Family",JULIUS RUTHERFOORD AND CO LTD,INVS151390,23-Oct-23,861.97,143.66,170092,Church Road Building,130000              Cleaning & Janitorial,A,2023,7
751,"Children, Schools and Family",JULIUS RUTHERFOORD AND CO LTD,INVS151554,23-Oct-23,1298.96,216.49,170092,Newminster CC Building Mgt,130000              Cleaning & Janitorial,A,2023,7
752,Corporate Services,JULIUS RUTHERFOORD AND CO LTD,INVS151547,23-Oct-23,2498.65,416.44,170092,PDC,130000              Cleaning & Janitorial,A,2023,7
753,"Children, Schools and Family",SENSATIONAL KIDS,INV-7078,20-Oct-23,685,0,170195,Non-Delegated Statements,321100              Social Community Care Supplies & Services - Children,A,2023,7
754,Community and Housing,REDACTED PERSONAL DATA,1035015,10-Oct-23,547.4,0,170275,Phys/Sens Placements - East,DIRECT PAYMENTS,R,2023,7
755,Community and Housing,INDEPENDENCE HOMES LTD,CED00166,11-Oct-23,6144.04,0,170527,Learning Disabilities Placemnt,321017              Nursing & Residential Care Homes,A,2023,7
756,Community and Housing,INDEPENDENCE HOMES LTD,1045481,25-Oct-23,8610.44,0,170527,Learning Disabilities Placemnt,321017              Nursing & Residential Care Homes,A,2023,7
757,"Children, Schools and Family",GREATER LONDON FOSTERING LTD,INV-1469,20-Oct-23,3403.5,0,170596,Placements Under 18,321100              Social Community Care Supplies & Services - Children,A,2023,7
758,"Children, Schools and Family",GREATER LONDON FOSTERING LTD,INV-1438,20-Oct-23,3664.2,0,170596,Placements Under 18,321100              Social Community Care Supplies & Services - Children,A,2023,7
759,"Children, Schools and Family",GREATER LONDON FOSTERING LTD,INV-1408,20-Oct-23,3578.4,0,170596,Placements Under 18,321100              Social Community Care Supplies & Services - Children,A,2023,7
760,"Children, Schools and Family",GREATER LONDON FOSTERING LTD,INV-1439,20-Oct-23,3664.2,0,170596,Placements Under 18,321100              Social Community Care Supplies & Services - Children,A,2023,7
761,Community and Housing,REDACTED PERSONAL DATA,1035260,10-Oct-23,2146.92,0,170878,Learning Disabilities Placemnt,DIRECT PAYMENTS,R,2023,7
762,Community and Housing,REDACTED PERSONAL DATA,1035340,10-Oct-23,1603.12,0,171056,Phys/Sens Placements - East,DIRECT PAYMENTS,R,2023,7
763,"Children, Schools and Family",Parallel Learning Trust,WVSI271,03-Oct-23,9172.68,0,171235,Non-Delegated Statements,170000              Education,A,2023,7
764,Community and Housing,ST GEORGES RES. CARE HOME,1045530,25-Oct-23,5285.48,0,171491,Learning Disabilities Placemnt,321017              Nursing & Residential Care Homes,A,2023,7
765,Community and Housing,ST GEORGES RES. CARE HOME,1045560,25-Oct-23,4366.24,0,171491,Learning Disabilities Placemnt,321017              Nursing & Residential Care Homes,A,2023,7
766,"Children, Schools and Family",St Christopher's Fellowship,20486,27-Oct-23,3021.3,0,171651,Placements Under 18,321100              Social Community Care Supplies & Services - Children,A,2023,7
767,Capital,SSD LIMITED,SI-619,30-Oct-23,12054,2009,171736,Works to other buildings,190000              Facilities & Management Services,A,2023,7
768,Corporate Services,SSD LIMITED,SI-618,25-Oct-23,1980,330,171736,Legal Shared Service,190000              Facilities & Management Services,A,2023,7
769,Community and Housing,REDACTED PERSONAL DATA,1035212,10-Oct-23,698.2,0,172070,Learning Disabilities Placemnt,DIRECT PAYMENTS,R,2023,7
770,Community and Housing,NORBURY PROPERTY SERV LDN LTD,SI-9359,25-Oct-23,10485,0,172104,Bed & Breakfast - accomm,321000              Social Community Care Supplies & Services - Adult,A,2023,7
771,Community and Housing,EALING COUNCIL,1045164,25-Oct-23,2985.92,0,172129,Mental Health Placements,OLA,A,2023,7
772,Community and Housing,CARRICKS BROOK,1045183,25-Oct-23,6536.16,0,172297,Learning Disabilities Placemnt,321017              Nursing & Residential Care Homes,A,2023,7
773,Community and Housing,BROADHAM CARE LTD,1045241,25-Oct-23,8014.84,0,172298,Learning Disabilities Placemnt,321017              Nursing & Residential Care Homes,A,2023,7
774,Community and Housing,BROADHAM CARE LTD,1045513,25-Oct-23,8287.36,0,172298,Learning Disabilities Placemnt,321017              Nursing & Residential Care Homes,A,2023,7
775,"Children, Schools and Family",LINDEN LODGE SCHOOL,INV-1461,20-Oct-23,153027.64,0,172798,Non-Delegated Statements,170000              Education,A,2023,7
776,Community and Housing,REDACTED PERSONAL DATA,1035023,10-Oct-23,1132.2,0,172912,Learning Disabilities Placemnt,DIRECT PAYMENTS,R,2023,7
777,Community and Housing,REDACTED PERSONAL DATA,1035150,10-Oct-23,968.12,0,172914,Learning Disabilities Placemnt,DIRECT PAYMENTS,R,2023,7
778,Community and Housing,REDACTED PERSONAL DATA,1035232,10-Oct-23,599.04,0,172936,Phys/Sens Placements - East,DIRECT PAYMENTS,R,2023,7
779,Unassigned,WILLOW BID LTD,A.GOPAUL,05-Oct-23,37555.13,6259.19,173005,Corporate Services,250000              Housing Management,A,2023,7
780,Community and Housing,HAVERING COURT NURSING HOME,1045147,25-Oct-23,4954.12,0,173297,Older People Placements - East,321017              Nursing & Residential Care Homes,A,2023,7
781,Community and Housing,REDACTED PERSONAL DATA,1035230,10-Oct-23,977.52,0,173308,Phys/Sens Placements - East,DIRECT PAYMENTS,R,2023,7
782,Community and Housing,SOUTH THAMES COLLEGE,5005974,11-Oct-23,162426.74,0,173357,AE Main Adult Learning,190000              Facilities & Management Services,A,2023,7
783,"Children, Schools and Family",REDACTED PERSONAL DATA,1034759,06-Oct-23,550.3,0,173600,Placements Under 18,321100              Social Community Care Supplies & Services - Children,R,2023,7
784,"Children, Schools and Family",REDACTED PERSONAL DATA,1035589,09-Oct-23,6420.44,0,173793,Child Disabilities - Placement,CSF-DIRECT PAYMENTS,R,2023,7
785,Community and Housing,REDACTED PERSONAL DATA,1035306,10-Oct-23,576.04,0,173807,Learning Disabilities Placemnt,DIRECT PAYMENTS,R,2023,7
786,Community and Housing,HARBOUR CARE (UK) LTD,1045457,25-Oct-23,6996.8,0,173947,Learning Disabilities Placemnt,321017              Nursing & Residential Care Homes,A,2023,7
787,"Children, Schools and Family",REDACTED PERSONAL DATA,1035609,09-Oct-23,2200,0,174212, Statementing-Transport,CSF-DIRECT PAYMENTS,R,2023,7
788,Community and Housing,ASHINGTON HOUSE,1045204,25-Oct-23,4781.24,0,174259,Learning Disabilities Placemnt,321017              Nursing & Residential Care Homes,A,2023,7
789,Community and Housing,REDACTED PERSONAL DATA,1035060,10-Oct-23,811.2,0,174449,Phys/Sens Placements - East,DIRECT PAYMENTS,R,2023,7
790,Community and Housing,PRECIOUS HOMES LTD,VER002584,02-Oct-23,10423.35,0,174641,Learning Disabilities Placemnt,321017              Nursing & Residential Care Homes,A,2023,7
791,Community and Housing,PRECIOUS HOMES LTD,VER002576,02-Oct-23,10423.35,0,174641,Learning Disabilities Placemnt,321017              Nursing & Residential Care Homes,A,2023,7
792,Community and Housing,PRECIOUS HOMES LTD,VER002593,06-Oct-23,10087.11,0,174641,Learning Disabilities Placemnt,321017              Nursing & Residential Care Homes,A,2023,7
793,Community and Housing,SUPREME HOMES,30543,11-Oct-23,3280,0,174758,Mental Health Placements,321017              Nursing & Residential Care Homes,A,2023,7
794,Community and Housing,SUTTON COURT CARE CENTRE,1045273,25-Oct-23,3723.24,0,174833,Older People Placements - East,321017              Nursing & Residential Care Homes,A,2023,7
795,Community and Housing,SUTTON COURT CARE CENTRE,1045349,25-Oct-23,3163.36,0,174833,Older People Placements - East,321017              Nursing & Residential Care Homes,A,2023,7
796,Community and Housing,SUTTON COURT CARE CENTRE,1045379,25-Oct-23,4049.6,0,174833,Phys/Sens Placements - East,321017              Nursing & Residential Care Homes,A,2023,7
797,Community and Housing,SUTTON COURT CARE CENTRE,1045535,25-Oct-23,4139.36,0,174833,Phys/Sens Placements - East,321017              Nursing & Residential Care Homes,A,2023,7
798,Community and Housing,REDACTED PERSONAL DATA,1034995,10-Oct-23,782,0,174975,Learning Disabilities Placemnt,DIRECT PAYMENTS,R,2023,7
799,Environment and Regeneration,SELECTA MARK PLC,144896,09-Oct-23,587.4,97.9,175047,MOPAC Projects,170000              Education,A,2023,7
800,Corporate Services,COSMIC EUROPE LIMTED,UK7374,19-Oct-23,522,87,175169,Translation Service,TRANSLATIONS,A,2023,7
801,Corporate Services,COSMIC EUROPE LIMTED,UK7380,19-Oct-23,756,126,175169,Translation Service,TRANSLATIONS,A,2023,7
802,"Children, Schools and Family",GLOBAL MEDIATION LTD,INV-94803,23-Oct-23,3960,660,175270,Non-Delegated Statements,260000              Human Resources                                                                           Confirmed,A,2023,7
803,Corporate Services,REDACTED PERSONAL DATA,1098,23-Oct-23,2100,350,175409,SLLP - Disbursements,280000              Legal Services                                                                            Confirmed,R,2023,7
804,Corporate Services,REDACTED PERSONAL DATA,1169,23-Oct-23,1200,200,175409,SLLP - Disbursements,280000              Legal Services                                                                            Confirmed,R,2023,7
805,Community and Housing,KISIMUL SCHOOL,1045170,25-Oct-23,14008.68,0,175545,Learning Disabilities Placemnt,321017              Nursing & Residential Care Homes,A,2023,7
806,Community and Housing,KISIMUL SCHOOL,1045421,25-Oct-23,17689.84,0,175545,Learning Disabilities Placemnt,321017              Nursing & Residential Care Homes,A,2023,7
807,Community and Housing,REDACTED PERSONAL DATA,1035324,10-Oct-23,2189.6,0,175782,Phys/Sens Placements - East,DIRECT PAYMENTS,R,2023,7
808,Community and Housing,REDACTED PERSONAL DATA,1035170,10-Oct-23,1600.6,0,175960,Learning Disabilities Placemnt,DIRECT PAYMENTS,R,2023,7
809,Community and Housing,REDACTED PERSONAL DATA,1035182,10-Oct-23,552.44,0,176619,Phys/Sens Placements - East,DIRECT PAYMENTS,R,2023,7
810,Community and Housing,REDACTED PERSONAL DATA,1035153,10-Oct-23,6410.36,0,176783,Phys/Sens Placements - East,DIRECT PAYMENTS,R,2023,7
811,Community and Housing,REDACTED PERSONAL DATA,1035267,10-Oct-23,1800.4,0,176868,Phys/Sens Placements - East,DIRECT PAYMENTS,R,2023,7
812,Community and Housing,SPRING LAKE CARE HOME LTD,1045317,25-Oct-23,11418,0,177067,Learning Disabilities Placemnt,321017              Nursing & Residential Care Homes,A,2023,7
813,Community and Housing,SPRING LAKE CARE HOME LTD,1045528,25-Oct-23,6468,0,177067,Learning Disabilities Placemnt,321017              Nursing & Residential Care Homes,A,2023,7
814,Corporate Services,CLEARTONE TELECOMS LTD,I95626,13-Oct-23,2820,470,177154,Local Taxation Bailiffs,270000              Information Communication Technology,A,2023,7
815,"Children, Schools and Family",HA TUTORS LTD,INV-14066,04-Oct-23,2918.4,486.4,177219,Non-Delegated Statements,170000              Education,A,2023,7
816,"Children, Schools and Family",HA TUTORS LTD,INV-14071,04-Oct-23,3330,555,177219,Non-Delegated Statements,170000              Education,A,2023,7
817,"Children, Schools and Family",HA TUTORS LTD,INV-14069,04-Oct-23,1132.8,188.8,177219,Non-Delegated Statements,170000              Education,A,2023,7
818,"Children, Schools and Family",HA TUTORS LTD,INV-14072,04-Oct-23,3256.8,542.8,177219,Non-Delegated Statements,170000              Education,A,2023,7
819,"Children, Schools and Family",HA TUTORS LTD,INV-14073,04-Oct-23,2414.4,402.4,177219,Non-Delegated Statements,170000              Education,A,2023,7
820,"Children, Schools and Family",HA TUTORS LTD,INV-14068,04-Oct-23,1776,296,177219,Non-Delegated Statements,170000              Education,A,2023,7
821,"Children, Schools and Family",HA TUTORS LTD,INV-14074,04-Oct-23,7938.16,1323.03,177219,Non-Delegated Statements,170000              Education,A,2023,7
822,"Children, Schools and Family",HA TUTORS LTD,INV-14070,04-Oct-23,8755.2,1459.2,177219,Non-Delegated Statements,170000              Education,A,2023,7
823,"Children, Schools and Family",HA TUTORS LTD,INV-14067,04-Oct-23,6920.4,1153.4,177219,Non-Delegated Statements,170000              Education,A,2023,7
824,Environment and Regeneration,PERMANENT FUTURES,26077,25-Oct-23,13653,2275.5,177323,Reg. Serv - Shared Mgnt Costs,260000              Human Resources                                                                           Confirmed,A,2023,7
825,"Children, Schools and Family",HYTYME B AND B,25948,03-Oct-23,1569.38,174.38,177425,Family Supp SafeGuard - Place,321000              Social Community Care Supplies & Services - Adult,A,2023,7
826,"Children, Schools and Family",HYTYME B AND B,27196,20-Oct-23,1944,324,177425,Family Supp SafeGuard - Place,321000              Social Community Care Supplies & Services - Adult,A,2023,7
827,Community and Housing,REDACTED PERSONAL DATA,1035064,10-Oct-23,856.72,0,177453,Phys/Sens Placements - East,DIRECT PAYMENTS,R,2023,7
828,Community and Housing,REDACTED PERSONAL DATA,1035054,10-Oct-23,724.72,0,177476,Learning Disabilities Placemnt,DIRECT PAYMENTS,R,2023,7
829,Community and Housing,REDACTED PERSONAL DATA,1034998,10-Oct-23,1444.8,0,177502,Phys/Sens Placements - East,DIRECT PAYMENTS,R,2023,7
830,Environment and Regeneration,SUSTAINABLE MERTON,FUND 21,23-Oct-23,26667,0,177594,Reg & Partnerhips Staffing,190000              Facilities & Management Services,A,2023,7
831,Environment and Regeneration,SUSTAINABLE MERTON, FUND 22,23-Oct-23,46836,0,177594,Reg & Partnerhips Staffing,190000              Facilities & Management Services,A,2023,7
832,Corporate Services,SUSTAINABLE MERTON,COL FRIDGE T2,27-Oct-23,40000,0,177594,Cost of Living Fund,190000              Facilities & Management Services,A,2023,7
833,Unassigned,ASSA ABLOY LTD,REFUND,23-Oct-23,3286.8,0,177595,Corporate Accountancy,270000              Information Communication Technology,A,2023,7
834,Community and Housing,VOICEABILITY,12113,06-Oct-23,3683.75,0,177608,Adult Safeguarding,321000              Social Community Care Supplies & Services - Adult,A,2023,7
835,Community and Housing,VOICEABILITY,12111,06-Oct-23,13051,0,177608,Adult Safeguarding,321000              Social Community Care Supplies & Services - Adult,A,2023,7
836,Community and Housing,VOICEABILITY,12110,06-Oct-23,3262.75,0,177608,Adult Safeguarding,321000              Social Community Care Supplies & Services - Adult,A,2023,7
837,Community and Housing,VOICEABILITY,12114,06-Oct-23,3520.8,0,177608,Adult Safeguarding,321000              Social Community Care Supplies & Services - Adult,A,2023,7
838,Community and Housing,VOICEABILITY,12112,06-Oct-23,2894.38,0,177608,Adult Safeguarding,321000              Social Community Care Supplies & Services - Adult,A,2023,7
839,Community and Housing,VOICEABILITY,12186,23-Oct-23,3135.97,0,177608,Adult Safeguarding,321000              Social Community Care Supplies & Services - Adult,A,2023,7
840,Community and Housing,VOICEABILITY,12187,23-Oct-23,757.8,0,177608,Adult Safeguarding,321000              Social Community Care Supplies & Services - Adult,A,2023,7
841,Corporate Services,HPI LIMITED,6160-001923701,18-Oct-23,752.84,125.47,177649,Local Taxation Bailiffs,200000              Financial Services,A,2023,7
842,Community and Housing,REDACTED PERSONAL DATA,1035070,10-Oct-23,703.8,0,177739,Phys/Sens Placements - East,DIRECT PAYMENTS,R,2023,7
843,"Children, Schools and Family",WHITE HUT STUDIO,INV-0036,31-Oct-23,3400,0,177740,Virtual Schools - PEA's,290000              Arts & Leisure Services                                                                   Confirmed,A,2023,7
844,Community and Housing,REDACTED PERSONAL DATA,1035081,10-Oct-23,821.12,0,177785,Phys/Sens Placements - East,DIRECT PAYMENTS,R,2023,7
845,Corporate Services,REDACTED PERSONAL DATA,1347/SHA,18-Oct-23,1050,175,177872,SLLP - Disbursements,280000              Legal Services                                                                            Confirmed,R,2023,7
846,Community and Housing,WORKSHOP 305,IALA170,09-Oct-23,570.64,0,177941,Learning Disabilities Placemnt,321000              Social Community Care Supplies & Services - Adult,A,2023,7
847,Community and Housing,WORKSHOP 305,ASCO170,09-Oct-23,855.96,0,177941,Learning Disabilities Placemnt,321000              Social Community Care Supplies & Services - Adult,A,2023,7
848,Community and Housing,WORKSHOP 305,RAG170,09-Oct-23,855.96,0,177941,Learning Disabilities Placemnt,321000              Social Community Care Supplies & Services - Adult,A,2023,7
849,Community and Housing,WORKSHOP 305,SLAP170,09-Oct-23,570.6,0,177941,Learning Disabilities Placemnt,321000              Social Community Care Supplies & Services - Adult,A,2023,7
850,Community and Housing,WORKSHOP 305,AGAR170,09-Oct-23,570.65,0,177941,Learning Disabilities Placemnt,321000              Social Community Care Supplies & Services - Adult,A,2023,7
851,Community and Housing,WORKSHOP 305,WJON170,09-Oct-23,855.96,0,177941,Learning Disabilities Placemnt,321000              Social Community Care Supplies & Services - Adult,A,2023,7
852,Community and Housing,REDACTED PERSONAL DATA,1035116,10-Oct-23,1094.8,0,177999,Learning Disabilities Placemnt,DIRECT PAYMENTS,R,2023,7
853,"Children, Schools and Family",REDACTED PERSONAL DATA,1034708,06-Oct-23,923.22,0,178288,Placements Under 18,321100              Social Community Care Supplies & Services - Children,R,2023,7
854,Community and Housing,REDACTED PERSONAL DATA,1035056,10-Oct-23,1212.28,0,178412,Learning Disabilities Placemnt,DIRECT PAYMENTS,R,2023,7
855,Community and Housing,REDACTED PERSONAL DATA,1035237,10-Oct-23,5439,0,178412,Learning Disabilities Placemnt,DIRECT PAYMENTS,R,2023,7
856,Community and Housing,BRAMBLEDOWN CARE HOME,1045328,25-Oct-23,8081.96,0,178465,Phys/Sens Placements - East,321017              Nursing & Residential Care Homes,A,2023,7
857,Corporate Services,THOMSON REUTERS,6157015712,27-Oct-23,936,156,178554,SLLP - Disbursements,260000              Human Resources,A,2023,7
858,Community and Housing,KEW HOUSE,1045337,25-Oct-23,3289.24,0,178621,Older People Placements - East,321017              Nursing & Residential Care Homes,A,2023,7
859,Community and Housing,KEW HOUSE,1045418,25-Oct-23,5800,0,178621,Older People Placements - East,321017              Nursing & Residential Care Homes,A,2023,7
860,Community and Housing,KEW HOUSE,1045495,25-Oct-23,8321.16,0,178621,Older People Placements - East,321017              Nursing & Residential Care Homes,A,2023,7
861,Community and Housing,REDACTED PERSONAL DATA,1035247,10-Oct-23,4893.48,0,178802,Learning Disabilities Placemnt,DIRECT PAYMENTS,R,2023,7
862,Community and Housing,REDACTED PERSONAL DATA,1035187,10-Oct-23,2306.92,0,178874,Learning Disabilities Placemnt,DIRECT PAYMENTS,R,2023,7
863,Unassigned,PENNA PLC,678542,25-Oct-23,19298.4,3216.4,179007,Director Innovation and Change,190000              Facilities & Management Services,A,2023,7
864,Unassigned,PENNA PLC,676605,13-Oct-23,17982.6,2997.1,179007,Director Innovation and Change,190000              Facilities & Management Services,A,2023,7
865,Community and Housing,REDACTED PERSONAL DATA,1035353,10-Oct-23,1532.12,0,179049,Learning Disabilities Placemnt,DIRECT PAYMENTS,R,2023,7
866,Corporate Services,CORAL COMMUNITY ASSESSMENTS,656,20-Oct-23,9337.8,1556.3,179122,SLLP - Disbursements,321100              Social Community Care Supplies & Services - Children                                      Confirmed,A,2023,7
867,Community and Housing,REDACTED PERSONAL DATA,1034972,10-Oct-23,751,0,179142,Learning Disabilities Placemnt,DIRECT PAYMENTS,R,2023,7
868,Corporate Services,HAYS SPECIALIST RECRUITM'T LTD,1013047324,27-Oct-23,8980.2,1496.7,179169,Facilities,260000              Human Resources,A,2023,7
869,Community and Housing,REDACTED PERSONAL DATA,1036791,10-Oct-23,664.64,0,179299,Older People Placements - East,DIRECT PAYMENTS,R,2023,7
870,Community and Housing,REDACTED PERSONAL DATA,1035209,10-Oct-23,2126.36,0,179332,Phys/Sens Placements - East,DIRECT PAYMENTS,R,2023,7
871,Community and Housing,REDACTED PERSONAL DATA,1035262,10-Oct-23,4177,0,179383,Learning Disabilities Placemnt,DIRECT PAYMENTS,R,2023,7
872,Community and Housing,REDACTED PERSONAL DATA,1042278,20-Oct-23,2293.2,0,179383,Learning Disabilities Placemnt,DIRECT PAYMENTS,R,2023,7
873,"Children, Schools and Family",REDACTED PERSONAL DATA,8YE,27-Oct-23,1237.41,0,179598,Placements Over 18,321000              Social Community Care Supplies & Services - Adult,R,2023,7
874,Community and Housing,ELYSIUM CARE PARTNERSHIPS LTD,1045369,25-Oct-23,9818.32,0,179734,Learning Disabilities Placemnt,321017              Nursing & Residential Care Homes,A,2023,7
875,Community and Housing,ELYSIUM CARE PARTNERSHIPS LTD,1045387,25-Oct-23,3462.2,0,179734,Learning Disabilities Placemnt,321017              Nursing & Residential Care Homes,A,2023,7
876,Community and Housing,ELYSIUM CARE PARTNERSHIPS LTD,1045500,25-Oct-23,9821,0,179734,Learning Disabilities Placemnt,321017              Nursing & Residential Care Homes,A,2023,7
877,Community and Housing,WESTHOPE LTD,1045333,25-Oct-23,6350.78,1058.46,179748,Learning Disabilities Placemnt,321017              Nursing & Residential Care Homes,A,2023,7
878,Environment and Regeneration,BARKLANDS TREE SPECIALISTS,355,04-Oct-23,1440,240,179780,Reactive Maintenance,240000              Horticultural,A,2023,7
879,Environment and Regeneration,BARKLANDS TREE SPECIALISTS,354,16-Oct-23,2835,472.5,179780,Pks Rec Grds (Unloc),240000              Horticultural,A,2023,7
880,Environment and Regeneration,BARKLANDS TREE SPECIALISTS,356,16-Oct-23,630,105,179780,Highways GM Contract,240000              Horticultural,A,2023,7
881,Environment and Regeneration,BARKLANDS TREE SPECIALISTS,365,24-Oct-23,8415,1402.5,179780,Tree Safety (Schools),240000              Horticultural,A,2023,7
882,Environment and Regeneration,BARKLANDS TREE SPECIALISTS,364,24-Oct-23,7215,1202.5,179780,Tree Safety (Schools),240000              Horticultural,A,2023,7
883,Environment and Regeneration,BARKLANDS TREE SPECIALISTS,363,25-Oct-23,1875,312.5,179780,Pks Rec Grds (Unloc),240000              Horticultural,A,2023,7
884,Environment and Regeneration,BARKLANDS TREE SPECIALISTS,362,25-Oct-23,3612.3,602.05,179780,Tree Safety (Schools),240000              Horticultural,A,2023,7
885,Environment and Regeneration,BARKLANDS TREE SPECIALISTS,361,25-Oct-23,2144.42,357.4,179780,Tree Safety (Schools),240000              Horticultural,A,2023,7
886,Environment and Regeneration,BARKLANDS TREE SPECIALISTS,328,27-Oct-23,4066.5,677.75,179780,Pks Rec Grds (Unloc),240000              Horticultural,A,2023,7
887,Community and Housing,SUNNINGDALE HOUSE CARE HOME,1045492,25-Oct-23,2575,0,179794,Learning Disabilities Placemnt,321017              Nursing & Residential Care Homes,A,2023,7
888,Community and Housing,SUNLIGHT HOUSE,1045274,25-Oct-23,7667.6,0,179813,Learning Disabilities Placemnt,321017              Nursing & Residential Care Homes,A,2023,7
889,Community and Housing,SUNLIGHT HOUSE,1045393,25-Oct-23,5140,0,179813,Learning Disabilities Placemnt,321017              Nursing & Residential Care Homes,A,2023,7
890,Community and Housing,BHAKTI SHYAMA CARE CENTRE,1045307,25-Oct-23,3557.92,0,179993,Older People Placements - East,321017              Nursing & Residential Care Homes,A,2023,7
891,Community and Housing,BHAKTI SHYAMA CARE CENTRE,1045571,25-Oct-23,2985.6,0,179993,Older People Placements - East,321017              Nursing & Residential Care Homes,A,2023,7
892,Community and Housing,BHAKTI SHYAMA CARE CENTRE,1045575,25-Oct-23,3800,0,179993,Older People Placements - East,321017              Nursing & Residential Care Homes,A,2023,7
893,"Children, Schools and Family",REAMCARE LTD,LHRPAM102301,12-Oct-23,19457.1,0,180045,Placements Under 18,321100              Social Community Care Supplies & Services - Children Residential,A,2023,7
894,"Children, Schools and Family",ST CATHERINE'S SCHOOL,219,27-Oct-23,27721,0,180147,SEN Residential (DSG),170000              Education,A,2023,7
895,Community and Housing,REDACTED PERSONAL DATA,1035334,10-Oct-23,1290.88,0,180174,Older People Placements - East,DIRECT PAYMENTS,R,2023,7
896,Community and Housing,SUNRISE DAY CARE,DP5011,02-Oct-23,3447.42,0,180196,Phys/Sens Placements - East,321000              Social Community Care Supplies & Services - Adult,A,2023,7
897,Community and Housing,SUNRISE DAY CARE,DP5010,02-Oct-23,2243.38,0,180196,Older People Placements - East,321000              Social Community Care Supplies & Services - Adult,A,2023,7
898,Community and Housing,SUNRISE DAY CARE,4613,04-Oct-23,553.56,0,180196,Older People Placements - East,321000              Social Community Care Supplies & Services - Adult,A,2023,7
899,Community and Housing,SUNRISE DAY CARE,4621,05-Oct-23,922.6,0,180196,Older People Placements - East,321000              Social Community Care Supplies & Services - Adult,A,2023,7
900,Community and Housing,SUNRISE DAY CARE,4614,05-Oct-23,738.08,0,180196,Learning Disabilities Placemnt,321000              Social Community Care Supplies & Services - Adult,A,2023,7
901,Community and Housing,SUNRISE DAY CARE,4622,05-Oct-23,553.56,0,180196,Older People Placements - East,321000              Social Community Care Supplies & Services - Adult,A,2023,7
902,Community and Housing,SUNRISE DAY CARE,4624,05-Oct-23,553.56,0,180196,Older People Placements - East,321000              Social Community Care Supplies & Services - Adult,A,2023,7
903,Community and Housing,SUNRISE DAY CARE,4610,05-Oct-23,553.56,0,180196,Older People Placements - East,321000              Social Community Care Supplies & Services - Adult,A,2023,7
904,Community and Housing,SUNRISE DAY CARE,4623,05-Oct-23,553.56,0,180196,Older People Placements - East,321000              Social Community Care Supplies & Services - Adult,A,2023,7
905,Community and Housing,SUNRISE DAY CARE,DP5031,24-Oct-23,1624.72,0,180196,Older People Placements - East,321000              Social Community Care Supplies & Services - Adult,A,2023,7
906,Community and Housing,SUNRISE DAY CARE,4636,24-Oct-23,738.08,0,180196,Learning Disabilities Placemnt,321000              Social Community Care Supplies & Services - Adult,A,2023,7
907,Community and Housing,SUNRISE DAY CARE,4635,24-Oct-23,553.56,0,180196,Older People Placements - East,321000              Social Community Care Supplies & Services - Adult,A,2023,7
908,Community and Housing,SUNRISE DAY CARE,4646,25-Oct-23,553.56,0,180196,Older People Placements - East,321000              Social Community Care Supplies & Services - Adult,A,2023,7
909,Community and Housing,SUNRISE DAY CARE,4645,25-Oct-23,553.56,0,180196,Older People Placements - East,321000              Social Community Care Supplies & Services - Adult,A,2023,7
910,Community and Housing,SUNRISE DAY CARE,4644,25-Oct-23,553.56,0,180196,Older People Placements - East,321000              Social Community Care Supplies & Services - Adult,A,2023,7
911,Community and Housing,SUNRISE DAY CARE,4643,25-Oct-23,922.6,0,180196,Older People Placements - East,321000              Social Community Care Supplies & Services - Adult,A,2023,7
912,Community and Housing,SUNRISE DAY CARE,DP5032,25-Oct-23,2214.72,0,180196,Older People Placements - East,321000              Social Community Care Supplies & Services - Adult,A,2023,7
913,Community and Housing,REDACTED PERSONAL DATA,1035111,10-Oct-23,625.6,0,180242,Phys/Sens Placements - East,DIRECT PAYMENTS,R,2023,7
914,Community and Housing,REDACTED PERSONAL DATA,1035268,10-Oct-23,1446.72,0,180282,Phys/Sens Placements - East,DIRECT PAYMENTS,R,2023,7
915,Community and Housing,REDACTED PERSONAL DATA,1035000,10-Oct-23,3365.68,0,180285,Older People Placements - East,DIRECT PAYMENTS,R,2023,7
916,Community and Housing,SEVACARE,80463-514140,06-Oct-23,2468.82,0,180307,Older People Placements - East,321000              Social Community Care Supplies & Services - Adult,A,2023,7
917,Community and Housing,SEVACARE,80463-752403,06-Oct-23,1001.84,0,180307,Older People Placements - East,321000              Social Community Care Supplies & Services - Adult,A,2023,7
918,Community and Housing,SEVACARE,80463-791266,06-Oct-23,626.15,0,180307,Older People Placements - East,321000              Social Community Care Supplies & Services - Adult,A,2023,7
919,Community and Housing,SEVACARE,80463-869265,06-Oct-23,769.27,0,180307,Older People Placements - East,321000              Social Community Care Supplies & Services - Adult,A,2023,7
920,Community and Housing,SEVACARE,80463-994084,06-Oct-23,644.04,0,180307,Older People Placements - East,321000              Social Community Care Supplies & Services - Adult,A,2023,7
921,Community and Housing,SEVACARE,80463-982561,06-Oct-23,966.06,0,180307,Older People Placements - East,321000              Social Community Care Supplies & Services - Adult,A,2023,7
922,Community and Housing,SEVACARE,80463-79481,06-Oct-23,1896.34,0,180307,Older People Placements - East,321000              Social Community Care Supplies & Services - Adult,A,2023,7
923,Community and Housing,SEVACARE,80463-98888,06-Oct-23,1100.24,0,180307,Older People Placements - East,321000              Social Community Care Supplies & Services - Adult,A,2023,7
924,Community and Housing,SEVACARE,80463-533922,06-Oct-23,10018.4,0,180307,Older People Placements - East,321000              Social Community Care Supplies & Services - Adult,A,2023,7
925,Community and Housing,SEVACARE,80463-506355,06-Oct-23,930.28,0,180307,Phys/Sens Placements - East,321000              Social Community Care Supplies & Services - Adult,A,2023,7
926,Community and Housing,SEVACARE,80463-569458,06-Oct-23,1466.98,0,180307,Phys/Sens Placements - East,321000              Social Community Care Supplies & Services - Adult,A,2023,7
927,Community and Housing,SEVACARE,80463-41998,06-Oct-23,590.37,0,180307,Phys/Sens Placements - East,321000              Social Community Care Supplies & Services - Adult,A,2023,7
928,Community and Housing,SEVACARE,80463-72049,06-Oct-23,1144.96,0,180307,Learning Disabilities Placemnt,321000              Social Community Care Supplies & Services - Adult,A,2023,7
929,Community and Housing,SEVACARE,80463-52108,06-Oct-23,644.04,0,180307,Learning Disabilities Placemnt,321000              Social Community Care Supplies & Services - Adult,A,2023,7
930,Community and Housing,SEVACARE,80463-872605,06-Oct-23,661.93,0,180307,Older People Placements - East,321000              Social Community Care Supplies & Services - Adult,A,2023,7
931,Community and Housing,SEVACARE,80463-867847,06-Oct-23,1127.07,0,180307,Older People Placements - East,321000              Social Community Care Supplies & Services - Adult,A,2023,7
932,Community and Housing,SEVACARE,80463-565513,06-Oct-23,3059.19,0,180307,Phys/Sens Placements - East,321000              Social Community Care Supplies & Services - Adult,A,2023,7
933,Community and Housing,SEVACARE,80463-78739,06-Oct-23,715.6,0,180307,Learning Disabilities Placemnt,321000              Social Community Care Supplies & Services - Adult,A,2023,7
934,Community and Housing,SEVACARE,80463-74975,06-Oct-23,1842.67,0,180307,Older People Placements - East,321000              Social Community Care Supplies & Services - Adult,A,2023,7
935,Community and Housing,SEVACARE,80463-38267,06-Oct-23,1091.29,0,180307,Older People Placements - East,321000              Social Community Care Supplies & Services - Adult,A,2023,7
936,Community and Housing,SEVACARE,80463-68278,06-Oct-23,3041.3,0,180307,Learning Disabilities Placemnt,321000              Social Community Care Supplies & Services - Adult,A,2023,7
937,Community and Housing,SEVACARE,80463-16984,06-Oct-23,500.92,0,180307,Older People Placements - East,321000              Social Community Care Supplies & Services - Adult,A,2023,7
938,Community and Housing,SEVACARE,80463-72268,06-Oct-23,1395.42,0,180307,Learning Disabilities Placemnt,321000              Social Community Care Supplies & Services - Adult,A,2023,7
939,Community and Housing,SEVACARE,80463-654036,06-Oct-23,644.04,0,180307,Older People Placements - East,321000              Social Community Care Supplies & Services - Adult,A,2023,7
940,Community and Housing,SEVACARE,80463-614353,06-Oct-23,518.81,0,180307,Older People Placements - East,321000              Social Community Care Supplies & Services - Adult,A,2023,7
941,Community and Housing,SEVACARE,80463-871695,06-Oct-23,1019.73,0,180307,Older People Placements - East,321000              Social Community Care Supplies & Services - Adult,A,2023,7
942,Community and Housing,SEVACARE,80463-503697,06-Oct-23,894.5,0,180307,Older People Placements - East,321000              Social Community Care Supplies & Services - Adult,A,2023,7
943,Community and Housing,SEVACARE,80463-932264,06-Oct-23,518.81,0,180307,Older People Placements - East,321000              Social Community Care Supplies & Services - Adult,A,2023,7
944,Community and Housing,SEVACARE,01.10.23/10,10-Oct-23,638.92,0,180307,Older People Placements - East,321000              Social Community Care Supplies & Services - Adult,A,2023,7
945,Community and Housing,SEVACARE,01.10.23/3,10-Oct-23,1273.78,0,180307,Older People Placements - East,321000              Social Community Care Supplies & Services - Adult,A,2023,7
946,Community and Housing,SEVACARE,01.10.23/9,10-Oct-23,1019.02,0,180307,Older People Placements - East,321000              Social Community Care Supplies & Services - Adult,A,2023,7
947,Community and Housing,SEVACARE,01.10.23/1,10-Oct-23,2431.61,0,180307,Phys/Sens Placements - East,321000              Social Community Care Supplies & Services - Adult,A,2023,7
948,Community and Housing,SEVACARE,01.10.23/2,10-Oct-23,583.5,0,180307,Older People Placements - East,321000              Social Community Care Supplies & Services - Adult,A,2023,7
949,Community and Housing,SEVACARE,01.10.23/4,10-Oct-23,1287.05,0,180307,Older People Placements - East,321000              Social Community Care Supplies & Services - Adult,A,2023,7
950,"Children, Schools and Family",RESTORE PLC,1404900,18-Oct-23,852.01,142,180441,Head of CSC & Youth Inclusion,190000              Facilities & Management Services,A,2023,7
951,Corporate Services,RESTORE PLC,1410036,18-Oct-23,962.76,160.46,180441,Legal Shared Service,190000              Facilities & Management Services,A,2023,7
952,"Children, Schools and Family",RESTORE PLC,CONSOLIDATED,17-Oct-23,597.37,99.57,180441, Information & Systems Team,190000              Facilities & Management Services,A,2023,7
953,Community and Housing,REDACTED PERSONAL DATA,1035294,10-Oct-23,862.96,0,180447,Older People Placements - East,DIRECT PAYMENTS,R,2023,7
954,Community and Housing,REDACTED PERSONAL DATA,1035136,10-Oct-23,616.32,0,180478,Phys/Sens Placements - East,DIRECT PAYMENTS,R,2023,7
955,"Children, Schools and Family",REDACTED PERSONAL DATA,1034702,06-Oct-23,548.09,0,180579,UASC LAC Under 18,321100              Social Community Care Supplies & Services - Children,R,2023,7
956,"Children, Schools and Family",REDACTED PERSONAL DATA,1034729,06-Oct-23,548.09,0,180579,Placements Under 18,321100              Social Community Care Supplies & Services - Children,R,2023,7
957,"Children, Schools and Family",REDACTED PERSONAL DATA,1039048,13-Oct-23,548.09,0,180579,UASC LAC Under 18,321100              Social Community Care Supplies & Services - Children,R,2023,7
958,"Children, Schools and Family",REDACTED PERSONAL DATA,1039074,13-Oct-23,548.09,0,180579,Placements Under 18,321100              Social Community Care Supplies & Services - Children,R,2023,7
959,"Children, Schools and Family",REDACTED PERSONAL DATA,1043108,20-Oct-23,548.09,0,180579,UASC LAC Under 18,321100              Social Community Care Supplies & Services - Children,R,2023,7
960,"Children, Schools and Family",REDACTED PERSONAL DATA,1043136,20-Oct-23,548.09,0,180579,Placements Under 18,321100              Social Community Care Supplies & Services - Children,R,2023,7
961,"Children, Schools and Family",REDACTED PERSONAL DATA,1048148,27-Oct-23,548.09,0,180579,UASC LAC Under 18,321100              Social Community Care Supplies & Services - Children,R,2023,7
962,"Children, Schools and Family",REDACTED PERSONAL DATA,1048176,27-Oct-23,548.09,0,180579,Placements Under 18,321100              Social Community Care Supplies & Services - Children,R,2023,7
963,Environment and Regeneration,LOVE WIMBLEDON LTD BUS.IMP.DIS,5045,20-Oct-23,10124.4,1687.4,180802,Civic Pride,200000              Financial Services,A,2023,7
964,"Children, Schools and Family",MAYDAY TRAVEL LTD,16196,11-Oct-23,850,0,180803, Youth Service,380000              Vehicle Management,A,2023,7
965,Community and Housing,REDACTED PERSONAL DATA,1034993,10-Oct-23,938.4,0,180804,Learning Disabilities Placemnt,DIRECT PAYMENTS,R,2023,7
966,"Children, Schools and Family",FIVE RIVERS CHILD CARE,106961,23-Oct-23,6214.29,0,180823,Placements Under 18,360000              Passenger Transport                                                                       Confirmed,A,2023,7
967,Community and Housing,REDACTED PERSONAL DATA,1035086,10-Oct-23,2258.16,0,180866,Phys/Sens Placements - East,DIRECT PAYMENTS,R,2023,7
968,Community and Housing,REDACTED PERSONAL DATA,1035191,10-Oct-23,2187.44,0,180889,Older People Placements - East,DIRECT PAYMENTS,R,2023,7
969,Community and Housing,SENAD ECCLESBOURNE LODGE,1045159,25-Oct-23,9810.88,0,180904,Learning Disabilities Placemnt,321017              Nursing & Residential Care Homes,A,2023,7
970,Community and Housing,REDACTED PERSONAL DATA,1035293,10-Oct-23,1170.96,0,180999,Older People Placements - East,DIRECT PAYMENTS,R,2023,7
971,Environment and Regeneration,PREMIER MINICAB SER. UK LTD,258,23-Oct-23,2940,490,181053,Passenger Transport,360000              Passenger Transport,A,2023,7
972,Environment and Regeneration,PREMIER MINICAB SER. UK LTD,130,13-Oct-23,2760,460,181053,Passenger Transport,360000              Passenger Transport,A,2023,7
973,Environment and Regeneration,PREMIER MINICAB SER. UK LTD,67933,09-Oct-23,4590,765,181053,Passenger Transport,360000              Passenger Transport,A,2023,7
974,"Children, Schools and Family",PREMIER MINICAB SER. UK LTD,243,23-Oct-23,574.85,95.81,181053,Child Disabilities - Placement,360000              Passenger Transport,A,2023,7
975,Community and Housing,REDACTED PERSONAL DATA,1035038,10-Oct-23,2883.08,0,181129,Older People Placements - East,DIRECT PAYMENTS,R,2023,7
976,Community and Housing,Community Equipment Services,9100000774,13-Oct-23,667.8,111.3,181238,Pooled Equipment,410000              Social Community Care Supplies & Services,A,2023,7
977,Community and Housing,REDACTED PERSONAL DATA,1034975,10-Oct-23,1720.4,0,181418,Older People Placements - East,DIRECT PAYMENTS,R,2023,7
978,Community and Housing,MERTON CIL,ASC GRANT OCT 23,09-Oct-23,24708,0,181464,Grants to Voluntary Orgs,200000              Financial Services,A,2023,7
979,"Children, Schools and Family",REDACTED PERSONAL DATA,11/2023DANIELLA,20-Oct-23,1154.92,0,181587,Placements Over 18,321000              Social Community Care Supplies & Services - Adult,R,2023,7
980,"Children, Schools and Family",KIKI'S CHILDREN'S CLINIC,16386,23-Oct-23,710,0,181849,Non-Delegated Statements,310000              Healthcare                                                                                Confirmed,A,2023,7
981,"Children, Schools and Family",LOVE LANE DAY NURSERY,ZHOEBUDKOVA,12-Oct-23,1620,0,181933,Family Supp SafeGuard - Place,200000              Financial Services,A,2023,7
982,"Children, Schools and Family",LOVE LANE DAY NURSERY,NFEEZBUDKOVAAUG2,12-Oct-23,1080,0,181933,Family Supp SafeGuard - Place,200000              Financial Services,A,2023,7
983,"Children, Schools and Family",LOVE LANE DAY NURSERY,NFEEZBUDKOVAJULY,12-Oct-23,837,0,181933,Family Supp SafeGuard - Place,200000              Financial Services,A,2023,7
984,Corporate Services,SHARPE PRITCHARD SOLICITORS,100003998,25-Oct-23,11443.8,1907.3,182165,SLLP - Disbursements,280000              Legal Services                                                                            Confirmed,A,2023,7
985,Corporate Services,REDACTED PERSONAL DATA,1797/JN,26-Oct-23,1590,265,182247,SLLP - Disbursements,280000              Legal Services                                                                            Confirmed,R,2023,7
986,Community and Housing,REDACTED PERSONAL DATA,1034979,10-Oct-23,5474,0,182348,Older People Placements - East,DIRECT PAYMENTS,R,2023,7
987,Environment and Regeneration,BIRKIN CLEANING SERVICES LTD,32581,23-Oct-23,987.14,164.52,182414,EDS2,130000              Cleaning & Janitorial,A,2023,7
988,"Children, Schools and Family",REDACTED PERSONAL DATA,1044346,23-Oct-23,1173,0,182494,Child Disabilities - Placement,DIRECT PAYMENTS,R,2023,7
989,Community and Housing,REDACTED PERSONAL DATA,1035133,10-Oct-23,2952.04,0,182584,Phys/Sens Placements - East,DIRECT PAYMENTS,R,2023,7
990,Corporate Services,ENERGY SAVING LIGHTING (UK) LT,5891,31-Oct-23,687.42,114.57,182638,C & H Buildings,"390000              Works - Construction, Repair & Maintenance",A,2023,7
991,"Children, Schools and Family",REDACTED PERSONAL DATA,1034655,06-Oct-23,548.09,0,182648,UASC LAC Under 18,321100              Social Community Care Supplies & Services - Children,R,2023,7
992,"Children, Schools and Family",REDACTED PERSONAL DATA,1034715,06-Oct-23,548.09,0,182648,UASC LAC Under 18,321100              Social Community Care Supplies & Services - Children,R,2023,7
993,"Children, Schools and Family",REDACTED PERSONAL DATA,1039004,13-Oct-23,548.09,0,182648,UASC LAC Under 18,321100              Social Community Care Supplies & Services - Children,R,2023,7
994,"Children, Schools and Family",REDACTED PERSONAL DATA,1039061,13-Oct-23,548.09,0,182648,UASC LAC Under 18,321100              Social Community Care Supplies & Services - Children,R,2023,7
995,"Children, Schools and Family",REDACTED PERSONAL DATA,1043064,20-Oct-23,548.09,0,182648,UASC LAC Under 18,321100              Social Community Care Supplies & Services - Children,R,2023,7
996,"Children, Schools and Family",REDACTED PERSONAL DATA,1043122,20-Oct-23,548.09,0,182648,UASC LAC Under 18,321100              Social Community Care Supplies & Services - Children,R,2023,7
997,"Children, Schools and Family",REDACTED PERSONAL DATA,1048104,27-Oct-23,548.09,0,182648,UASC LAC Under 18,321100              Social Community Care Supplies & Services - Children,R,2023,7
998,"Children, Schools and Family",REDACTED PERSONAL DATA,1048161,27-Oct-23,548.09,0,182648,UASC LAC Under 18,321100              Social Community Care Supplies & Services - Children,R,2023,7
999,Community and Housing,REDACTED PERSONAL DATA,1035344,10-Oct-23,6347.8,0,182894,Learning Disabilities Placemnt,DIRECT PAYMENTS,R,2023,7
1000,Corporate Services,PELLINGS LLP,SI9036541,16-Oct-23,1200,200,182945,SLLP - Disbursements,280000              Legal Services                                                                            Confirmed,A,2023,7
1001,"Children, Schools and Family",CPI EU /CRISIS PREVENTION INST,RWIN-002995,23-Oct-23,4188,698,183042,Behaviour Support,260000              Human Resources,A,2023,7
1002,Community and Housing,REDACTED PERSONAL DATA,1035091,10-Oct-23,5057.2,0,183167,Older People Placements - East,DIRECT PAYMENTS,R,2023,7
1003,Corporate Services,BOURNE MEDICOLEGAL LIMITED,1342BSOR,23-Oct-23,4700.4,783.4,183184,SLLP - Disbursements,280000              Legal Services                                                                            Confirmed,A,2023,7
1004,Corporate Services,BOURNE MEDICOLEGAL LIMITED,1342DSOR,23-Oct-23,540,90,183184,SLLP - Disbursements,280000              Legal Services                                                                            Confirmed,A,2023,7
1005,Community and Housing,ST ANTONYS CARE HOME,1041171,18-Oct-23,5857.14,0,183206,Older People Placements - East,321017              Nursing & Residential Care Homes,A,2023,7
1006,Community and Housing,ST ANTONYS CARE HOME,1045295,25-Oct-23,3840,0,183206,Older People Placements - East,321017              Nursing & Residential Care Homes,A,2023,7
1007,Community and Housing,ST ANTONYS CARE HOME,1045322,25-Oct-23,3840,0,183206,Older People Placements - East,321017              Nursing & Residential Care Homes,A,2023,7
1008,Community and Housing,ST ANTONYS CARE HOME,1045335,25-Oct-23,4200,0,183206,Mental Health Placements,321017              Nursing & Residential Care Homes,A,2023,7
1009,Community and Housing,ST ANTONYS CARE HOME,1045392,25-Oct-23,4000,0,183206,Older People Placements - East,321017              Nursing & Residential Care Homes,A,2023,7
1010,Community and Housing,ST ANTONYS CARE HOME,1045552,25-Oct-23,4000,0,183206,Older People Placements - East,321017              Nursing & Residential Care Homes,A,2023,7
1011,"Children, Schools and Family",REDACTED PERSONAL DATA,1044387,23-Oct-23,4773.12,0,183239, Childrens Short Breaks,CSF-DIRECT PAYMENTS,R,2023,7
1012,"Children, Schools and Family",REDACTED PERSONAL DATA,1035594,09-Oct-23,625.6,0,183241, Childrens Short Breaks,CSF-DIRECT PAYMENTS,R,2023,7
1013,Unassigned,HARRIS ACADEMY MORDEN,SCHOOLS 2324/7 A,06-Oct-23,11413.29,0,183257,Schools,170000              Education,A,2023,7
1014,Corporate Services,ACAS,08/24716,27-Oct-23,1080,180,183283,Learning and Development,260000              Human Resources,A,2023,7
1015,"Children, Schools and Family",Horizon Education (South London) Limited,SI-C0000000332,25-Oct-23,714.87,0,183299,Non-Delegated Statements,170000              Education,A,2023,7
1016,"Children, Schools and Family",Horizon Education (South London) Limited,SI-C0000000339,25-Oct-23,714.35,0,183299,Non-Delegated Statements,170000              Education,A,2023,7
1017,"Children, Schools and Family",Horizon Education (South London) Limited,SI-C0000000340,25-Oct-23,743.73,0,183299,Non-Delegated Statements,170000              Education,A,2023,7
1018,"Children, Schools and Family",Horizon Education (South London) Limited,SI-C0000000343,25-Oct-23,727.48,0,183299,Non-Delegated Statements,170000              Education,A,2023,7
1019,"Children, Schools and Family",Horizon Education (South London) Limited,SI-C0000000289,25-Oct-23,24020.62,0,183299,Non-Delegated Statements,170000              Education,A,2023,7
1020,"Children, Schools and Family",Horizon Education (South London) Limited,SI-C0000000345,25-Oct-23,816.66,0,183299,Non-Delegated Statements,170000              Education,A,2023,7
1021,"Children, Schools and Family",Horizon Education (South London) Limited,SI-C0000000346,25-Oct-23,1054.04,0,183299,Non-Delegated Statements,170000              Education,A,2023,7
1022,"Children, Schools and Family",Horizon Education (South London) Limited,SI-C0000000347,25-Oct-23,732.81,0,183299,Non-Delegated Statements,170000              Education,A,2023,7
1023,"Children, Schools and Family",Horizon Education (South London) Limited,SI-C0000000348,25-Oct-23,758.68,0,183299,Non-Delegated Statements,170000              Education,A,2023,7
1024,"Children, Schools and Family",Horizon Education (South London) Limited,SI-C0000000349,25-Oct-23,677.3,0,183299,Non-Delegated Statements,170000              Education,A,2023,7
1025,"Children, Schools and Family",Horizon Education (South London) Limited,SI-C0000000352,25-Oct-23,758.68,0,183299,Non-Delegated Statements,170000              Education,A,2023,7
1026,"Children, Schools and Family",Horizon Education (South London) Limited,SI-C0000000329,25-Oct-23,673.92,0,183299,Non-Delegated Statements,170000              Education,A,2023,7
1027,"Children, Schools and Family",Horizon Education (South London) Limited,SI-C0000000342,25-Oct-23,799.76,0,183299,Non-Delegated Statements,170000              Education,A,2023,7
1028,"Children, Schools and Family",Horizon Education (South London) Limited,SI-C0000000233,26-Oct-23,21025.29,0,183299,Non-Delegated Statements,170000              Education,A,2023,7
1029,"Children, Schools and Family",Horizon Education (South London) Limited,SI-C0000000271,26-Oct-23,21025.29,0,183299,Non-Delegated Statements,170000              Education,A,2023,7
1030,Community and Housing,Wimbledon Medical Practice,LARC-Q1-23WMP,27-Oct-23,544.6,0,183348,PH - Sexual Health,310000              Healthcare,A,2023,7
1031,Community and Housing,CRICKET GREEN MEDICAL PRACTICE,QTR12023/24,30-Oct-23,1475.7,0,183360,PH - Sexual Health,310000              Healthcare,A,2023,7
1032,Community and Housing,BARKERS CHEMIST,DQCB/00000080,27-Oct-23,636.19,5.44,183398,PH - Sexual Health,310000              Healthcare,A,2023,7
1033,Community and Housing,REDACTED PERSONAL DATA,1035095,10-Oct-23,1642.04,0,183460,Learning Disabilities Placemnt,DIRECT PAYMENTS,R,2023,7
1034,Community and Housing,REDACTED PERSONAL DATA,1035141,10-Oct-23,1622.64,0,183464,Older People Placements - East,DIRECT PAYMENTS,R,2023,7
1035,"Children, Schools and Family",REDACTED PERSONAL DATA,1035623,09-Oct-23,1710,0,183558,Child Disabilities - Placement,CSF-DIRECT PAYMENTS,R,2023,7
1036,Community and Housing,Kent House Care Home,1045439,25-Oct-23,2884,0,183560,Older People Placements - East,321017              Nursing & Residential Care Homes,A,2023,7
1037,Community and Housing,DICKSONS ESTATE AGENTS,43 BEECH CT,19-Oct-23,2400,0,183623,Homelessness Prevention,200000              Financial Services,A,2023,7
1038,Environment and Regeneration,SCOTTISH POWER,109037489,10-Oct-23,1276.49,60.79,183660,Street Lighting,370000              Utilities,A,2023,7
1039,Corporate Services,RENTOKIL INITIAL UK LTD,60412146,18-Oct-23,1737.53,289.6,183672,Corporate Contracts - FM,130000              Cleaning & Janitorial,A,2023,7
1040,Environment and Regeneration,RENTOKIL INITIAL UK LTD,60410206,23-Oct-23,505.24,84.21,183672,EDS2,130000              Cleaning & Janitorial,A,2023,7
1041,Community and Housing,RENTOKIL INITIAL UK LTD,34869608,23-Oct-23,2182.35,363.72,183672,All Saints Day Centre,130000              Cleaning & Janitorial,A,2023,7
1042,Community and Housing,REDACTED PERSONAL DATA,1035062,10-Oct-23,664.72,0,183690,Older People Placements - East,DIRECT PAYMENTS,R,2023,7
1043,Corporate Services,LEXTOX,300752,16-Oct-23,709.08,118.18,184053,SLLP - Disbursements,280000              Legal Services,A,2023,7
1044,Community and Housing,REDACTED PERSONAL DATA,1035193,10-Oct-23,3026.76,0,184175,Older People Placements - East,DIRECT PAYMENTS,R,2023,7
1045,"Children, Schools and Family",SUNNYHILL PRIMARY SCHOOL,SUN000335,06-Oct-23,3092.89,0,184196,Non-Delegated Statements,170000              Education,A,2023,7
1046,Community and Housing,REDACTED PERSONAL DATA,1035172,10-Oct-23,508.32,0,184315,Older People Placements - East,DIRECT PAYMENTS,R,2023,7
1047,Community and Housing,CROWNWISE LTD,MP/167/117,24-Oct-23,1537,0,184360,Mental Health Placements,321000              Social Community Care Supplies & Services - Adult,A,2023,7
1048,Community and Housing,CROWNWISE LTD,1045220,25-Oct-23,5907,0,184360,Mental Health Placements,321000              Social Community Care Supplies & Services - Adult,A,2023,7
1049,Community and Housing,MARIAN HOUSE NURSING HOME,1045209,25-Oct-23,2834.56,0,184385,Older People Placements - East,321017              Nursing & Residential Care Homes,A,2023,7
1050,"Children, Schools and Family",REDACTED PERSONAL DATA,1039107,13-Oct-23,582.17,0,184386,Placements Under 18,321100              Social Community Care Supplies & Services - Children,R,2023,7
1051,"Children, Schools and Family",REDACTED PERSONAL DATA,1048210,27-Oct-23,582.17,0,184386,Placements Under 18,321100              Social Community Care Supplies & Services - Children,R,2023,7
1052,Community and Housing,REDACTED PERSONAL DATA,1035213,10-Oct-23,4995,0,184580,Older People Placements - East,DIRECT PAYMENTS,R,2023,7
1053,Unassigned,PENSION TOP-UP FUND (LBM),CAPITAL COST033,30-Oct-23,2286.32,0,184583,Super Fund - New Pension Regs,PENSIONS,A,2023,7
1054,Community and Housing,REDACTED PERSONAL DATA,1035189,10-Oct-23,867.48,0,184608,Older People Placements - East,DIRECT PAYMENTS,R,2023,7
1055,Community and Housing,CROHAM PLACE,1045311,25-Oct-23,9400,0,184807,Mental Health Placements,321017              Nursing & Residential Care Homes,A,2023,7
1056,Community and Housing,CROHAM PLACE,1045312,25-Oct-23,9400,0,184807,Learning Disabilities Placemnt,321017              Nursing & Residential Care Homes,A,2023,7
1057,Community and Housing,CROHAM PLACE,1045348,25-Oct-23,9400,0,184807,Mental Health Placements,321017              Nursing & Residential Care Homes,A,2023,7
1058,Community and Housing,REDACTED PERSONAL DATA,1035326,10-Oct-23,977.04,0,184819,Older People Placements - East,DIRECT PAYMENTS,R,2023,7
1059,"Children, Schools and Family",HIGHER LEVEL CARE (HLC) LTD,15241,13-Oct-23,2770,0,184822,UASC Care Leavers Over 18,321100              Social Community Care Supplies & Services - Children Residential,A,2023,7
1060,"Children, Schools and Family",HIGHER LEVEL CARE (HLC) LTD,15245,13-Oct-23,3642.86,0,184822,UASC LAC Under 18,321100              Social Community Care Supplies & Services - Children Residential,A,2023,7
1061,"Children, Schools and Family",HIGHER LEVEL CARE (HLC) LTD,15243,13-Oct-23,996.18,0,184822,UASC Care Leavers Over 18,321100              Social Community Care Supplies & Services - Children Residential,A,2023,7
1062,"Children, Schools and Family",QUARTZ PROPERTIES,LBMSS41B,09-Oct-23,1595,0,184919,Family Assessmt & Intervention,321000              Social Community Care Supplies & Services - Adult,A,2023,7
1063,"Children, Schools and Family",QUARTZ PROPERTIES,LBMSS44B,04-Oct-23,1705,0,184919,Family Assessmt & Intervention,321000              Social Community Care Supplies & Services - Adult,A,2023,7
1064,Community and Housing,QUARTZ PROPERTIES,LBM120,20-Oct-23,41580.7,0,184919,Bed & Breakfast - accomm,321000              Social Community Care Supplies & Services - Adult,A,2023,7
1065,Community and Housing,REDACTED PERSONAL DATA,1035227,10-Oct-23,703.8,0,184950,Phys/Sens Placements - East,DIRECT PAYMENTS,R,2023,7
1066,Corporate Services,CIPFA BUSINESS LIMITED,3169787,30-Oct-23,2724.38,454.06,184963,Financial Strategy and Capital,200000              Financial Services,A,2023,7
1067,Corporate Services,CIPFA BUSINESS LIMITED,3169981,30-Oct-23,11800.8,1966.8,184963,Financial Strategy and Capital,200000              Financial Services,A,2023,7
1068,Community and Housing,HOLDSWORTHS,715883,09-Oct-23,596.96,10.04,185001,Eastway Day Centre,110000              Catering,A,2023,7
1069,Community and Housing,LONDON CARE LTD,5234750/24,30-Oct-23,1180.93,0,185026,Older People Placements - East,321000              Social Community Care Supplies & Services - Adult,A,2023,7
1070,Community and Housing,LONDON CARE LTD,5234750/6,30-Oct-23,1425.15,0,185026,Older People Placements - East,321000              Social Community Care Supplies & Services - Adult,A,2023,7
1071,Community and Housing,LONDON CARE LTD,5234750/9,30-Oct-23,561.85,0,185026,Older People Placements - East,321000              Social Community Care Supplies & Services - Adult,A,2023,7
1072,Community and Housing,LONDON CARE LTD,5234750/12,30-Oct-23,699.55,0,185026,Older People Placements - East,321000              Social Community Care Supplies & Services - Adult,A,2023,7
1073,Community and Housing,LONDON CARE LTD,5234750/13,30-Oct-23,2376.77,0,185026,Older People Placements - East,321000              Social Community Care Supplies & Services - Adult,A,2023,7
1074,Community and Housing,LONDON CARE LTD,5234750/25,30-Oct-23,2176.27,0,185026,Older People Placements - East,321000              Social Community Care Supplies & Services - Adult,A,2023,7
1075,Community and Housing,LONDON CARE LTD,5234750/16,30-Oct-23,840.27,0,185026,Older People Placements - East,321000              Social Community Care Supplies & Services - Adult,A,2023,7
1076,Community and Housing,LONDON CARE LTD,5234750/15,30-Oct-23,1057.12,0,185026,Older People Placements - East,321000              Social Community Care Supplies & Services - Adult,A,2023,7
1077,Community and Housing,LONDON CARE LTD,5234750/27,30-Oct-23,823.82,0,185026,Older People Placements - East,321000              Social Community Care Supplies & Services - Adult,A,2023,7
1078,Community and Housing,LONDON CARE LTD,5234750/3,30-Oct-23,1034.1,0,185026,Older People Placements - East,321000              Social Community Care Supplies & Services - Adult,A,2023,7
1079,Community and Housing,LONDON CARE LTD,5234750/21,30-Oct-23,1447.75,0,185026,Older People Placements - East,321000              Social Community Care Supplies & Services - Adult,A,2023,7
1080,Community and Housing,LONDON CARE LTD,5234750/5,30-Oct-23,1555.56,0,185026,Older People Placements - East,321000              Social Community Care Supplies & Services - Adult,A,2023,7
1081,Community and Housing,LONDON CARE LTD,5234750/31,30-Oct-23,2485.96,0,185026,Older People Placements - East,321000              Social Community Care Supplies & Services - Adult,A,2023,7
1082,Community and Housing,LONDON CARE LTD,5234750/22,30-Oct-23,709.93,0,185026,Older People Placements - East,321000              Social Community Care Supplies & Services - Adult,A,2023,7
1083,Community and Housing,LONDON CARE LTD,5234750/14,30-Oct-23,512.9,0,185026,Phys/Sens Placements - East,321000              Social Community Care Supplies & Services - Adult,A,2023,7
1084,Community and Housing,LONDON CARE LTD,5234750/23,30-Oct-23,1126.94,0,185026,Older People Placements - East,321000              Social Community Care Supplies & Services - Adult,A,2023,7
1085,Corporate Services,BROWNE JACOBSON,1037038,26-Oct-23,11439,1906.5,185063,SLLP - Disbursements,280000              Legal Services,A,2023,7
1086,Community and Housing,CHELSEA AND WESTMINSTER HOSPITAL,N0055974,27-Oct-23,17383.05,0,185106,PH - Sexual Health,310000              Healthcare,A,2023,7
1087,"Children, Schools and Family",FUTURE FOUNDATIONS LTD,FFSW04712,04-Oct-23,1651,0,185138,Placements Under 18,321100              Social Community Care Supplies & Services - Children,A,2023,7
1088,"Children, Schools and Family",FUTURE FOUNDATIONS LTD,FFSW04724,04-Oct-23,3937,0,185138,Placements Under 18,321100              Social Community Care Supplies & Services - Children,A,2023,7
1089,"Children, Schools and Family",FUTURE FOUNDATIONS LTD,FFSW04758,06-Oct-23,3810,0,185138,Placements Under 18,321100              Social Community Care Supplies & Services - Children,A,2023,7
1090,"Children, Schools and Family",TURNEY SCHOOL,1354,31-Oct-23,30602.02,0,185206,Non-Delegated Statements,170000              Education,A,2023,7
1091,Community and Housing,REDACTED PERSONAL DATA,1035198,10-Oct-23,1257.56,0,185250,Older People Placements - East,DIRECT PAYMENTS,R,2023,7
1092,"Children, Schools and Family",ORCHARD HILL COLLEGE,DI3060101206,06-Oct-23,13317.9,0,185253,Non-Maintained Post 16 SEN,170000              Education,A,2023,7
1093,"Children, Schools and Family",ORCHARD HILL COLLEGE,DI3010101210,06-Oct-23,17542.72,0,185253,Non-Maintained Post 16 SEN,170000              Education,A,2023,7
1094,"Children, Schools and Family",ORCHARD HILL COLLEGE,DI3010101200,06-Oct-23,16547.72,0,185253,Non-Maintained Post 16 SEN,170000              Education,A,2023,7
1095,"Children, Schools and Family",ORCHARD HILL COLLEGE,DI3010101201,06-Oct-23,14671.62,0,185253,Non-Maintained Post 16 SEN,170000              Education,A,2023,7
1096,"Children, Schools and Family",ORCHARD HILL COLLEGE,DI3010101202,06-Oct-23,18155.8,0,185253,Non-Maintained Post 16 SEN,170000              Education,A,2023,7
1097,"Children, Schools and Family",ORCHARD HILL COLLEGE,DI3010101203,06-Oct-23,13045.9,0,185253,Non-Maintained Post 16 SEN,170000              Education,A,2023,7
1098,"Children, Schools and Family",ORCHARD HILL COLLEGE,DI3010101204,06-Oct-23,12064.63,0,185253,Non-Maintained Post 16 SEN,170000              Education,A,2023,7
1099,"Children, Schools and Family",ORCHARD HILL COLLEGE,DI3010101207,06-Oct-23,14632.53,0,185253,Non-Maintained Post 16 SEN,170000              Education,A,2023,7
1100,"Children, Schools and Family",ORCHARD HILL COLLEGE,DI3020101196,06-Oct-23,13556.65,0,185253,Non-Maintained Post 16 SEN,170000              Education,A,2023,7
1101,"Children, Schools and Family",ORCHARD HILL COLLEGE,DI3020101197,06-Oct-23,12472.62,0,185253,Non-Maintained Post 16 SEN,170000              Education,A,2023,7
1102,"Children, Schools and Family",ORCHARD HILL COLLEGE,DI3020101198,06-Oct-23,13199.5,0,185253,Non-Maintained Post 16 SEN,170000              Education,A,2023,7
1103,"Children, Schools and Family",ORCHARD HILL COLLEGE,DI3020101199,06-Oct-23,13215.33,0,185253,Non-Maintained Post 16 SEN,170000              Education,A,2023,7
1104,"Children, Schools and Family",ORCHARD HILL COLLEGE,DI3020101205,06-Oct-23,13403.5,0,185253,Non-Maintained Post 16 SEN,170000              Education,A,2023,7
1105,"Children, Schools and Family",ORCHARD HILL COLLEGE,DI3010101208,06-Oct-23,18589.07,0,185253,Non-Maintained Post 16 SEN,170000              Education,A,2023,7
1106,"Children, Schools and Family",ORCHARD HILL COLLEGE,DI3020101209,06-Oct-23,12245.73,0,185253,Non-Maintained Post 16 SEN,170000              Education,A,2023,7
1107,"Children, Schools and Family",ORCHARD HILL COLLEGE,DI3040101829,31-Oct-23,8200,0,185253,Non-Maintained Post 16 SEN,170000              Education,A,2023,7
1108,"Children, Schools and Family",ORCHARD HILL COLLEGE,DI3040101830,31-Oct-23,8200,0,185253,Non-Maintained Post 16 SEN,170000              Education,A,2023,7
1109,"Children, Schools and Family",ORCHARD HILL COLLEGE,DI3040101842,31-Oct-23,8200,0,185253,Non-Maintained Post 16 SEN,170000              Education,A,2023,7
1110,"Children, Schools and Family",ORCHARD HILL COLLEGE,DI3040101824,31-Oct-23,5900,0,185253,Non-Maintained Post 16 SEN,170000              Education,A,2023,7
1111,"Children, Schools and Family",ORCHARD HILL COLLEGE,DI3040101847,31-Oct-23,5900,0,185253,Non-Maintained Post 16 SEN,170000              Education,A,2023,7
1112,"Children, Schools and Family",ORCHARD HILL COLLEGE,DI3060101845,31-Oct-23,5900,0,185253,Non-Maintained Post 16 SEN,170000              Education,A,2023,7
1113,"Children, Schools and Family",ORCHARD HILL COLLEGE,DI3040101857,31-Oct-23,8200,0,185253,Non-Maintained Post 16 SEN,170000              Education,A,2023,7
1114,"Children, Schools and Family",ORCHARD HILL COLLEGE,DI3040101848,31-Oct-23,5900,0,185253,Non-Maintained Post 16 SEN,170000              Education,A,2023,7
1115,Community and Housing,REDACTED PERSONAL DATA,1035009,10-Oct-23,1605.44,0,185353,Mental Health Placements,DIRECT PAYMENTS,R,2023,7
1116,Corporate Services,INFORM CPI LTD,AL66335,09-Oct-23,1890,315,185356,Local Taxation Services,270000              Information Communication Technology,A,2023,7
1117,Corporate Services,INFORM CPI LTD,AL66389,23-Oct-23,4824,804,185356,Local Taxation Services,270000              Information Communication Technology,A,2023,7
1118,Community and Housing,WISDOM SUPPORT SERVICES LTD,12563,19-Oct-23,4434.48,0,185366,Learning Disabilities Placemnt,321000              Social Community Care Supplies & Services - Adult,A,2023,7
1119,Community and Housing,WISDOM SUPPORT SERVICES LTD,12564,19-Oct-23,1642.4,0,185366,Older People Placements - East,321000              Social Community Care Supplies & Services - Adult,A,2023,7
1120,Community and Housing,WISDOM SUPPORT SERVICES LTD,12565,19-Oct-23,1313.92,0,185366,Learning Disabilities Placemnt,321000              Social Community Care Supplies & Services - Adult,A,2023,7
1121,Community and Housing,WISDOM SUPPORT SERVICES LTD,12566,19-Oct-23,2217.24,0,185366,Older People Placements - East,321000              Social Community Care Supplies & Services - Adult,A,2023,7
1122,Corporate Services,Carter Brown The Expert Service Ltd,TI052219,10-Oct-23,4795.02,799.17,185403,SLLP - Disbursements,280000              Legal Services                                                                            Confirmed,A,2023,7
1123,"Children, Schools and Family",ELECTRONICS DIRECT,258,30-Oct-23,1410,235,185453,UASC Care Leavers Over 18,160000              Domestic Goods,A,2023,7
1124,Community and Housing,THORNBECK COLLEGE,1045275,25-Oct-23,10320.52,0,185470,Learning Disabilities Placemnt,321100              Social Community Care Supplies & Services - Children,A,2023,7
1125,Corporate Services,REDACTED PERSONAL DATA,INV1130/RG5,20-Oct-23,1530,255,185480,SLLP - Disbursements,280000              Legal Services                                                                            Confirmed,R,2023,7
1126,Community and Housing,REDACTED PERSONAL DATA,1035296,10-Oct-23,1563,0,185533,Older People Placements - East,DIRECT PAYMENTS,R,2023,7
1127,Community and Housing,REDACTED PERSONAL DATA,1036783,10-Oct-23,522.88,0,185533,Older People Placements - East,DIRECT PAYMENTS,R,2023,7
1128,"Children, Schools and Family",WOODMANSTERNE PRIMARY SCHOOL,HDAVIDSON16/10,16-Oct-23,750,0,185550,PupilPremium- Virtual School,170000              Education,A,2023,7
1129,Community and Housing,REDACTED PERSONAL DATA,1035279,10-Oct-23,1271.6,0,185653,Older People Placements - East,DIRECT PAYMENTS,R,2023,7
1130,Corporate Services,ENERGY ASSETS LIMITED,AM30180662,26-Oct-23,929.59,154.93,185666,Energy Budgets,370000              Utilities,A,2023,7
1131,Community and Housing,REDACTED PERSONAL DATA,1035223,10-Oct-23,615.48,0,185709,Learning Disabilities Placemnt,DIRECT PAYMENTS,R,2023,7
1132,Unassigned,BENEDICT PRIMARY ACADEMY,SCHOOLS 2324/7 A,06-Oct-23,15508.55,0,185720,Schools,170000              Education,A,2023,7
1133,"Children, Schools and Family",Ernest Bevin Academy,27,30-Oct-23,11809.02,0,185767,Non-Delegated Statements,200000              Financial Services,A,2023,7
1134,Community and Housing,M K ACCOMMODATION,MK5782,12-Oct-23,1235,0,185816,Housing Strategy,321000              Social Community Care Supplies & Services - Adult,A,2023,7
1135,Environment and Regeneration,MITCHAM TOWN COMMUNITY TRUST,242,25-Oct-23,1000,0,185878,HLF Canons,170000              Education,A,2023,7
1136,Community and Housing,RENT CONNECT LLP,RC-LBM103,03-Oct-23,4800,0,185915,Bed & Breakfast - accomm,321000              Social Community Care Supplies & Services - Adult,A,2023,7
1137,Corporate Services,GOSTO FINO PORTUGAL PATISSERIE,CC085549,31-Oct-23,982.26,163.71,185935,Democracy Services,110000              Catering,A,2023,7
1138,Corporate Services,GOSTO FINO PORTUGAL PATISSERIE,CC085548,09-Oct-23,738,123,185935,Legal Shared Service,110000              Catering,A,2023,7
1139,Community and Housing,E HOMES AND SHELTERS,EHSL1702,19-Oct-23,40733.5,0,185995,Bed & Breakfast - accomm,321000              Social Community Care Supplies & Services - Adult,A,2023,7
1140,"Children, Schools and Family",REDACTED PERSONAL DATA,1035560,09-Oct-23,977.88,0,186027,Child Disabilities - Placement,CSF-DIRECT PAYMENTS,R,2023,7
1141,Community and Housing,REDACTED PERSONAL DATA,1035298,10-Oct-23,1690.36,0,186071,Older People Placements - East,DIRECT PAYMENTS,R,2023,7
1142,Capital,PAKFLATT (UK) LTD,6454,19-Oct-23,53688,8948,186100,Electoral Services,190000              Facilities & Management Services,A,2023,7
1143,Environment and Regeneration,LA (Local Authority) Support Ltd,SER-00047723INV,25-Oct-23,17226,2871,186193,Waste Enforcement,180000              Environmental Services,A,2023,7
1144,Environment and Regeneration,LA (Local Authority) Support Ltd,SER-00048998INV,25-Oct-23,4099.74,683.29,186193,Waste Enforcement,180000              Environmental Services,A,2023,7
1145,Corporate Services,REDACTED PERSONAL DATA,SRC3339,23-Oct-23,648,108,186286,SLLP - Disbursements,280000              Legal Services                                                                            Confirmed,R,2023,7
1146,"Children, Schools and Family",CAREOLINE,21306,17-Oct-23,1605.5,0,186615,Placements Under 18,321100              Social Community Care Supplies & Services - Children,A,2023,7
1147,"Children, Schools and Family",CAREOLINE,21352,20-Oct-23,927,0,186615,Placements Under 18,321100              Social Community Care Supplies & Services - Children,A,2023,7
1148,"Children, Schools and Family",CAREOLINE,21411,20-Oct-23,927,0,186615,Placements Under 18,321100              Social Community Care Supplies & Services - Children,A,2023,7
1149,"Children, Schools and Family",CAREOLINE,21274,24-Oct-23,591.53,0,186615,Family Supp SafeGuard - Place,321100              Social Community Care Supplies & Services - Children,A,2023,7
